Council Name,Date,TransNo,Amount � (Excl VAT),Supplier name,Supplier Category,Expense Area,Expense Type,Expense Code,Unclaimed VAT
Royal Borough of Kingston,01/08/2022,90156478,"3,842.10",ABBEY 14LIMITED,SOCIAL SERVICES RESIDENTIAL,Adult Social Care & Health,Independent Placements,A56006,0
Royal Borough of Kingston,01/08/2022,90154269,"3,865.08",ABBEYFIELD,SOCIAL SERVICES RESIDENTIAL,Adult Social Care & Health,Independent Placements,A56006,0
Royal Borough of Kingston,01/08/2022,90154270,"-3,882.62",ABBEYFIELD,SOCIAL SERVICES RESIDENTIAL,Adult Social Care & Health,Independent Placements,A56006,0
Royal Borough of Kingston,01/08/2022,90156346,"3,865.08",ABBEYFIELD,SOCIAL SERVICES RESIDENTIAL,Adult Social Care & Health,Independent Placements,A56006,0
Royal Borough of Kingston,01/08/2022,90156347,"3,865.08",ABBEYFIELD,SOCIAL SERVICES RESIDENTIAL,Adult Social Care & Health,Independent Placements,A56006,0
Royal Borough of Kingston,01/08/2022,90156348,"3,865.08",ABBEYFIELD,SOCIAL SERVICES RESIDENTIAL,Adult Social Care & Health,Independent Placements,A56006,0
Royal Borough of Kingston,01/08/2022,90156349,"3,865.08",ABBEYFIELD,SOCIAL SERVICES RESIDENTIAL,Adult Social Care & Health,Independent Placements,A56006,0
Royal Borough of Kingston,01/08/2022,90156360,"1,920.00",ABBEYFIELD,SOCIAL SERVICES RESIDENTIAL,Adult Social Care & Health,Independent Placements,A56006,0
Royal Borough of Kingston,01/08/2022,90156361,"3,740.40",ABBEYFIELD,SOCIAL SERVICES RESIDENTIAL,Adult Social Care & Health,Independent Placements,A56006,0
Royal Borough of Kingston,01/08/2022,90156362,"3,865.08",ABBEYFIELD,SOCIAL SERVICES RESIDENTIAL,Adult Social Care & Health,Independent Placements,A56006,0
Royal Borough of Kingston,01/08/2022,90156363,"3,740.40",ABBEYFIELD,SOCIAL SERVICES RESIDENTIAL,Adult Social Care & Health,Independent Placements,A56006,0
Royal Borough of Kingston,01/08/2022,90156364,"3,865.08",ABBEYFIELD,SOCIAL SERVICES RESIDENTIAL,Adult Social Care & Health,Independent Placements,A56006,0
Royal Borough of Kingston,01/08/2022,90156365,"3,865.08",ABBEYFIELD,SOCIAL SERVICES RESIDENTIAL,Adult Social Care & Health,Independent Placements,A56006,0
Royal Borough of Kingston,01/08/2022,90156368,"3,865.08",ABBEYFIELD,SOCIAL SERVICES RESIDENTIAL,Adult Social Care & Health,Independent Placements,A56006,0
Royal Borough of Kingston,01/08/2022,90156369,"3,865.08",ABBEYFIELD,SOCIAL SERVICES RESIDENTIAL,Adult Social Care & Health,Independent Placements,A56006,0
Royal Borough of Kingston,01/08/2022,90156374,"3,865.08",ABBEYFIELD,SOCIAL SERVICES RESIDENTIAL,Adult Social Care & Health,Independent Placements,A56006,0
Royal Borough of Kingston,01/08/2022,90156376,"3,865.08",ABBEYFIELD,SOCIAL SERVICES RESIDENTIAL,Adult Social Care & Health,Independent Placements,A56006,0
Royal Borough of Kingston,01/08/2022,90156382,"1,994.88",ABBEYFIELD,SOCIAL SERVICES RESIDENTIAL,Adult Social Care & Health,Independent Placements,A56006,0
Royal Borough of Kingston,01/08/2022,90156386,"3,865.08",ABBEYFIELD,SOCIAL SERVICES RESIDENTIAL,Adult Social Care & Health,Independent Placements,A56006,0
Royal Borough of Kingston,01/08/2022,90156389,"3,865.08",ABBEYFIELD,SOCIAL SERVICES RESIDENTIAL,Adult Social Care & Health,Independent Placements,A56006,0
Royal Borough of Kingston,01/08/2022,90156394,"3,865.08",ABBEYFIELD,SOCIAL SERVICES RESIDENTIAL,Adult Social Care & Health,Independent Placements,A56006,0
Royal Borough of Kingston,01/08/2022,90156396,"3,865.08",ABBEYFIELD,SOCIAL SERVICES RESIDENTIAL,Adult Social Care & Health,Independent Placements,A56006,0
Royal Borough of Kingston,01/08/2022,90156400,"3,865.08",ABBEYFIELD,SOCIAL SERVICES RESIDENTIAL,Adult Social Care & Health,Independent Placements,A56006,0
Royal Borough of Kingston,01/08/2022,90156402,"3,865.08",ABBEYFIELD,SOCIAL SERVICES RESIDENTIAL,Adult Social Care & Health,Independent Placements,A56006,0
Royal Borough of Kingston,01/08/2022,90156460,"4,141.16",ABBEYFIELD,SOCIAL SERVICES RESIDENTIAL,Adult Social Care & Health,Independent Placements,A56006,0
Royal Borough of Kingston,01/08/2022,90156469,"3,865.08",ABBEYFIELD,SOCIAL SERVICES RESIDENTIAL,Adult Social Care & Health,Independent Placements,A56006,0
Royal Borough of Kingston,01/08/2022,90156477,"4,141.16",ABBEYFIELD,SOCIAL SERVICES RESIDENTIAL,Adult Social Care & Health,Independent Placements,A56006,0
Royal Borough of Kingston,01/08/2022,90156485,"3,865.08",ABBEYFIELD,SOCIAL SERVICES RESIDENTIAL,Adult Social Care & Health,Independent Placements,A56006,0
Royal Borough of Kingston,01/08/2022,90156495,"-3,102.16",ABBEYFIELD,SOCIAL SERVICES RESIDENTIAL,Adult Social Care & Health,Independent Placements,A56006,0
Royal Borough of Kingston,01/08/2022,90156496,"3,865.08",ABBEYFIELD,SOCIAL SERVICES RESIDENTIAL,Adult Social Care & Health,Independent Placements,A56006,0
Royal Borough of Kingston,01/08/2022,90156503,"3,865.08",ABBEYFIELD,SOCIAL SERVICES RESIDENTIAL,Adult Social Care & Health,Independent Placements,A56006,0
Royal Borough of Kingston,01/08/2022,90156517,"3,865.08",ABBEYFIELD,SOCIAL SERVICES RESIDENTIAL,Adult Social Care & Health,Independent Placements,A56006,0
Royal Borough of Kingston,01/08/2022,90156519,997.44,ABBEYFIELD,SOCIAL SERVICES RESIDENTIAL,Adult Social Care & Health,Independent Placements,A56006,0
Royal Borough of Kingston,01/08/2022,90156525,-872.76,ABBEYFIELD,SOCIAL SERVICES RESIDENTIAL,Adult Social Care & Health,Independent Placements,A56006,0
Royal Borough of Kingston,01/08/2022,90156532,"3,865.08",ABBEYFIELD,SOCIAL SERVICES RESIDENTIAL,Adult Social Care & Health,Independent Placements,A56006,0
Royal Borough of Kingston,01/08/2022,90156534,"2,867.64",ABBEYFIELD,SOCIAL SERVICES RESIDENTIAL,Adult Social Care & Health,Independent Placements,A56006,0
Royal Borough of Kingston,01/08/2022,90156536,"3,491.04",ABBEYFIELD,SOCIAL SERVICES RESIDENTIAL,Adult Social Care & Health,Independent Placements,A56006,0
Royal Borough of Kingston,01/08/2022,90156537,"2,992.32",ABBEYFIELD,SOCIAL SERVICES RESIDENTIAL,Adult Social Care & Health,Independent Placements,A56006,0
Royal Borough of Kingston,01/08/2022,90156654,"-1,920.00",ABBEYFIELD,SOCIAL SERVICES RESIDENTIAL,Adult Social Care & Health,Other Private Contractors - Third Party,A56080,0
Royal Borough of Kingston,01/08/2022,90156655,"-3,740.40",ABBEYFIELD,SOCIAL SERVICES RESIDENTIAL,Adult Social Care & Health,Other Private Contractors - Third Party,A56080,0
Royal Borough of Kingston,01/08/2022,90156656,"-3,865.08",ABBEYFIELD,SOCIAL SERVICES RESIDENTIAL,Adult Social Care & Health,Other Private Contractors - Third Party,A56080,0
Royal Borough of Kingston,01/08/2022,90156657,"-3,740.40",ABBEYFIELD,SOCIAL SERVICES RESIDENTIAL,Adult Social Care & Health,Other Private Contractors - Third Party,A56080,0
Royal Borough of Kingston,01/08/2022,90156658,"-3,865.08",ABBEYFIELD,SOCIAL SERVICES RESIDENTIAL,Adult Social Care & Health,Other Private Contractors - Third Party,A56080,0
Royal Borough of Kingston,01/08/2022,90156667,997.44,ABBEYFIELD,SOCIAL SERVICES RESIDENTIAL,Adult Social Care & Health,Other Private Contractors - Third Party,A56080,0
Royal Borough of Kingston,01/08/2022,90158163,"5,745.10",ABC HILLINGDON LTD,ACCOMMODATION - OTHER,Adult Social Care & Health,Personal Budget - Third Party,A61019,0
Royal Borough of Kingston,01/08/2022,90156464,"4,871.43",ACORN LODGE,SOCIAL SERVICES RESIDENTIAL,Adult Social Care & Health,Independent Placements,A56006,0
Royal Borough of Kingston,01/08/2022,90156407,"5,511.71",Active Care Group Services,SOCIAL SERVICES RESIDENTIAL,Adult Social Care & Health,Independent Placements,A56006,0
Royal Borough of Kingston,01/08/2022,70029020,"1,500.00",ADVANCED TREE SERVICES LIMITED,CONSTRUCTION INDUSTRY,Corporate & Communities,Maintenance of trees,A28003,0
Royal Borough of Kingston,01/08/2022,70029071,"4,121.85",ADVANCED TREE SERVICES LIMITED,CONSTRUCTION INDUSTRY,Corporate & Communities,Maintenance of trees,A28003,0
Royal Borough of Kingston,01/08/2022,90155021,"1,542.86",AIMS CARE LIMITED,SOCIAL SERVICES RESIDENTIAL,Adult Social Care & Health,Independent Placements,A56006,0
Royal Borough of Kingston,01/08/2022,90155022,"5,314.29",AIMS CARE LIMITED,SOCIAL SERVICES RESIDENTIAL,Adult Social Care & Health,Independent Placements,A56006,0
Royal Borough of Kingston,01/08/2022,90156269,"5,314.29",AIMS CARE LIMITED,SOCIAL SERVICES RESIDENTIAL,Adult Social Care & Health,Independent Placements,A56006,0
Royal Borough of Kingston,01/08/2022,90156418,"6,864.29",AIMS CARE LIMITED,SOCIAL SERVICES RESIDENTIAL,Adult Social Care & Health,Independent Placements,A56006,0
Royal Borough of Kingston,01/08/2022,90156617,857.14,ALBERT RESIDENTIAL HOME,SOCIAL SERVICES RESIDENTIAL,Adult Social Care & Health,Independent Placements,A56006,0
Royal Borough of Kingston,01/08/2022,90156681,"1,178.57",ALBERT RESIDENTIAL HOME,SOCIAL SERVICES RESIDENTIAL,Adult Social Care & Health,Other Private Contractors - Third Party,A56080,0
Royal Borough of Kingston,01/08/2022,90156682,"-1,178.57",ALBERT RESIDENTIAL HOME,SOCIAL SERVICES RESIDENTIAL,Adult Social Care & Health,Other Private Contractors - Third Party,A56080,0
Royal Borough of Kingston,01/08/2022,90156683,"3,321.43",ALBERT RESIDENTIAL HOME,SOCIAL SERVICES RESIDENTIAL,Adult Social Care & Health,Other Private Contractors - Third Party,A56080,0
Royal Borough of Kingston,01/08/2022,90155034,796.26,ALPENBEST LTD,SOCIAL SERVICES DAY CARE,Adult Social Care & Health,Homecare - new framework,A56127,0
Royal Borough of Kingston,01/08/2022,90155060,560,ALPENBEST LTD,SOCIAL SERVICES DAY CARE,Adult Social Care & Health,Homecare - new framework,A56127,0
Royal Borough of Kingston,01/08/2022,90155071,"1,470.01",ALPENBEST LTD,SOCIAL SERVICES DAY CARE,Adult Social Care & Health,Homecare - new framework,A56127,0
Royal Borough of Kingston,01/08/2022,90155084,612.5,ALPENBEST LTD,SOCIAL SERVICES DAY CARE,Adult Social Care & Health,Homecare - new framework,A56127,0
Royal Borough of Kingston,01/08/2022,90155111,551.25,ALPENBEST LTD,SOCIAL SERVICES DAY CARE,Adult Social Care & Health,Homecare - new framework,A56127,0
Royal Borough of Kingston,01/08/2022,90155140,735.01,ALPENBEST LTD,SOCIAL SERVICES DAY CARE,Adult Social Care & Health,Homecare - new framework,A56127,0
Royal Borough of Kingston,01/08/2022,90155166,551.25,ALPENBEST LTD,SOCIAL SERVICES DAY CARE,Adult Social Care & Health,Homecare - new framework,A56127,0
Royal Borough of Kingston,01/08/2022,90155183,551.25,ALPENBEST LTD,SOCIAL SERVICES DAY CARE,Adult Social Care & Health,Homecare - new framework,A56127,0
Royal Borough of Kingston,01/08/2022,90155212,551.25,ALPENBEST LTD,SOCIAL SERVICES DAY CARE,Adult Social Care & Health,Homecare - new framework,A56127,0
Royal Borough of Kingston,01/08/2022,90155220,577.5,ALPENBEST LTD,SOCIAL SERVICES DAY CARE,Adult Social Care & Health,Homecare - new framework,A56127,0
Royal Borough of Kingston,01/08/2022,90155258,621.25,ALPENBEST LTD,SOCIAL SERVICES DAY CARE,Adult Social Care & Health,Homecare - new framework,A56127,0
Royal Borough of Kingston,01/08/2022,90155259,551.25,ALPENBEST LTD,SOCIAL SERVICES DAY CARE,Adult Social Care & Health,Homecare - new framework,A56127,0
Royal Borough of Kingston,01/08/2022,90155265,551.25,ALPENBEST LTD,SOCIAL SERVICES DAY CARE,Adult Social Care & Health,Homecare - new framework,A56127,0
Royal Borough of Kingston,01/08/2022,90155266,551.25,ALPENBEST LTD,SOCIAL SERVICES DAY CARE,Adult Social Care & Health,Homecare - new framework,A56127,0
Royal Borough of Kingston,01/08/2022,90155319,735.01,ALPENBEST LTD,SOCIAL SERVICES DAY CARE,Adult Social Care & Health,Homecare - new framework,A56127,0
Royal Borough of Kingston,01/08/2022,90155356,551.25,ALPENBEST LTD,SOCIAL SERVICES DAY CARE,Adult Social Care & Health,Homecare - new framework,A56127,0
Royal Borough of Kingston,01/08/2022,90155420,551.25,ALPENBEST LTD,SOCIAL SERVICES DAY CARE,Adult Social Care & Health,Homecare - new framework,A56127,0
Royal Borough of Kingston,01/08/2022,90155424,735.01,ALPENBEST LTD,SOCIAL SERVICES DAY CARE,Adult Social Care & Health,Homecare - new framework,A56127,0
Royal Borough of Kingston,01/08/2022,90155457,525,ALPENBEST LTD,SOCIAL SERVICES DAY CARE,Adult Social Care & Health,Homecare - new framework,A56127,0
Royal Borough of Kingston,01/08/2022,90155459,603.75,ALPENBEST LTD,SOCIAL SERVICES DAY CARE,Adult Social Care & Health,Homecare - new framework,A56127,0
Royal Borough of Kingston,01/08/2022,90155465,673.75,ALPENBEST LTD,SOCIAL SERVICES DAY CARE,Adult Social Care & Health,Homecare - new framework,A56127,0
Royal Borough of Kingston,01/08/2022,90155472,726.26,ALPENBEST LTD,SOCIAL SERVICES DAY CARE,Adult Social Care & Health,Homecare - new framework,A56127,0
Royal Borough of Kingston,01/08/2022,90155492,612.5,ALPENBEST LTD,SOCIAL SERVICES DAY CARE,Adult Social Care & Health,Homecare - new framework,A56127,0
Royal Borough of Kingston,01/08/2022,90155674,612.5,ALPENBEST LTD,SOCIAL SERVICES DAY CARE,Adult Social Care & Health,Personal Budget - Third Party,A61019,0
Royal Borough of Kingston,01/08/2022,90156611,"6,303.76",ASHCROFT CARE SERVICES LIMITED,SOCIAL SERVICES RESIDENTIAL,Adult Social Care & Health,Independent Placements,A56006,0
Royal Borough of Kingston,01/08/2022,90157989,952.32,ASHINGTON HOUSE LTD,SOCIAL SERVICES RESIDENTIAL,Adult Social Care & Health,Personal Budget - Third Party,A61019,0
Royal Borough of Kingston,01/08/2022,90157903,"1,349.25",ASHPRIME PROPERTIES LTD,SOCIAL SERVICES RESIDENTIAL,Adult Social Care & Health,Personal Budget - Third Party,A61019,0
Royal Borough of Kingston,01/08/2022,90157976,"2,655.50",Aspirations Care Ltd,SOCIAL SERVICES - OTHER,Adult Social Care & Health,Personal Budget - Third Party,A61019,0
Royal Borough of Kingston,01/08/2022,90156352,"5,391.87",ASPREY HEALTHCARE LTD,SOCIAL SERVICES RESIDENTIAL,Adult Social Care & Health,Independent Placements,A56006,0
Royal Borough of Kingston,01/08/2022,90156463,"3,950.20",ASPREY HEALTHCARE LTD,SOCIAL SERVICES RESIDENTIAL,Adult Social Care & Health,Independent Placements,A56006,0
Royal Borough of Kingston,01/08/2022,90156476,"4,531.14",ASPREY HEALTHCARE LTD,SOCIAL SERVICES RESIDENTIAL,Adult Social Care & Health,Independent Placements,A56006,0
Royal Borough of Kingston,01/08/2022,70029046,820,ASSOCIATION OF ADULT EDUCATION & TRAINING ORGANISATIONS,SUBSCRIPTIONS & PUBLICATIONS,Corporate & Communities,Subscriptions,A47010,0
Royal Borough of Kingston,01/08/2022,90156338,"4,852.08",ASTORIA HEALTHCARE LTD,SOCIAL SERVICES RESIDENTIAL,Adult Social Care & Health,Independent Placements,A56006,0
Royal Borough of Kingston,01/08/2022,90156554,"11,345.03",AUTISM CONSULTANTS LTD,SOCIAL SERVICES RESIDENTIAL,Adult Social Care & Health,Independent Placements,A56006,0
Royal Borough of Kingston,01/08/2022,90156693,526.48,BALANCE (SUPPORT) C.I.C,SOCIAL SERVICES - OTHER,Adult Social Care & Health,Supported Living - new framework,A56126,0
Royal Borough of Kingston,01/08/2022,90156694,"2,486.20",BALANCE (SUPPORT) C.I.C,SOCIAL SERVICES - OTHER,Adult Social Care & Health,Supported Living - new framework,A56126,0
Royal Borough of Kingston,01/08/2022,90156695,618.28,BALANCE (SUPPORT) C.I.C,SOCIAL SERVICES - OTHER,Adult Social Care & Health,Supported Living - new framework,A56126,0
Royal Borough of Kingston,01/08/2022,90156696,701.98,BALANCE (SUPPORT) C.I.C,SOCIAL SERVICES - OTHER,Adult Social Care & Health,Supported Living - new framework,A56126,0
Royal Borough of Kingston,01/08/2022,90156697,"1,864.64",BALANCE (SUPPORT) C.I.C,SOCIAL SERVICES - OTHER,Adult Social Care & Health,Supported Living - new framework,A56126,0
Royal Borough of Kingston,01/08/2022,90156702,"1,864.64",BALANCE (SUPPORT) C.I.C,SOCIAL SERVICES - OTHER,Adult Social Care & Health,Supported Living - new framework,A56126,0
Royal Borough of Kingston,01/08/2022,90156703,701.98,BALANCE (SUPPORT) C.I.C,SOCIAL SERVICES - OTHER,Adult Social Care & Health,Supported Living - new framework,A56126,0
Royal Borough of Kingston,01/08/2022,90157652,548.27,BALANCE (SUPPORT) C.I.C,SOCIAL SERVICES - OTHER,Adult Social Care & Health,Personal Budget - Third Party,A61019,0
Royal Borough of Kingston,01/08/2022,90157653,548.27,BALANCE (SUPPORT) C.I.C,SOCIAL SERVICES - OTHER,Adult Social Care & Health,Personal Budget - Third Party,A61019,0
Royal Borough of Kingston,01/08/2022,90157654,"12,933.64",BALANCE (SUPPORT) C.I.C,SOCIAL SERVICES - OTHER,Adult Social Care & Health,Personal Budget - Third Party,A61019,0
Royal Borough of Kingston,01/08/2022,90157750,"1,054.97",BALANCE (SUPPORT) C.I.C,SOCIAL SERVICES - OTHER,Adult Social Care & Health,Personal Budget - Third Party,A61019,0
Royal Borough of Kingston,01/08/2022,90157767,575.45,BALANCE (SUPPORT) C.I.C,SOCIAL SERVICES - OTHER,Adult Social Care & Health,Personal Budget - Third Party,A61019,0
Royal Borough of Kingston,01/08/2022,90157774,579.17,BALANCE (SUPPORT) C.I.C,SOCIAL SERVICES - OTHER,Adult Social Care & Health,Personal Budget - Third Party,A61019,0
Royal Borough of Kingston,01/08/2022,90157777,959.1,BALANCE (SUPPORT) C.I.C,SOCIAL SERVICES - OTHER,Adult Social Care & Health,Personal Budget - Third Party,A61019,0
Royal Borough of Kingston,01/08/2022,90157780,"1,342.70",BALANCE (SUPPORT) C.I.C,SOCIAL SERVICES - OTHER,Adult Social Care & Health,Personal Budget - Third Party,A61019,0
Royal Borough of Kingston,01/08/2022,90157781,959.1,BALANCE (SUPPORT) C.I.C,SOCIAL SERVICES - OTHER,Adult Social Care & Health,Personal Budget - Third Party,A61019,0
Royal Borough of Kingston,01/08/2022,90157782,527.49,BALANCE (SUPPORT) C.I.C,SOCIAL SERVICES - OTHER,Adult Social Care & Health,Personal Budget - Third Party,A61019,0
Royal Borough of Kingston,01/08/2022,90157787,"1,294.78",BALANCE (SUPPORT) C.I.C,SOCIAL SERVICES - OTHER,Adult Social Care & Health,Personal Budget - Third Party,A61019,0
Royal Borough of Kingston,01/08/2022,90157789,575.45,BALANCE (SUPPORT) C.I.C,SOCIAL SERVICES - OTHER,Adult Social Care & Health,Personal Budget - Third Party,A61019,0
Royal Borough of Kingston,01/08/2022,90157814,"2,205.87",BALANCE (SUPPORT) C.I.C,SOCIAL SERVICES - OTHER,Adult Social Care & Health,Personal Budget - Third Party,A61019,0
Royal Borough of Kingston,01/08/2022,90157817,"1,438.62",BALANCE (SUPPORT) C.I.C,SOCIAL SERVICES - OTHER,Adult Social Care & Health,Personal Budget - Third Party,A61019,0
Royal Borough of Kingston,01/08/2022,90157828,575.45,BALANCE (SUPPORT) C.I.C,SOCIAL SERVICES - OTHER,Adult Social Care & Health,Personal Budget - Third Party,A61019,0
Royal Borough of Kingston,01/08/2022,90157832,575.45,BALANCE (SUPPORT) C.I.C,SOCIAL SERVICES - OTHER,Adult Social Care & Health,Personal Budget - Third Party,A61019,0
Royal Borough of Kingston,01/08/2022,90157835,"1,534.50",BALANCE (SUPPORT) C.I.C,SOCIAL SERVICES - OTHER,Adult Social Care & Health,Personal Budget - Third Party,A61019,0
Royal Borough of Kingston,01/08/2022,90157836,"3,580.90",BALANCE (SUPPORT) C.I.C,SOCIAL SERVICES - OTHER,Adult Social Care & Health,Personal Budget - Third Party,A61019,0
Royal Borough of Kingston,01/08/2022,90157841,"2,644.74",BALANCE (SUPPORT) C.I.C,SOCIAL SERVICES - OTHER,Adult Social Care & Health,Personal Budget - Third Party,A61019,0
Royal Borough of Kingston,01/08/2022,90157842,671.37,BALANCE (SUPPORT) C.I.C,SOCIAL SERVICES - OTHER,Adult Social Care & Health,Personal Budget - Third Party,A61019,0
Royal Borough of Kingston,01/08/2022,90157844,767.25,BALANCE (SUPPORT) C.I.C,SOCIAL SERVICES - OTHER,Adult Social Care & Health,Personal Budget - Third Party,A61019,0
Royal Borough of Kingston,01/08/2022,90157847,"1,630.42",BALANCE (SUPPORT) C.I.C,SOCIAL SERVICES - OTHER,Adult Social Care & Health,Personal Budget - Third Party,A61019,0
Royal Borough of Kingston,01/08/2022,90157858,"1,438.62",BALANCE (SUPPORT) C.I.C,SOCIAL SERVICES - OTHER,Adult Social Care & Health,Personal Budget - Third Party,A61019,0
Royal Borough of Kingston,01/08/2022,90157879,863.17,BALANCE (SUPPORT) C.I.C,SOCIAL SERVICES - OTHER,Adult Social Care & Health,Personal Budget - Third Party,A61019,0
Royal Borough of Kingston,01/08/2022,90157880,"3,221.08",BALANCE (SUPPORT) C.I.C,SOCIAL SERVICES - OTHER,Adult Social Care & Health,Personal Budget - Third Party,A61019,0
Royal Borough of Kingston,01/08/2022,90157886,575.45,BALANCE (SUPPORT) C.I.C,SOCIAL SERVICES - OTHER,Adult Social Care & Health,Personal Budget - Third Party,A61019,0
Royal Borough of Kingston,01/08/2022,90157887,575.45,BALANCE (SUPPORT) C.I.C,SOCIAL SERVICES - OTHER,Adult Social Care & Health,Personal Budget - Third Party,A61019,0
Royal Borough of Kingston,01/08/2022,90157892,"3,139.77",BALANCE (SUPPORT) C.I.C,SOCIAL SERVICES - OTHER,Adult Social Care & Health,Personal Budget - Third Party,A61019,0
Royal Borough of Kingston,01/08/2022,90157893,"2,014.07",BALANCE (SUPPORT) C.I.C,SOCIAL SERVICES - OTHER,Adult Social Care & Health,Personal Budget - Third Party,A61019,0
Royal Borough of Kingston,01/08/2022,90157894,649.8,BALANCE (SUPPORT) C.I.C,SOCIAL SERVICES - OTHER,Adult Social Care & Health,Personal Budget - Third Party,A61019,0
Royal Borough of Kingston,01/08/2022,90157895,"3,411.46",BALANCE (SUPPORT) C.I.C,SOCIAL SERVICES - OTHER,Adult Social Care & Health,Personal Budget - Third Party,A61019,0
Royal Borough of Kingston,01/08/2022,90157912,"2,234.13",BALANCE (SUPPORT) C.I.C,SOCIAL SERVICES - OTHER,Adult Social Care & Health,Personal Budget - Third Party,A61019,0
Royal Borough of Kingston,01/08/2022,90157917,"1,246.82",BALANCE (SUPPORT) C.I.C,SOCIAL SERVICES - OTHER,Adult Social Care & Health,Personal Budget - Third Party,A61019,0
Royal Borough of Kingston,01/08/2022,90157936,767.25,BALANCE (SUPPORT) C.I.C,SOCIAL SERVICES - OTHER,Adult Social Care & Health,Personal Budget - Third Party,A61019,0
Royal Borough of Kingston,01/08/2022,90157939,"1,630.42",BALANCE (SUPPORT) C.I.C,SOCIAL SERVICES - OTHER,Adult Social Care & Health,Personal Budget - Third Party,A61019,0
Royal Borough of Kingston,01/08/2022,90157943,724.51,BALANCE (SUPPORT) C.I.C,SOCIAL SERVICES - OTHER,Adult Social Care & Health,Personal Budget - Third Party,A61019,0
Royal Borough of Kingston,01/08/2022,90157946,614.24,BALANCE (SUPPORT) C.I.C,SOCIAL SERVICES - OTHER,Adult Social Care & Health,Personal Budget - Third Party,A61019,0
Royal Borough of Kingston,01/08/2022,90157949,"3,022.81",BALANCE (SUPPORT) C.I.C,SOCIAL SERVICES - OTHER,Adult Social Care & Health,Personal Budget - Third Party,A61019,0
Royal Borough of Kingston,01/08/2022,90157971,"1,870.23",BALANCE (SUPPORT) C.I.C,SOCIAL SERVICES - OTHER,Adult Social Care & Health,Personal Budget - Third Party,A61019,0
Royal Borough of Kingston,01/08/2022,90157977,"1,007.06",BALANCE (SUPPORT) C.I.C,SOCIAL SERVICES - OTHER,Adult Social Care & Health,Personal Budget - Third Party,A61019,0
Royal Borough of Kingston,01/08/2022,90157978,575.45,BALANCE (SUPPORT) C.I.C,SOCIAL SERVICES - OTHER,Adult Social Care & Health,Personal Budget - Third Party,A61019,0
Royal Borough of Kingston,01/08/2022,90157980,"1,342.70",BALANCE (SUPPORT) C.I.C,SOCIAL SERVICES - OTHER,Adult Social Care & Health,Personal Budget - Third Party,A61019,0
Royal Borough of Kingston,01/08/2022,90157982,"1,246.82",BALANCE (SUPPORT) C.I.C,SOCIAL SERVICES - OTHER,Adult Social Care & Health,Personal Budget - Third Party,A61019,0
Royal Borough of Kingston,01/08/2022,90157983,575.45,BALANCE (SUPPORT) C.I.C,SOCIAL SERVICES - OTHER,Adult Social Care & Health,Personal Budget - Third Party,A61019,0
Royal Borough of Kingston,01/08/2022,90157985,"1,726.35",BALANCE (SUPPORT) C.I.C,SOCIAL SERVICES - OTHER,Adult Social Care & Health,Personal Budget - Third Party,A61019,0
Royal Borough of Kingston,01/08/2022,90157992,671.37,BALANCE (SUPPORT) C.I.C,SOCIAL SERVICES - OTHER,Adult Social Care & Health,Personal Budget - Third Party,A61019,0
Royal Borough of Kingston,01/08/2022,90158157,575.45,BALANCE (SUPPORT) C.I.C,SOCIAL SERVICES - OTHER,Adult Social Care & Health,Personal Budget - Third Party,A61019,0
Royal Borough of Kingston,01/08/2022,90158168,767.38,BALANCE (SUPPORT) C.I.C,SOCIAL SERVICES - OTHER,Adult Social Care & Health,Personal Budget - Third Party,A61019,0
Royal Borough of Kingston,01/08/2022,90158186,"1,151.07",BALANCE (SUPPORT) C.I.C,SOCIAL SERVICES - OTHER,Adult Social Care & Health,Personal Budget - Third Party,A61019,0
Royal Borough of Kingston,01/08/2022,90158191,767.38,BALANCE (SUPPORT) C.I.C,SOCIAL SERVICES - OTHER,Adult Social Care & Health,Personal Budget - Third Party,A61019,0
Royal Borough of Kingston,01/08/2022,90156247,"3,625.80",BARCHESTER HEALTHCARE ,SOCIAL SERVICES RESIDENTIAL,Adult Social Care & Health,Independent Placements,A56006,0
Royal Borough of Kingston,01/08/2022,90156467,"4,486.28",BAVANI CARE HOME LIMITED,SOCIAL SERVICES RESIDENTIAL,Adult Social Care & Health,Independent Placements,A56006,0
Royal Borough of Kingston,01/08/2022,90156472,"4,050.00",BAVANI CARE HOME LIMITED,SOCIAL SERVICES RESIDENTIAL,Adult Social Care & Health,Independent Placements,A56006,0
Royal Borough of Kingston,01/08/2022,90156473,"-4,050.00",BAVANI CARE HOME LIMITED,SOCIAL SERVICES RESIDENTIAL,Adult Social Care & Health,Independent Placements,A56006,0
Royal Borough of Kingston,01/08/2022,90156474,"1,050.00",BAVANI CARE HOME LIMITED,SOCIAL SERVICES RESIDENTIAL,Adult Social Care & Health,Independent Placements,A56006,0
Royal Borough of Kingston,01/08/2022,90156475,"3,085.71",BAVANI CARE HOME LIMITED,SOCIAL SERVICES RESIDENTIAL,Adult Social Care & Health,Independent Placements,A56006,0
Royal Borough of Kingston,01/08/2022,90156666,"2,700.00",BEECH LODGE,SOCIAL SERVICES RESIDENTIAL,Adult Social Care & Health,Other Private Contractors - Third Party,A56080,0
Royal Borough of Kingston,01/08/2022,90155662,603.63,BLUE ARROW CARE LTD,SOCIAL SERVICES-HOME CARE,Adult Social Care & Health,Personal Budget - Third Party,A61019,0
Royal Borough of Kingston,01/08/2022,90155665,543.26,BLUE ARROW CARE LTD,SOCIAL SERVICES-HOME CARE,Adult Social Care & Health,Personal Budget - Third Party,A61019,0
Royal Borough of Kingston,01/08/2022,90155676,543.26,BLUE ARROW CARE LTD,SOCIAL SERVICES-HOME CARE,Adult Social Care & Health,Personal Budget - Third Party,A61019,0
Royal Borough of Kingston,01/08/2022,90155701,543.26,BLUE ARROW CARE LTD,SOCIAL SERVICES-HOME CARE,Adult Social Care & Health,Personal Budget - Third Party,A61019,0
Royal Borough of Kingston,01/08/2022,90156860,673.75,Bright Star Care Service Ltd,SOCIAL SERVICES - OTHER,Adult Social Care & Health,Homecare - new framework,A56127,0
Royal Borough of Kingston,01/08/2022,90156941,612.51,Bright Star Care Service Ltd,SOCIAL SERVICES - OTHER,Adult Social Care & Health,Homecare - new framework,A56127,0
Royal Borough of Kingston,01/08/2022,90156994,551.25,Bright Star Care Service Ltd,SOCIAL SERVICES - OTHER,Adult Social Care & Health,Homecare - new framework,A56127,0
Royal Borough of Kingston,01/08/2022,90157020,"1,100.73",Bright Star Care Service Ltd,SOCIAL SERVICES - OTHER,Adult Social Care & Health,Homecare - new framework,A56127,0
Royal Borough of Kingston,01/08/2022,90158108,612.5,Bright Star Care Service Ltd,SOCIAL SERVICES - OTHER,Adult Social Care & Health,Personal Budget - Third Party,A61019,0
Royal Borough of Kingston,01/08/2022,70030618,"1,488.00",Buildvantage Limited,ACCOMMODATION BED & BREAKFAST,Place,Bed & Breakfast,A56000,0
Royal Borough of Kingston,01/08/2022,70030619,"1,488.00",Buildvantage Limited,ACCOMMODATION BED & BREAKFAST,Place,Bed & Breakfast,A56000,0
Royal Borough of Kingston,01/08/2022,70030620,"1,488.00",Buildvantage Limited,ACCOMMODATION BED & BREAKFAST,Place,Bed & Breakfast,A56000,0
Royal Borough of Kingston,01/08/2022,70030621,"1,488.00",Buildvantage Limited,ACCOMMODATION BED & BREAKFAST,Place,Bed & Breakfast,A56000,0
Royal Borough of Kingston,01/08/2022,70030622,"1,488.00",Buildvantage Limited,ACCOMMODATION BED & BREAKFAST,Place,Bed & Breakfast,A56000,0
Royal Borough of Kingston,01/08/2022,70030623,"1,488.00",Buildvantage Limited,ACCOMMODATION BED & BREAKFAST,Place,Bed & Breakfast,A56000,0
Royal Borough of Kingston,01/08/2022,70030624,"1,488.00",Buildvantage Limited,ACCOMMODATION BED & BREAKFAST,Place,Bed & Breakfast,A56000,0
Royal Borough of Kingston,01/08/2022,70030625,"1,302.00",Buildvantage Limited,ACCOMMODATION BED & BREAKFAST,Place,Bed & Breakfast,A56000,0
Royal Borough of Kingston,01/08/2022,70030626,"1,302.00",Buildvantage Limited,ACCOMMODATION BED & BREAKFAST,Place,Bed & Breakfast,A56000,0
Royal Borough of Kingston,01/08/2022,70030627,"1,488.00",Buildvantage Limited,ACCOMMODATION BED & BREAKFAST,Place,Bed & Breakfast,A56000,0
Royal Borough of Kingston,01/08/2022,70030628,"1,302.00",Buildvantage Limited,ACCOMMODATION BED & BREAKFAST,Place,Bed & Breakfast,A56000,0
Royal Borough of Kingston,01/08/2022,70030629,"1,488.00",Buildvantage Limited,ACCOMMODATION BED & BREAKFAST,Place,Bed & Breakfast,A56000,0
Royal Borough of Kingston,01/08/2022,70030630,"1,488.00",Buildvantage Limited,ACCOMMODATION BED & BREAKFAST,Place,Bed & Breakfast,A56000,0
Royal Borough of Kingston,01/08/2022,70030631,"1,488.00",Buildvantage Limited,ACCOMMODATION BED & BREAKFAST,Place,Bed & Breakfast,A56000,0
Royal Borough of Kingston,01/08/2022,70030632,"1,488.00",Buildvantage Limited,ACCOMMODATION BED & BREAKFAST,Place,Bed & Breakfast,A56000,0
Royal Borough of Kingston,01/08/2022,70030633,"1,488.00",Buildvantage Limited,ACCOMMODATION BED & BREAKFAST,Place,Bed & Breakfast,A56000,0
Royal Borough of Kingston,01/08/2022,70030634,"1,488.00",Buildvantage Limited,ACCOMMODATION BED & BREAKFAST,Place,Bed & Breakfast,A56000,0
Royal Borough of Kingston,01/08/2022,70030635,"1,488.00",Buildvantage Limited,ACCOMMODATION BED & BREAKFAST,Place,Bed & Breakfast,A56000,0
Royal Borough of Kingston,01/08/2022,70030636,"1,488.00",Buildvantage Limited,ACCOMMODATION BED & BREAKFAST,Place,Bed & Breakfast,A56000,0
Royal Borough of Kingston,01/08/2022,70030637,"1,488.00",Buildvantage Limited,ACCOMMODATION BED & BREAKFAST,Place,Bed & Breakfast,A56000,0
Royal Borough of Kingston,01/08/2022,70030638,"1,488.00",Buildvantage Limited,ACCOMMODATION BED & BREAKFAST,Place,Bed & Breakfast,A56000,0
Royal Borough of Kingston,01/08/2022,70030639,"1,488.00",Buildvantage Limited,ACCOMMODATION BED & BREAKFAST,Place,Bed & Breakfast,A56000,0
Royal Borough of Kingston,01/08/2022,90156341,"8,319.29",BUPA CARE HOMES (AKW) LIMITED,SOCIAL SERVICES RESIDENTIAL,Adult Social Care & Health,Independent Placements,A56006,0
Royal Borough of Kingston,01/08/2022,90156342,"9,007.98",BUPA CARE HOMES (AKW) LIMITED,SOCIAL SERVICES RESIDENTIAL,Adult Social Care & Health,Independent Placements,A56006,0
Royal Borough of Kingston,01/08/2022,90156620,"5,325.18",BUPA CARE HOMES (AKW) LIMITED,SOCIAL SERVICES RESIDENTIAL,Adult Social Care & Health,Independent Placements,A56006,0
Royal Borough of Kingston,01/08/2022,90157877,"5,425.80",CARE MANAGEMENT GROUP LTD,SOCIAL SERVICES RESIDENTIAL,Adult Social Care & Health,Personal Budget - Third Party,A61019,0
Royal Borough of Kingston,01/08/2022,90156354,"3,346.05",CARE UK COMMUNITY PARTNERSHIPS LTD,SOCIAL SERVICES RESIDENTIAL,Adult Social Care & Health,Independent Placements,A56006,0
Royal Borough of Kingston,01/08/2022,90156366,"3,450.96",CARE UK COMMUNITY PARTNERSHIPS LTD,SOCIAL SERVICES RESIDENTIAL,Adult Social Care & Health,Independent Placements,A56006,0
Royal Borough of Kingston,01/08/2022,90156442,"3,387.86",CARE UK COMMUNITY PARTNERSHIPS LTD,SOCIAL SERVICES RESIDENTIAL,Adult Social Care & Health,Independent Placements,A56006,0
Royal Borough of Kingston,01/08/2022,90156492,"4,141.16",CARE UK COMMUNITY PARTNERSHIPS LTD,SOCIAL SERVICES RESIDENTIAL,Adult Social Care & Health,Independent Placements,A56006,0
Royal Borough of Kingston,01/08/2022,90156509,"2,788.36",CARE UK COMMUNITY PARTNERSHIPS LTD,SOCIAL SERVICES RESIDENTIAL,Adult Social Care & Health,Independent Placements,A56006,0
Royal Borough of Kingston,01/08/2022,90156270,"3,675.71",Caring Homes Healthcare Group Limited,SOCIAL SERVICES RESIDENTIAL,Adult Social Care & Health,Independent Placements,A56006,0
Royal Borough of Kingston,01/08/2022,90155132,735.01,CARLCARE LTD,SOCIAL SERVICES-HOME CARE,Adult Social Care & Health,Homecare - new framework,A56127,0
Royal Borough of Kingston,01/08/2022,90155462,595.01,CARLCARE LTD,SOCIAL SERVICES-HOME CARE,Adult Social Care & Health,Homecare - new framework,A56127,0
Royal Borough of Kingston,01/08/2022,90156580,"9,470.46",CARTREF HOMES,SOCIAL SERVICES RESIDENTIAL,Adult Social Care & Health,Independent Placements,A56006,0
Royal Borough of Kingston,01/08/2022,90156556,"14,023.69",CAS CARE SERVICES LTD,SOCIAL SERVICES - OTHER,Adult Social Care & Health,Independent Placements,A56006,0
Royal Borough of Kingston,01/08/2022,90156596,"14,023.69",CAS CARE SERVICES LTD,SOCIAL SERVICES - OTHER,Adult Social Care & Health,Independent Placements,A56006,0
Royal Borough of Kingston,01/08/2022,90156571,"11,152.12",CAVENDISH CARE,SOCIAL SERVICES RESIDENTIAL,Adult Social Care & Health,Independent Placements,A56006,0
Royal Borough of Kingston,01/08/2022,90155029,"2,671.43",CHD (CARE HOMES) LTD,SOCIAL SERVICES RESIDENTIAL,Adult Social Care & Health,Other Private Contractors - Third Party,A56080,0
Royal Borough of Kingston,01/08/2022,90156417,"3,681.03",CHD (CARE HOMES) LTD,SOCIAL SERVICES RESIDENTIAL,Adult Social Care & Health,Independent Placements,A56006,0
Royal Borough of Kingston,01/08/2022,90156526,"3,614.29",CHD (CARE HOMES) LTD,SOCIAL SERVICES RESIDENTIAL,Adult Social Care & Health,Independent Placements,A56006,0
Royal Borough of Kingston,01/08/2022,90156423,"1,104.31",CHD LIVING,SOCIAL SERVICES RESIDENTIAL,Adult Social Care & Health,Independent Placements,A56006,0
Royal Borough of Kingston,01/08/2022,90156251,"4,371.22",CHISWICK NURSING CENTRE,SOCIAL SERVICES RESIDENTIAL,Adult Social Care & Health,Independent Placements,A56006,0
Royal Borough of Kingston,01/08/2022,90156333,"3,895.75",CHISWICK NURSING CENTRE,SOCIAL SERVICES RESIDENTIAL,Adult Social Care & Health,Independent Placements,A56006,0
Royal Borough of Kingston,01/08/2022,90156334,"4,830.73",CHISWICK NURSING CENTRE,SOCIAL SERVICES RESIDENTIAL,Adult Social Care & Health,Independent Placements,A56006,0
Royal Borough of Kingston,01/08/2022,90156335,"3,818.99",CHISWICK NURSING CENTRE,SOCIAL SERVICES RESIDENTIAL,Adult Social Care & Health,Independent Placements,A56006,0
Royal Borough of Kingston,01/08/2022,90156420,"3,755.03",CHISWICK NURSING CENTRE,SOCIAL SERVICES RESIDENTIAL,Adult Social Care & Health,Independent Placements,A56006,0
Royal Borough of Kingston,01/08/2022,90156457,"3,434.40",CHISWICK NURSING CENTRE,SOCIAL SERVICES RESIDENTIAL,Adult Social Care & Health,Independent Placements,A56006,0
Royal Borough of Kingston,01/08/2022,90156591,"8,132.76",CHOICE LTD,SOCIAL SERVICES RESIDENTIAL,Adult Social Care & Health,Independent Placements,A56006,0
Royal Borough of Kingston,01/08/2022,90156598,"7,186.20",CHOICE LTD,SOCIAL SERVICES RESIDENTIAL,Adult Social Care & Health,Independent Placements,A56006,0
Royal Borough of Kingston,01/08/2022,90157766,"5,939.29",CHRISTIES CARE LTD,SOCIAL SERVICES RESIDENTIAL,Adult Social Care & Health,Personal Budget - Third Party,A61019,0
Royal Borough of Kingston,01/08/2022,90157849,"-1,253.71",CHRISTIES CARE LTD,SOCIAL SERVICES RESIDENTIAL,Adult Social Care & Health,Personal Budget - Third Party,A61019,0
Royal Borough of Kingston,01/08/2022,90157850,"1,074.61",CHRISTIES CARE LTD,SOCIAL SERVICES RESIDENTIAL,Adult Social Care & Health,Personal Budget - Third Party,A61019,0
Royal Borough of Kingston,01/08/2022,90157852,"5,776.98",CHRISTIES CARE LTD,SOCIAL SERVICES RESIDENTIAL,Adult Social Care & Health,Personal Budget - Third Party,A61019,0
Royal Borough of Kingston,01/08/2022,90157913,"5,574.29",CHRISTIES CARE LTD,SOCIAL SERVICES RESIDENTIAL,Adult Social Care & Health,Personal Budget - Third Party,A61019,0
Royal Borough of Kingston,01/08/2022,90156601,"8,811.48",CLEARWATER CARE (HACKNEY) LTD,SOCIAL SERVICES RESIDENTIAL,Adult Social Care & Health,Independent Placements,A56006,0
Royal Borough of Kingston,01/08/2022,90158195,"6,317.00",CLIA Care Ltd,ACCOMMODATION - OTHER,Adult Social Care & Health,Personal Budget - Third Party,A61019,0
Royal Borough of Kingston,01/08/2022,90157846,"3,050.18",CMG LIMITED,SOCIAL SERVICES - OTHER,Adult Social Care & Health,Personal Budget - Third Party,A61019,0
Royal Borough of Kingston,01/08/2022,90157888,"5,534.03",CMG LIMITED,SOCIAL SERVICES - OTHER,Adult Social Care & Health,Personal Budget - Third Party,A61019,0
Royal Borough of Kingston,01/08/2022,90157889,"5,501.22",CMG LIMITED,SOCIAL SERVICES - OTHER,Adult Social Care & Health,Personal Budget - Third Party,A61019,0
Royal Borough of Kingston,01/08/2022,90157902,"6,040.53",CMG LIMITED,SOCIAL SERVICES - OTHER,Adult Social Care & Health,Personal Budget - Third Party,A61019,0
Royal Borough of Kingston,01/08/2022,90157915,930.27,CMG LIMITED,SOCIAL SERVICES - OTHER,Adult Social Care & Health,Personal Budget - Third Party,A61019,0
Royal Borough of Kingston,01/08/2022,90157916,"4,019.02",CMG LIMITED,SOCIAL SERVICES - OTHER,Adult Social Care & Health,Personal Budget - Third Party,A61019,0
Royal Borough of Kingston,01/08/2022,90157990,"4,794.24",CMG LIMITED,SOCIAL SERVICES - OTHER,Adult Social Care & Health,Personal Budget - Third Party,A61019,0
Royal Borough of Kingston,01/08/2022,90156916,551.25,CN Healthcare,SOCIAL SERVICES - OTHER,Adult Social Care & Health,Homecare - new framework,A56127,0
Royal Borough of Kingston,01/08/2022,90156929,918.76,CN Healthcare,SOCIAL SERVICES - OTHER,Adult Social Care & Health,Homecare - new framework,A56127,0
Royal Borough of Kingston,01/08/2022,90156623,"14,022.05",COGNITHAN,SOCIAL SERVICES RESIDENTIAL,Adult Social Care & Health,Independent Placements,A56006,0
Royal Borough of Kingston,01/08/2022,90156579,"8,102.87",COMMUNITY CARE SOLUTIONS LTD,SOCIAL SERVICES RESIDENTIAL,Adult Social Care & Health,Independent Placements,A56006,0
Royal Borough of Kingston,01/08/2022,90156582,"8,363.45",CONGRESS HOUSE LIMITED,SOCIAL SERVICES RESIDENTIAL,Adult Social Care & Health,Independent Placements,A56006,0
Royal Borough of Kingston,01/08/2022,90156367,"3,528.91",COUNTRY COURT CARE HOMES 2 LTD,SOCIAL SERVICES RESIDENTIAL,Adult Social Care & Health,Independent Placements,A56006,0
Royal Borough of Kingston,01/08/2022,90156372,607.14,COUNTRY COURT CARE HOMES 2 LTD,SOCIAL SERVICES RESIDENTIAL,Adult Social Care & Health,Independent Placements,A56006,0
Royal Borough of Kingston,01/08/2022,90156373,"2,792.86",COUNTRY COURT CARE HOMES 2 LTD,SOCIAL SERVICES RESIDENTIAL,Adult Social Care & Health,Independent Placements,A56006,0
Royal Borough of Kingston,01/08/2022,90156404,"3,450.96",COUNTRY COURT CARE HOMES 2 LTD,SOCIAL SERVICES RESIDENTIAL,Adult Social Care & Health,Independent Placements,A56006,0
Royal Borough of Kingston,01/08/2022,90156419,"3,529.17",COUNTRY COURT CARE HOMES 2 LTD,SOCIAL SERVICES RESIDENTIAL,Adult Social Care & Health,Independent Placements,A56006,0
Royal Borough of Kingston,01/08/2022,90156425,"3,529.17",COUNTRY COURT CARE HOMES 2 LTD,SOCIAL SERVICES RESIDENTIAL,Adult Social Care & Health,Independent Placements,A56006,0
Royal Borough of Kingston,01/08/2022,90156439,"3,460.18",COUNTRY COURT CARE HOMES 2 LTD,SOCIAL SERVICES RESIDENTIAL,Adult Social Care & Health,Independent Placements,A56006,0
Royal Borough of Kingston,01/08/2022,90156498,"1,335.71",COUNTRY COURT CARE HOMES 2 LTD,SOCIAL SERVICES RESIDENTIAL,Adult Social Care & Health,Independent Placements,A56006,0
Royal Borough of Kingston,01/08/2022,90156499,"3,764.29",COUNTRY COURT CARE HOMES 2 LTD,SOCIAL SERVICES RESIDENTIAL,Adult Social Care & Health,Independent Placements,A56006,0
Royal Borough of Kingston,01/08/2022,90156520,"3,278.57",COUNTRY COURT CARE HOMES 2 LTD,SOCIAL SERVICES RESIDENTIAL,Adult Social Care & Health,Independent Placements,A56006,0
Royal Borough of Kingston,01/08/2022,70029877,"560,046.77",COUNTRYSIDE PROPERTIES (UK) LTD,CONSTRUCTION INDUSTRY,Capital Programme,Payments to Contractors,C14000,0
Royal Borough of Kingston,01/08/2022,70029878,"119,585.26",COUNTRYSIDE PROPERTIES (UK) LTD,CONSTRUCTION INDUSTRY,Capital Programme,Payments to Contractors,C14000,0
Royal Borough of Kingston,01/08/2022,70029879,"159,422.42",COUNTRYSIDE PROPERTIES (UK) LTD,CONSTRUCTION INDUSTRY,Capital Programme,Payments to Contractors,C14000,0
Royal Borough of Kingston,01/08/2022,70030586,"1,922.00",CRYSTAL & CO,ACCOMMODATION BED & BREAKFAST,Place,Bed & Breakfast,A56000,0
Royal Borough of Kingston,01/08/2022,70030587,"1,922.00",CRYSTAL & CO,ACCOMMODATION BED & BREAKFAST,Place,Bed & Breakfast,A56000,0
Royal Borough of Kingston,01/08/2022,70030588,"1,922.00",CRYSTAL & CO,ACCOMMODATION BED & BREAKFAST,Place,Bed & Breakfast,A56000,0
Royal Borough of Kingston,01/08/2022,70030589,"1,240.00",CRYSTAL & CO,ACCOMMODATION BED & BREAKFAST,Place,Bed & Breakfast,A56000,0
Royal Borough of Kingston,01/08/2022,70030590,"1,581.00",CRYSTAL & CO,ACCOMMODATION BED & BREAKFAST,Place,Bed & Breakfast,A56000,0
Royal Borough of Kingston,01/08/2022,70030591,"1,922.00",CRYSTAL & CO,ACCOMMODATION BED & BREAKFAST,Place,Bed & Breakfast,A56000,0
Royal Borough of Kingston,01/08/2022,70030593,"1,643.00",CRYSTAL & CO,ACCOMMODATION BED & BREAKFAST,Place,Bed & Breakfast,A56000,0
Royal Borough of Kingston,01/08/2022,70030595,"1,922.00",CRYSTAL & CO,ACCOMMODATION BED & BREAKFAST,Place,Bed & Breakfast,A56000,0
Royal Borough of Kingston,01/08/2022,70030596,"1,302.00",CRYSTAL & CO,ACCOMMODATION BED & BREAKFAST,Place,Bed & Breakfast,A56000,0
Royal Borough of Kingston,01/08/2022,70030597,"1,581.00",CRYSTAL & CO,ACCOMMODATION BED & BREAKFAST,Place,Bed & Breakfast,A56000,0
Royal Borough of Kingston,01/08/2022,70030598,"1,581.00",CRYSTAL & CO,ACCOMMODATION BED & BREAKFAST,Place,Bed & Breakfast,A56000,0
Royal Borough of Kingston,01/08/2022,70030599,"1,581.00",CRYSTAL & CO,ACCOMMODATION BED & BREAKFAST,Place,Bed & Breakfast,A56000,0
Royal Borough of Kingston,01/08/2022,90155619,590.69,DAY AND NITE SERVICES (KINGSTON),SOCIAL SERVICES-HOME CARE,Adult Social Care & Health,Personal Budget - Third Party,A61019,0
Royal Borough of Kingston,01/08/2022,90155623,543.26,DAY AND NITE SERVICES (KINGSTON),SOCIAL SERVICES-HOME CARE,Adult Social Care & Health,Personal Budget - Third Party,A61019,0
Royal Borough of Kingston,01/08/2022,90155697,543.26,DAY AND NITE SERVICES (KINGSTON),SOCIAL SERVICES-HOME CARE,Adult Social Care & Health,Personal Budget - Third Party,A61019,0
Royal Borough of Kingston,01/08/2022,90155731,663.99,DAY AND NITE SERVICES (KINGSTON),SOCIAL SERVICES-HOME CARE,Adult Social Care & Health,Personal Budget - Third Party,A61019,0
Royal Borough of Kingston,01/08/2022,90155742,603.63,DAY AND NITE SERVICES (KINGSTON),SOCIAL SERVICES-HOME CARE,Adult Social Care & Health,Personal Budget - Third Party,A61019,0
Royal Borough of Kingston,01/08/2022,70030647,"2,790.00",Delta Wise Limited,ACCOMMODATION BED & BREAKFAST,Place,Bed & Breakfast,A56000,0
Royal Borough of Kingston,01/08/2022,70030651,"1,440.00",Delta Wise Limited,ACCOMMODATION BED & BREAKFAST,Place,Bed & Breakfast,A56000,0
Royal Borough of Kingston,01/08/2022,70030654,"1,860.00",Delta Wise Limited,ACCOMMODATION BED & BREAKFAST,Place,Bed & Breakfast,A56000,0
Royal Borough of Kingston,01/08/2022,70030694,"1,782.00",Delta Wise Limited,ACCOMMODATION BED & BREAKFAST,Place,Bed & Breakfast,A56000,0
Royal Borough of Kingston,01/08/2022,90158155,"6,665.00",Dephinus Healthcare Ltd,ACCOMMODATION - OTHER,Adult Social Care & Health,Personal Budget - Third Party,A61019,0
Royal Borough of Kingston,01/08/2022,90158176,"12,178.57",Dephinus Healthcare Ltd,ACCOMMODATION - OTHER,Adult Social Care & Health,Personal Budget - Third Party,A61019,0
Royal Borough of Kingston,01/08/2022,90156607,"5,534.83",DOWNING (CHERTSEY ROAD) LTD,SOCIAL SERVICES RESIDENTIAL,Adult Social Care & Health,Independent Placements,A56006,0
Royal Borough of Kingston,01/08/2022,90156551,"9,884.57",ELYSIUM HEALTHCARE LTD,SOCIAL SERVICES - OTHER,Adult Social Care & Health,Independent Placements,A56006,0
Royal Borough of Kingston,01/08/2022,90156558,"9,536.80",ELYSIUM HEALTHCARE LTD,SOCIAL SERVICES - OTHER,Adult Social Care & Health,Independent Placements,A56006,0
Royal Borough of Kingston,01/08/2022,90156560,"11,347.02",ELYSIUM HEALTHCARE LTD,SOCIAL SERVICES - OTHER,Adult Social Care & Health,Independent Placements,A56006,0
Royal Borough of Kingston,01/08/2022,90156564,"8,052.25",ELYSIUM HEALTHCARE LTD,SOCIAL SERVICES - OTHER,Adult Social Care & Health,Independent Placements,A56006,0
Royal Borough of Kingston,01/08/2022,90156567,"10,084.65",ELYSIUM HEALTHCARE LTD,SOCIAL SERVICES - OTHER,Adult Social Care & Health,Independent Placements,A56006,0
Royal Borough of Kingston,01/08/2022,90156587,"9,884.57",ELYSIUM HEALTHCARE LTD,SOCIAL SERVICES - OTHER,Adult Social Care & Health,Independent Placements,A56006,0
Royal Borough of Kingston,01/08/2022,90156700,"4,136.02",EMEZZIONS LIMITED,SOCIAL SERVICES - OTHER,Adult Social Care & Health,Supported Living - new framework,A56126,0
Royal Borough of Kingston,01/08/2022,90156701,"2,232.37",EMEZZIONS LIMITED,SOCIAL SERVICES - OTHER,Adult Social Care & Health,Supported Living - new framework,A56126,0
Royal Borough of Kingston,01/08/2022,90156715,"3,039.03",EMEZZIONS LIMITED,SOCIAL SERVICES - OTHER,Adult Social Care & Health,Supported Living - new framework,A56126,0
Royal Borough of Kingston,01/08/2022,90156716,"2,232.37",EMEZZIONS LIMITED,SOCIAL SERVICES - OTHER,Adult Social Care & Health,Supported Living - new framework,A56126,0
Royal Borough of Kingston,01/08/2022,90156717,"4,731.60",EMEZZIONS LIMITED,SOCIAL SERVICES - OTHER,Adult Social Care & Health,Supported Living - new framework,A56126,0
Royal Borough of Kingston,01/08/2022,90156718,"2,232.37",EMEZZIONS LIMITED,SOCIAL SERVICES - OTHER,Adult Social Care & Health,Supported Living - new framework,A56126,0
Royal Borough of Kingston,01/08/2022,90156720,"9,767.10",EMEZZIONS LIMITED,SOCIAL SERVICES - OTHER,Adult Social Care & Health,Supported Living - new framework,A56126,0
Royal Borough of Kingston,01/08/2022,90156722,"2,649.86",EMEZZIONS LIMITED,SOCIAL SERVICES - OTHER,Adult Social Care & Health,Supported Living - new framework,A56126,0
Royal Borough of Kingston,01/08/2022,90156723,"3,534.56",EMEZZIONS LIMITED,SOCIAL SERVICES - OTHER,Adult Social Care & Health,Supported Living - new framework,A56126,0
Royal Borough of Kingston,01/08/2022,90156725,"14,182.13",EMEZZIONS LIMITED,SOCIAL SERVICES - OTHER,Adult Social Care & Health,Supported Living - new framework,A56126,0
Royal Borough of Kingston,01/08/2022,90156728,"3,651.05",EMEZZIONS LIMITED,SOCIAL SERVICES - OTHER,Adult Social Care & Health,Supported Living - new framework,A56126,0
Royal Borough of Kingston,01/08/2022,90156729,"2,232.37",EMEZZIONS LIMITED,SOCIAL SERVICES - OTHER,Adult Social Care & Health,Supported Living - new framework,A56126,0
Royal Borough of Kingston,01/08/2022,90156416,"3,349.68",ENHAM,SOCIAL SERVICES - OTHER,Adult Social Care & Health,Independent Placements,A56006,0
Royal Borough of Kingston,01/08/2022,90156685,"31,227.10",ENHANCEABLE,SOCIAL SERVICES - OTHER,Adult Social Care & Health,Other Private Contractors - Third Party,A56080,0
Royal Borough of Kingston,01/08/2022,90156689,525.01,ENHANCEABLE,SOCIAL SERVICES - OTHER,Adult Social Care & Health,Other Private Contractors - Third Party,A56080,0
Royal Borough of Kingston,01/08/2022,90157897,"1,688.35",ENHANCEABLE,SOCIAL SERVICES - OTHER,Adult Social Care & Health,Personal Budget - Third Party,A61019,0
Royal Borough of Kingston,01/08/2022,90158231,937.97,ENHANCEABLE,SOCIAL SERVICES - OTHER,Adult Social Care & Health,Personal Budget - Third Party,A61019,0
Royal Borough of Kingston,01/08/2022,90158232,"1,031.77",ENHANCEABLE,SOCIAL SERVICES - OTHER,Adult Social Care & Health,Personal Budget - Third Party,A61019,0
Royal Borough of Kingston,01/08/2022,70030167,"1,829.00",EXCLUSIVE FINE HOMES LTD,ACCOMMODATION BED & BREAKFAST,Place,Bed & Breakfast,A56000,0
Royal Borough of Kingston,01/08/2022,70030168,"4,650.00",EXCLUSIVE FINE HOMES LTD,ACCOMMODATION BED & BREAKFAST,Place,Bed & Breakfast,A56000,0
Royal Borough of Kingston,01/08/2022,70030169,"4,650.00",EXCLUSIVE FINE HOMES LTD,ACCOMMODATION BED & BREAKFAST,Place,Bed & Breakfast,A56000,0
Royal Borough of Kingston,01/08/2022,70030170,"1,674.00",EXCLUSIVE FINE HOMES LTD,ACCOMMODATION BED & BREAKFAST,Place,Bed & Breakfast,A56000,0
Royal Borough of Kingston,01/08/2022,70030171,"1,829.00",EXCLUSIVE FINE HOMES LTD,ACCOMMODATION BED & BREAKFAST,Place,Bed & Breakfast,A56000,0
Royal Borough of Kingston,01/08/2022,70030172,"2,108.00",EXCLUSIVE FINE HOMES LTD,ACCOMMODATION BED & BREAKFAST,Place,Bed & Breakfast,A56000,0
Royal Borough of Kingston,01/08/2022,90156616,"4,984.49",FAMILY INVESTMENT (THREE) LIMITED,SOCIAL SERVICES RESIDENTIAL,Adult Social Care & Health,Independent Placements,A56006,0
Royal Borough of Kingston,01/08/2022,70028974,"3,000.00",FLEXRM LIMITED,OPERATIONAL EQUIPMENT/MATERIAL,Corporate & Communities,IT Software Maintenance,A45045,0
Royal Borough of Kingston,01/08/2022,90156296,"2,861.21",FOUR SEASONS 2000LTD,SOCIAL SERVICES RESIDENTIAL,Adult Social Care & Health,Independent Placements,A56006,0
Royal Borough of Kingston,01/08/2022,90155024,"2,178.78",FOUR SEASONS HEALTHCARE,SOCIAL SERVICES RESIDENTIAL,Adult Social Care & Health,Independent Placements,A56006,0
Royal Borough of Kingston,01/08/2022,90155025,"3,112.54",FOUR SEASONS HEALTHCARE,SOCIAL SERVICES RESIDENTIAL,Adult Social Care & Health,Independent Placements,A56006,0
Royal Borough of Kingston,01/08/2022,90155026,"3,216.29",FOUR SEASONS HEALTHCARE,SOCIAL SERVICES RESIDENTIAL,Adult Social Care & Health,Independent Placements,A56006,0
Royal Borough of Kingston,01/08/2022,90156235,"3,520.01",FOUR SEASONS HEALTHCARE,SOCIAL SERVICES RESIDENTIAL,Adult Social Care & Health,Independent Placements,A56006,0
Royal Borough of Kingston,01/08/2022,90156240,"3,450.96",FOUR SEASONS HEALTHCARE,SOCIAL SERVICES RESIDENTIAL,Adult Social Care & Health,Independent Placements,A56006,0
Royal Borough of Kingston,01/08/2022,90156242,"3,542.86",FOUR SEASONS HEALTHCARE,SOCIAL SERVICES RESIDENTIAL,Adult Social Care & Health,Independent Placements,A56006,0
Royal Borough of Kingston,01/08/2022,90156252,"3,434.40",FOUR SEASONS HEALTHCARE,SOCIAL SERVICES RESIDENTIAL,Adult Social Care & Health,Independent Placements,A56006,0
Royal Borough of Kingston,01/08/2022,90156258,"5,473.71",FOUR SEASONS HEALTHCARE,SOCIAL SERVICES RESIDENTIAL,Adult Social Care & Health,Independent Placements,A56006,0
Royal Borough of Kingston,01/08/2022,90156259,"4,944.00",FOUR SEASONS HEALTHCARE,SOCIAL SERVICES RESIDENTIAL,Adult Social Care & Health,Independent Placements,A56006,0
Royal Borough of Kingston,01/08/2022,90156260,"5,473.71",FOUR SEASONS HEALTHCARE,SOCIAL SERVICES RESIDENTIAL,Adult Social Care & Health,Independent Placements,A56006,0
Royal Borough of Kingston,01/08/2022,90156261,"5,297.14",FOUR SEASONS HEALTHCARE,SOCIAL SERVICES RESIDENTIAL,Adult Social Care & Health,Independent Placements,A56006,0
Royal Borough of Kingston,01/08/2022,90156262,"5,473.71",FOUR SEASONS HEALTHCARE,SOCIAL SERVICES RESIDENTIAL,Adult Social Care & Health,Independent Placements,A56006,0
Royal Borough of Kingston,01/08/2022,90156263,"5,297.14",FOUR SEASONS HEALTHCARE,SOCIAL SERVICES RESIDENTIAL,Adult Social Care & Health,Independent Placements,A56006,0
Royal Borough of Kingston,01/08/2022,90156264,"5,473.71",FOUR SEASONS HEALTHCARE,SOCIAL SERVICES RESIDENTIAL,Adult Social Care & Health,Independent Placements,A56006,0
Royal Borough of Kingston,01/08/2022,90156265,"5,473.71",FOUR SEASONS HEALTHCARE,SOCIAL SERVICES RESIDENTIAL,Adult Social Care & Health,Independent Placements,A56006,0
Royal Borough of Kingston,01/08/2022,90156271,"3,013.86",FOUR SEASONS HEALTHCARE,SOCIAL SERVICES RESIDENTIAL,Adult Social Care & Health,Independent Placements,A56006,0
Royal Borough of Kingston,01/08/2022,90156273,"3,520.01",FOUR SEASONS HEALTHCARE,SOCIAL SERVICES RESIDENTIAL,Adult Social Care & Health,Independent Placements,A56006,0
Royal Borough of Kingston,01/08/2022,90156275,"3,450.96",FOUR SEASONS HEALTHCARE,SOCIAL SERVICES RESIDENTIAL,Adult Social Care & Health,Independent Placements,A56006,0
Royal Borough of Kingston,01/08/2022,90156294,"3,013.86",FOUR SEASONS HEALTHCARE,SOCIAL SERVICES RESIDENTIAL,Adult Social Care & Health,Independent Placements,A56006,0
Royal Borough of Kingston,01/08/2022,90156297,"3,229.62",FOUR SEASONS HEALTHCARE,SOCIAL SERVICES RESIDENTIAL,Adult Social Care & Health,Independent Placements,A56006,0
Royal Borough of Kingston,01/08/2022,90156330,"3,317.53",FOUR SEASONS HEALTHCARE,SOCIAL SERVICES RESIDENTIAL,Adult Social Care & Health,Independent Placements,A56006,0
Royal Borough of Kingston,01/08/2022,90156331,"1,142.86",FOUR SEASONS HEALTHCARE,SOCIAL SERVICES RESIDENTIAL,Adult Social Care & Health,Independent Placements,A56006,0
Royal Borough of Kingston,01/08/2022,90156332,"3,542.86",FOUR SEASONS HEALTHCARE,SOCIAL SERVICES RESIDENTIAL,Adult Social Care & Health,Independent Placements,A56006,0
Royal Borough of Kingston,01/08/2022,90156337,"3,450.96",FOUR SEASONS HEALTHCARE,SOCIAL SERVICES RESIDENTIAL,Adult Social Care & Health,Independent Placements,A56006,0
Royal Borough of Kingston,01/08/2022,90156421,"3,216.29",FOUR SEASONS HEALTHCARE,SOCIAL SERVICES RESIDENTIAL,Adult Social Care & Health,Independent Placements,A56006,0
Royal Borough of Kingston,01/08/2022,90156437,"3,358.94",FOUR SEASONS HEALTHCARE,SOCIAL SERVICES RESIDENTIAL,Adult Social Care & Health,Independent Placements,A56006,0
Royal Borough of Kingston,01/08/2022,90156448,"3,229.62",FOUR SEASONS HEALTHCARE,SOCIAL SERVICES RESIDENTIAL,Adult Social Care & Health,Independent Placements,A56006,0
Royal Borough of Kingston,01/08/2022,90156518,"1,928.57",FOUR SEASONS HEALTHCARE,SOCIAL SERVICES RESIDENTIAL,Adult Social Care & Health,Independent Placements,A56006,0
Royal Borough of Kingston,01/08/2022,90156523,"2,571.43",FOUR SEASONS HEALTHCARE,SOCIAL SERVICES RESIDENTIAL,Adult Social Care & Health,Independent Placements,A56006,0
Royal Borough of Kingston,01/08/2022,90156527,535.71,FOUR SEASONS HEALTHCARE,SOCIAL SERVICES RESIDENTIAL,Adult Social Care & Health,Independent Placements,A56006,0
Royal Borough of Kingston,01/08/2022,90156528,-750,FOUR SEASONS HEALTHCARE,SOCIAL SERVICES RESIDENTIAL,Adult Social Care & Health,Independent Placements,A56006,0
Royal Borough of Kingston,01/08/2022,90156529,"-2,250.00",FOUR SEASONS HEALTHCARE,SOCIAL SERVICES RESIDENTIAL,Adult Social Care & Health,Independent Placements,A56006,0
Royal Borough of Kingston,01/08/2022,90156530,642.86,FOUR SEASONS HEALTHCARE,SOCIAL SERVICES RESIDENTIAL,Adult Social Care & Health,Independent Placements,A56006,0
Royal Borough of Kingston,01/08/2022,90156531,857.14,FOUR SEASONS HEALTHCARE,SOCIAL SERVICES RESIDENTIAL,Adult Social Care & Health,Independent Placements,A56006,0
Royal Borough of Kingston,01/08/2022,90158171,"17,629.17",Freshstart Care Solutions Ltd,ACCOMMODATION - OTHER,Adult Social Care & Health,Personal Budget - Third Party,A61019,0
Royal Borough of Kingston,01/08/2022,90157647,632.14,GENEVA ROAD LIMITED,SOCIAL SERVICES RESIDENTIAL,Adult Social Care & Health,Personal Budget - Third Party,A61019,0
Royal Borough of Kingston,01/08/2022,90157648,693.51,GENEVA ROAD LIMITED,SOCIAL SERVICES RESIDENTIAL,Adult Social Care & Health,Personal Budget - Third Party,A61019,0
Royal Borough of Kingston,01/08/2022,90157649,"1,850.00",GENEVA ROAD LIMITED,SOCIAL SERVICES RESIDENTIAL,Adult Social Care & Health,Personal Budget - Third Party,A61019,0
Royal Borough of Kingston,01/08/2022,90157663,"1,107.14",GENEVA ROAD LIMITED,SOCIAL SERVICES RESIDENTIAL,Adult Social Care & Health,Personal Budget - Third Party,A61019,0
Royal Borough of Kingston,01/08/2022,90157664,"1,107.14",GENEVA ROAD LIMITED,SOCIAL SERVICES RESIDENTIAL,Adult Social Care & Health,Personal Budget - Third Party,A61019,0
Royal Borough of Kingston,01/08/2022,90157678,"1,271.44",GENEVA ROAD LIMITED,SOCIAL SERVICES RESIDENTIAL,Adult Social Care & Health,Personal Budget - Third Party,A61019,0
Royal Borough of Kingston,01/08/2022,90157679,"1,107.14",GENEVA ROAD LIMITED,SOCIAL SERVICES RESIDENTIAL,Adult Social Care & Health,Personal Budget - Third Party,A61019,0
Royal Borough of Kingston,01/08/2022,90157684,442.86,GENEVA ROAD LIMITED,SOCIAL SERVICES RESIDENTIAL,Adult Social Care & Health,Personal Budget - Third Party,A61019,0
Royal Borough of Kingston,01/08/2022,90157685,442.86,GENEVA ROAD LIMITED,SOCIAL SERVICES RESIDENTIAL,Adult Social Care & Health,Personal Budget - Third Party,A61019,0
Royal Borough of Kingston,01/08/2022,90157687,664.29,GENEVA ROAD LIMITED,SOCIAL SERVICES RESIDENTIAL,Adult Social Care & Health,Personal Budget - Third Party,A61019,0
Royal Borough of Kingston,01/08/2022,90157688,664.29,GENEVA ROAD LIMITED,SOCIAL SERVICES RESIDENTIAL,Adult Social Care & Health,Personal Budget - Third Party,A61019,0
Royal Borough of Kingston,01/08/2022,90157689,"1,155.86",GENEVA ROAD LIMITED,SOCIAL SERVICES RESIDENTIAL,Adult Social Care & Health,Personal Budget - Third Party,A61019,0
Royal Borough of Kingston,01/08/2022,90157690,"1,107.14",GENEVA ROAD LIMITED,SOCIAL SERVICES RESIDENTIAL,Adult Social Care & Health,Personal Budget - Third Party,A61019,0
Royal Borough of Kingston,01/08/2022,90157691,"1,107.14",GENEVA ROAD LIMITED,SOCIAL SERVICES RESIDENTIAL,Adult Social Care & Health,Personal Budget - Third Party,A61019,0
Royal Borough of Kingston,01/08/2022,90157695,442.86,GENEVA ROAD LIMITED,SOCIAL SERVICES RESIDENTIAL,Adult Social Care & Health,Personal Budget - Third Party,A61019,0
Royal Borough of Kingston,01/08/2022,90157698,663.78,GENEVA ROAD LIMITED,SOCIAL SERVICES RESIDENTIAL,Adult Social Care & Health,Personal Budget - Third Party,A61019,0
Royal Borough of Kingston,01/08/2022,90157715,885.71,GENEVA ROAD LIMITED,SOCIAL SERVICES RESIDENTIAL,Adult Social Care & Health,Personal Budget - Third Party,A61019,0
Royal Borough of Kingston,01/08/2022,90157730,506.89,GENEVA ROAD LIMITED,SOCIAL SERVICES RESIDENTIAL,Adult Social Care & Health,Personal Budget - Third Party,A61019,0
Royal Borough of Kingston,01/08/2022,90157731,875.79,GENEVA ROAD LIMITED,SOCIAL SERVICES RESIDENTIAL,Adult Social Care & Health,Personal Budget - Third Party,A61019,0
Royal Borough of Kingston,01/08/2022,90157742,553.57,GENEVA ROAD LIMITED,SOCIAL SERVICES RESIDENTIAL,Adult Social Care & Health,Personal Budget - Third Party,A61019,0
Royal Borough of Kingston,01/08/2022,90157745,664.29,GENEVA ROAD LIMITED,SOCIAL SERVICES RESIDENTIAL,Adult Social Care & Health,Personal Budget - Third Party,A61019,0
Royal Borough of Kingston,01/08/2022,90158233,486.04,GENEVA ROAD LIMITED,SOCIAL SERVICES RESIDENTIAL,Adult Social Care & Health,Personal Budget - Third Party,A61019,0
Royal Borough of Kingston,01/08/2022,90156435,"3,450.96",GEORGIAN HOUSE NURSING HOME,SOCIAL SERVICES RESIDENTIAL,Adult Social Care & Health,Independent Placements,A56006,0
Royal Borough of Kingston,01/08/2022,90155160,"2,861.90",Global Homecare,SOCIAL SERVICES-HOME CARE,Adult Social Care & Health,Homecare - new framework,A56127,0
Royal Borough of Kingston,01/08/2022,90155426,"2,861.90",Global Homecare,SOCIAL SERVICES-HOME CARE,Adult Social Care & Health,Homecare - new framework,A56127,0
Royal Borough of Kingston,01/08/2022,90155582,"1,635.37",Global Homecare,SOCIAL SERVICES-HOME CARE,Adult Social Care & Health,Homecare - new framework,A56127,0
Royal Borough of Kingston,01/08/2022,90155583,"1,226.53",Global Homecare,SOCIAL SERVICES-HOME CARE,Adult Social Care & Health,Homecare - new framework,A56127,0
Royal Borough of Kingston,01/08/2022,90156377,"4,462.23",Gold Care Homes,SOCIAL SERVICES RESIDENTIAL,Adult Social Care & Health,Independent Placements,A56006,0
Royal Borough of Kingston,01/08/2022,90156391,"4,762.35",Gold Care Homes,SOCIAL SERVICES RESIDENTIAL,Adult Social Care & Health,Independent Placements,A56006,0
Royal Borough of Kingston,01/08/2022,90156393,"3,450.96",Gold Care Homes,SOCIAL SERVICES RESIDENTIAL,Adult Social Care & Health,Independent Placements,A56006,0
Royal Borough of Kingston,01/08/2022,90156471,"4,462.23",Gold Care Homes,SOCIAL SERVICES RESIDENTIAL,Adult Social Care & Health,Independent Placements,A56006,0
Royal Borough of Kingston,01/08/2022,90156488,"4,162.50",Gold Care Homes,SOCIAL SERVICES RESIDENTIAL,Adult Social Care & Health,Independent Placements,A56006,0
Royal Borough of Kingston,01/08/2022,90156489,"4,462.23",Gold Care Homes,SOCIAL SERVICES RESIDENTIAL,Adult Social Care & Health,Independent Placements,A56006,0
Royal Borough of Kingston,01/08/2022,90156490,"4,762.35",Gold Care Homes,SOCIAL SERVICES RESIDENTIAL,Adult Social Care & Health,Independent Placements,A56006,0
Royal Borough of Kingston,01/08/2022,90156502,"4,462.23",Gold Care Homes,SOCIAL SERVICES RESIDENTIAL,Adult Social Care & Health,Independent Placements,A56006,0
Royal Borough of Kingston,01/08/2022,90156505,"4,762.35",Gold Care Homes,SOCIAL SERVICES RESIDENTIAL,Adult Social Care & Health,Independent Placements,A56006,0
Royal Borough of Kingston,01/08/2022,90156506,"4,162.50",Gold Care Homes,SOCIAL SERVICES RESIDENTIAL,Adult Social Care & Health,Independent Placements,A56006,0
Royal Borough of Kingston,01/08/2022,90156513,"4,762.35",Gold Care Homes,SOCIAL SERVICES RESIDENTIAL,Adult Social Care & Health,Independent Placements,A56006,0
Royal Borough of Kingston,01/08/2022,90156514,"4,762.35",Gold Care Homes,SOCIAL SERVICES RESIDENTIAL,Adult Social Care & Health,Independent Placements,A56006,0
Royal Borough of Kingston,01/08/2022,90157614,675.08,Gold Care Homes,SOCIAL SERVICES RESIDENTIAL,Adult Social Care & Health,Personal Budget - Third Party,A61019,0
Royal Borough of Kingston,01/08/2022,90157615,675.08,Gold Care Homes,SOCIAL SERVICES RESIDENTIAL,Adult Social Care & Health,Personal Budget - Third Party,A61019,0
Royal Borough of Kingston,01/08/2022,90157617,"1,559.96",Gold Care Homes,SOCIAL SERVICES RESIDENTIAL,Adult Social Care & Health,Personal Budget - Third Party,A61019,0
Royal Borough of Kingston,01/08/2022,90157633,867.96,Gold Care Homes,SOCIAL SERVICES RESIDENTIAL,Adult Social Care & Health,Personal Budget - Third Party,A61019,0
Royal Borough of Kingston,01/08/2022,90157635,723.3,Gold Care Homes,SOCIAL SERVICES RESIDENTIAL,Adult Social Care & Health,Personal Budget - Third Party,A61019,0
Royal Borough of Kingston,01/08/2022,90155109,778.75,Goldsmith Personnel Ltd,SOCIAL SERVICES - OTHER,Adult Social Care & Health,Homecare - new framework,A56127,0
Royal Borough of Kingston,01/08/2022,90156381,"2,990.84",GREYDALES LIMITED,SOCIAL SERVICES RESIDENTIAL,Adult Social Care & Health,Independent Placements,A56006,0
Royal Borough of Kingston,01/08/2022,90156543,"3,945.64",Grove Care Partnership Limited,SOCIAL SERVICES RESIDENTIAL,Adult Social Care & Health,Independent Placements,A56006,0
Royal Borough of Kingston,01/08/2022,90156559,"10,145.86",Grove Care Partnership Limited,SOCIAL SERVICES RESIDENTIAL,Adult Social Care & Health,Independent Placements,A56006,0
Royal Borough of Kingston,01/08/2022,90156575,"14,886.82",Grove Care Partnership Limited,SOCIAL SERVICES RESIDENTIAL,Adult Social Care & Health,Independent Placements,A56006,0
Royal Borough of Kingston,01/08/2022,90156578,"10,036.34",Grove Care Partnership Limited,SOCIAL SERVICES RESIDENTIAL,Adult Social Care & Health,Independent Placements,A56006,0
Royal Borough of Kingston,01/08/2022,90156586,"15,621.39",Grove Care Partnership Limited,SOCIAL SERVICES RESIDENTIAL,Adult Social Care & Health,Independent Placements,A56006,0
Royal Borough of Kingston,01/08/2022,90156602,"14,737.31",Grove Care Partnership Limited,SOCIAL SERVICES RESIDENTIAL,Adult Social Care & Health,Independent Placements,A56006,0
Royal Borough of Kingston,01/08/2022,90156612,"9,610.09",Grove Care Partnership Limited,SOCIAL SERVICES RESIDENTIAL,Adult Social Care & Health,Independent Placements,A56006,0
Royal Borough of Kingston,01/08/2022,90156628,"7,738.31",Grove Care Partnership Limited,SOCIAL SERVICES RESIDENTIAL,Adult Social Care & Health,Independent Placements,A56006,0
Royal Borough of Kingston,01/08/2022,90156637,"11,316.68",Grove Care Partnership Limited,SOCIAL SERVICES RESIDENTIAL,Adult Social Care & Health,Independent Placements,A56006,0
Royal Borough of Kingston,01/08/2022,90156638,"11,503.21",Grove Care Partnership Limited,SOCIAL SERVICES RESIDENTIAL,Adult Social Care & Health,Independent Placements,A56006,0
Royal Borough of Kingston,01/08/2022,90156456,"4,601.29",HAMPTON CARE LIMITED,SOCIAL SERVICES RESIDENTIAL,Adult Social Care & Health,Independent Placements,A56006,0
Royal Borough of Kingston,01/08/2022,90157724,912.29,HAZELDENE UK LTD,SOCIAL SERVICES RESIDENTIAL,Adult Social Care & Health,Personal Budget - Third Party,A61019,0
Royal Borough of Kingston,01/08/2022,90156494,"5,061.41",HAZELWOOD HOUSE,SOCIAL SERVICES RESIDENTIAL,Adult Social Care & Health,Independent Placements,A56006,0
Royal Borough of Kingston,01/08/2022,90156255,"3,813.31",HC-1 LIMITED,SOCIAL SERVICES RESIDENTIAL,Adult Social Care & Health,Independent Placements,A56006,0
Royal Borough of Kingston,01/08/2022,90156550,"13,586.81",HEATHCOTES (SOUTHERN) LTD,SOCIAL SERVICES RESIDENTIAL,Adult Social Care & Health,Independent Placements,A56006,0
Royal Borough of Kingston,01/08/2022,90156572,"10,122.83",HEATHCOTES (SOUTHERN) LTD,SOCIAL SERVICES RESIDENTIAL,Adult Social Care & Health,Independent Placements,A56006,0
Royal Borough of Kingston,01/08/2022,90156574,"12,015.02",HEATHCOTES (SOUTHERN) LTD,SOCIAL SERVICES RESIDENTIAL,Adult Social Care & Health,Independent Placements,A56006,0
Royal Borough of Kingston,01/08/2022,90157996,"16,120.00",HEATHCOTES (SOUTHERN) LTD,SOCIAL SERVICES RESIDENTIAL,Adult Social Care & Health,Personal Budget - Third Party,A61019,0
Royal Borough of Kingston,01/08/2022,90155269,963.78,HELMAR CARE AND COMMUNITY SERVICES LTD,SOCIAL SERVICES DAY CARE,Adult Social Care & Health,Homecare - new framework,A56127,0
Royal Borough of Kingston,01/08/2022,90155428,"2,861.90",HELMAR CARE AND COMMUNITY SERVICES LTD,SOCIAL SERVICES DAY CARE,Adult Social Care & Health,Homecare - new framework,A56127,0
Royal Borough of Kingston,01/08/2022,90155559,630,HELMAR CARE AND COMMUNITY SERVICES LTD,SOCIAL SERVICES DAY CARE,Adult Social Care & Health,Homecare - new framework,A56127,0
Royal Borough of Kingston,01/08/2022,90155560,550.73,HELMAR CARE AND COMMUNITY SERVICES LTD,SOCIAL SERVICES DAY CARE,Adult Social Care & Health,Homecare - new framework,A56127,0
Royal Borough of Kingston,01/08/2022,90155594,"2,861.90",HELMAR CARE AND COMMUNITY SERVICES LTD,SOCIAL SERVICES DAY CARE,Adult Social Care & Health,Homecare - new framework,A56127,0
Royal Borough of Kingston,01/08/2022,90157676,601.02,HERTFORDSHIRE COUNTY COUNCIL,SOCIAL SERVICES RESIDENTIAL,Adult Social Care & Health,Personal Budget - Third Party,A61019,0
Royal Borough of Kingston,01/08/2022,90157645,933.38,HF TRUST LTD ,SOCIAL SERVICES DAY CARE,Adult Social Care & Health,Personal Budget - Third Party,A61019,0
Royal Borough of Kingston,01/08/2022,90157646,"2,333.46",HF TRUST LTD ,SOCIAL SERVICES DAY CARE,Adult Social Care & Health,Personal Budget - Third Party,A61019,0
Royal Borough of Kingston,01/08/2022,90157655,664.29,HF TRUST LTD ,SOCIAL SERVICES DAY CARE,Adult Social Care & Health,Personal Budget - Third Party,A61019,0
Royal Borough of Kingston,01/08/2022,90157657,996.43,HF TRUST LTD ,SOCIAL SERVICES DAY CARE,Adult Social Care & Health,Personal Budget - Third Party,A61019,0
Royal Borough of Kingston,01/08/2022,90157670,664.29,HF TRUST LTD ,SOCIAL SERVICES DAY CARE,Adult Social Care & Health,Personal Budget - Third Party,A61019,0
Royal Borough of Kingston,01/08/2022,90157672,885.71,HF TRUST LTD ,SOCIAL SERVICES DAY CARE,Adult Social Care & Health,Personal Budget - Third Party,A61019,0
Royal Borough of Kingston,01/08/2022,90157674,885.71,HF TRUST LTD ,SOCIAL SERVICES DAY CARE,Adult Social Care & Health,Personal Budget - Third Party,A61019,0
Royal Borough of Kingston,01/08/2022,90157683,885.71,HF TRUST LTD ,SOCIAL SERVICES DAY CARE,Adult Social Care & Health,Personal Budget - Third Party,A61019,0
Royal Borough of Kingston,01/08/2022,90157692,"1,107.14",HF TRUST LTD ,SOCIAL SERVICES DAY CARE,Adult Social Care & Health,Personal Budget - Third Party,A61019,0
Royal Borough of Kingston,01/08/2022,90157705,664.29,HF TRUST LTD ,SOCIAL SERVICES DAY CARE,Adult Social Care & Health,Personal Budget - Third Party,A61019,0
Royal Borough of Kingston,01/08/2022,90157707,"1,107.14",HF TRUST LTD ,SOCIAL SERVICES DAY CARE,Adult Social Care & Health,Personal Budget - Third Party,A61019,0
Royal Borough of Kingston,01/08/2022,90157710,885.71,HF TRUST LTD ,SOCIAL SERVICES DAY CARE,Adult Social Care & Health,Personal Budget - Third Party,A61019,0
Royal Borough of Kingston,01/08/2022,90157711,664.29,HF TRUST LTD ,SOCIAL SERVICES DAY CARE,Adult Social Care & Health,Personal Budget - Third Party,A61019,0
Royal Borough of Kingston,01/08/2022,90157716,"1,107.14",HF TRUST LTD ,SOCIAL SERVICES DAY CARE,Adult Social Care & Health,Personal Budget - Third Party,A61019,0
Royal Borough of Kingston,01/08/2022,90157719,885.71,HF TRUST LTD ,SOCIAL SERVICES DAY CARE,Adult Social Care & Health,Personal Budget - Third Party,A61019,0
Royal Borough of Kingston,01/08/2022,90157720,664.29,HF TRUST LTD ,SOCIAL SERVICES DAY CARE,Adult Social Care & Health,Personal Budget - Third Party,A61019,0
Royal Borough of Kingston,01/08/2022,90157721,664.29,HF TRUST LTD ,SOCIAL SERVICES DAY CARE,Adult Social Care & Health,Personal Budget - Third Party,A61019,0
Royal Borough of Kingston,01/08/2022,90157725,664.29,HF TRUST LTD ,SOCIAL SERVICES DAY CARE,Adult Social Care & Health,Personal Budget - Third Party,A61019,0
Royal Borough of Kingston,01/08/2022,90157726,885.71,HF TRUST LTD ,SOCIAL SERVICES DAY CARE,Adult Social Care & Health,Personal Budget - Third Party,A61019,0
Royal Borough of Kingston,01/08/2022,90157727,"1,107.14",HF TRUST LTD ,SOCIAL SERVICES DAY CARE,Adult Social Care & Health,Personal Budget - Third Party,A61019,0
Royal Borough of Kingston,01/08/2022,90157732,"1,107.14",HF TRUST LTD ,SOCIAL SERVICES DAY CARE,Adult Social Care & Health,Personal Budget - Third Party,A61019,0
Royal Borough of Kingston,01/08/2022,90157735,664.29,HF TRUST LTD ,SOCIAL SERVICES DAY CARE,Adult Social Care & Health,Personal Budget - Third Party,A61019,0
Royal Borough of Kingston,01/08/2022,90157736,"1,107.14",HF TRUST LTD ,SOCIAL SERVICES DAY CARE,Adult Social Care & Health,Personal Budget - Third Party,A61019,0
Royal Borough of Kingston,01/08/2022,90157738,"1,107.14",HF TRUST LTD ,SOCIAL SERVICES DAY CARE,Adult Social Care & Health,Personal Budget - Third Party,A61019,0
Royal Borough of Kingston,01/08/2022,90157741,664.29,HF TRUST LTD ,SOCIAL SERVICES DAY CARE,Adult Social Care & Health,Personal Budget - Third Party,A61019,0
Royal Borough of Kingston,01/08/2022,70029159,910,HML INDEPENDENT MEDICAL ADVICE LTD,LEGAL & PROFESSIONAL SERVICES,Place,Professional Fees,A44066,0
Royal Borough of Kingston,01/08/2022,70029775,"1,147.00",HOUSING ACTION  MANAGEMENT,ACCOMMODATION BED & BREAKFAST,Place,Bed & Breakfast,A56000,0
Royal Borough of Kingston,01/08/2022,90156813,735.01,Humble Healthcare Ltd,SOCIAL SERVICES - OTHER,Adult Social Care & Health,Homecare - new framework,A56127,0
Royal Borough of Kingston,01/08/2022,90156493,"3,450.96",IDDENSHALL HALL ,ACCOMMODATION - OTHER,Adult Social Care & Health,Independent Placements,A56006,0
Royal Borough of Kingston,01/08/2022,90157979,"13,354.22",INDEPENDENCE HOMES LIMITED,SOCIAL SERVICES RESIDENTIAL,Adult Social Care & Health,Personal Budget - Third Party,A61019,0
Royal Borough of Kingston,01/08/2022,90155035,"2,861.90",INSPIRE MANAGEMENT GROUP LTD,SOCIAL SERVICES DAY CARE,Adult Social Care & Health,Homecare - new framework,A56127,0
Royal Borough of Kingston,01/08/2022,90155242,551.25,INSPIRE MANAGEMENT GROUP LTD,SOCIAL SERVICES DAY CARE,Adult Social Care & Health,Homecare - new framework,A56127,0
Royal Borough of Kingston,01/08/2022,90155363,551.25,INSPIRE MANAGEMENT GROUP LTD,SOCIAL SERVICES DAY CARE,Adult Social Care & Health,Homecare - new framework,A56127,0
Royal Borough of Kingston,01/08/2022,90155437,612.5,INSPIRE MANAGEMENT GROUP LTD,SOCIAL SERVICES DAY CARE,Adult Social Care & Health,Homecare - new framework,A56127,0
Royal Borough of Kingston,01/08/2022,90155447,551.25,INSPIRE MANAGEMENT GROUP LTD,SOCIAL SERVICES DAY CARE,Adult Social Care & Health,Homecare - new framework,A56127,0
Royal Borough of Kingston,01/08/2022,90155470,787.51,INSPIRE MANAGEMENT GROUP LTD,SOCIAL SERVICES DAY CARE,Adult Social Care & Health,Homecare - new framework,A56127,0
Royal Borough of Kingston,01/08/2022,90155482,551.25,INSPIRE MANAGEMENT GROUP LTD,SOCIAL SERVICES DAY CARE,Adult Social Care & Health,Homecare - new framework,A56127,0
Royal Borough of Kingston,01/08/2022,90155500,525,INSPIRE MANAGEMENT GROUP LTD,SOCIAL SERVICES DAY CARE,Adult Social Care & Health,Homecare - new framework,A56127,0
Royal Borough of Kingston,01/08/2022,90156428,"1,196.79",JESMUND CARE LIMITED,SOCIAL SERVICES - PERSONAL BUDGETS,Adult Social Care & Health,Independent Placements,A56006,0
Royal Borough of Kingston,01/08/2022,90156618,"1,090.00",JESMUND CARE LIMITED,SOCIAL SERVICES - PERSONAL BUDGETS,Adult Social Care & Health,Independent Placements,A56006,0
Royal Borough of Kingston,01/08/2022,90156619,"4,827.14",JESMUND CARE LIMITED,SOCIAL SERVICES - PERSONAL BUDGETS,Adult Social Care & Health,Independent Placements,A56006,0
Royal Borough of Kingston,01/08/2022,90156436,"3,197.65",JESYEM MEDICARE LTD,SOCIAL SERVICES RESIDENTIAL,Adult Social Care & Health,Independent Placements,A56006,0
Royal Borough of Kingston,01/08/2022,90156440,"4,371.22",JESYEM MEDICARE LTD,SOCIAL SERVICES RESIDENTIAL,Adult Social Care & Health,Independent Placements,A56006,0
Royal Borough of Kingston,01/08/2022,90156447,"4,371.22",JESYEM MEDICARE LTD,SOCIAL SERVICES RESIDENTIAL,Adult Social Care & Health,Independent Placements,A56006,0
Royal Borough of Kingston,01/08/2022,90156516,"3,450.96",Jiva Healthcare Ltd,SOCIAL SERVICES RESIDENTIAL,Adult Social Care & Health,Independent Placements,A56006,0
Royal Borough of Kingston,01/08/2022,90157878,"8,904.22",JOYMAC CARE LTD,SOCIAL SERVICES RESIDENTIAL,Adult Social Care & Health,Personal Budget - Third Party,A61019,0
Royal Borough of Kingston,01/08/2022,90156355,"3,450.96",KATHRYNS HOUSE CARE HOME,SOCIAL SERVICES RESIDENTIAL,Adult Social Care & Health,Independent Placements,A56006,0
Royal Borough of Kingston,01/08/2022,70028973,"3,906.25",KI-AN (UK) LIMITED,CONSULTING ARCHITECTS ENGINEER,Capital Programme,Buildings - Design & Planning,C14001,0
Royal Borough of Kingston,01/08/2022,90157623,922.5,KINGSTON VOLUNTARY ACTION CIO,CHARITIES & VOLUNTARY ORGNS,Adult Social Care & Health,Personal Budget - Third Party,A61019,0
Royal Borough of Kingston,01/08/2022,90158204,860.91,KINGSTON VOLUNTARY ACTION CIO,CHARITIES & VOLUNTARY ORGNS,Adult Social Care & Health,Personal Budget - Third Party,A61019,0
Royal Borough of Kingston,01/08/2022,90156353,"3,681.03",LANGLEY COURT REST HOME,SOCIAL SERVICES RESIDENTIAL,Adult Social Care & Health,Independent Placements,A56006,0
Royal Borough of Kingston,01/08/2022,90156371,"3,681.03",LANGLEY COURT REST HOME,SOCIAL SERVICES RESIDENTIAL,Adult Social Care & Health,Independent Placements,A56006,0
Royal Borough of Kingston,01/08/2022,90156379,"3,681.03",LANGLEY COURT REST HOME,SOCIAL SERVICES RESIDENTIAL,Adult Social Care & Health,Independent Placements,A56006,0
Royal Borough of Kingston,01/08/2022,90156380,"3,681.03",LANGLEY COURT REST HOME,SOCIAL SERVICES RESIDENTIAL,Adult Social Care & Health,Independent Placements,A56006,0
Royal Borough of Kingston,01/08/2022,90156383,"3,681.03",LANGLEY COURT REST HOME,SOCIAL SERVICES RESIDENTIAL,Adult Social Care & Health,Independent Placements,A56006,0
Royal Borough of Kingston,01/08/2022,90156387,"3,681.03",LANGLEY COURT REST HOME,SOCIAL SERVICES RESIDENTIAL,Adult Social Care & Health,Independent Placements,A56006,0
Royal Borough of Kingston,01/08/2022,90156390,"3,681.03",LANGLEY COURT REST HOME,SOCIAL SERVICES RESIDENTIAL,Adult Social Care & Health,Independent Placements,A56006,0
Royal Borough of Kingston,01/08/2022,90156397,"3,450.96",LANGLEY COURT REST HOME,SOCIAL SERVICES RESIDENTIAL,Adult Social Care & Health,Independent Placements,A56006,0
Royal Borough of Kingston,01/08/2022,90156398,"3,681.03",LANGLEY COURT REST HOME,SOCIAL SERVICES RESIDENTIAL,Adult Social Care & Health,Independent Placements,A56006,0
Royal Borough of Kingston,01/08/2022,90156406,"3,680.14",LANGLEY COURT REST HOME,SOCIAL SERVICES RESIDENTIAL,Adult Social Care & Health,Independent Placements,A56006,0
Royal Borough of Kingston,01/08/2022,90156504,"4,141.16",LANGLEY COURT REST HOME,SOCIAL SERVICES RESIDENTIAL,Adult Social Care & Health,Independent Placements,A56006,0
Royal Borough of Kingston,01/08/2022,90156524,"-2,828.57",LANGLEY COURT REST HOME,SOCIAL SERVICES RESIDENTIAL,Adult Social Care & Health,Independent Placements,A56006,0
Royal Borough of Kingston,01/08/2022,90156660,"2,828.57",LANGLEY COURT REST HOME,SOCIAL SERVICES RESIDENTIAL,Adult Social Care & Health,Other Private Contractors - Third Party,A56080,0
Royal Borough of Kingston,01/08/2022,90156661,771.43,LANGLEY COURT REST HOME,SOCIAL SERVICES RESIDENTIAL,Adult Social Care & Health,Other Private Contractors - Third Party,A56080,0
Royal Borough of Kingston,01/08/2022,90156570,"3,460.80",LARCHE BOGNOR REGIS,SOCIAL SERVICES - OTHER,Adult Social Care & Health,Independent Placements,A56006,0
Royal Borough of Kingston,01/08/2022,90156615,642.28,LARCHE BOGNOR REGIS,SOCIAL SERVICES - OTHER,Adult Social Care & Health,Independent Placements,A56006,0
Royal Borough of Kingston,01/08/2022,90157673,894.57,LARCHE BOGNOR REGIS,SOCIAL SERVICES - OTHER,Adult Social Care & Health,Personal Budget - Third Party,A61019,0
Royal Borough of Kingston,01/08/2022,90156588,"11,503.21",LD CARE LIMITED,SOCIAL SERVICES RESIDENTIAL,Adult Social Care & Health,Independent Placements,A56006,0
Royal Borough of Kingston,01/08/2022,90156590,"11,020.10",LD CARE LIMITED,SOCIAL SERVICES RESIDENTIAL,Adult Social Care & Health,Independent Placements,A56006,0
Royal Borough of Kingston,01/08/2022,90156415,"5,480.62",LEONARD CHESHIRE DISABILITY,SOCIAL SERVICES - OTHER,Adult Social Care & Health,Independent Placements,A56006,0
Royal Borough of Kingston,01/08/2022,90156610,"6,899.05",LEONARD CHESHIRE DISABILITY,SOCIAL SERVICES - OTHER,Adult Social Care & Health,Independent Placements,A56006,0
Royal Borough of Kingston,01/08/2022,90156569,"14,405.83",LIAISE LODDON LTD ,OPERATIONAL EQUIPMENT/MATERIAL,Adult Social Care & Health,Independent Placements,A56006,0
Royal Borough of Kingston,01/08/2022,90156594,"6,329.23",LIVING AMBITIONS LTD,SOCIAL SERVICES - OTHER,Adult Social Care & Health,Independent Placements,A56006,0
Royal Borough of Kingston,01/08/2022,90156603,"5,931.05",LIVING AMBITIONS LTD,SOCIAL SERVICES - OTHER,Adult Social Care & Health,Independent Placements,A56006,0
Royal Borough of Kingston,01/08/2022,70029915,"18,047.49",LONDON BOROUGH OF MERTON,CENTRAL & LOCAL GOVERNMENT,Corporate & Communities,Payments to Other Local Authorities,A51005,0
Royal Borough of Kingston,01/08/2022,90155023,912.4,LONDON RESIDENTIAL HEALTHCARE LTD,SOCIAL SERVICES RESIDENTIAL,Adult Social Care & Health,Independent Placements,A56006,0
Royal Borough of Kingston,01/08/2022,90156229,"5,158.05",LONDON RESIDENTIAL HEALTHCARE LTD,SOCIAL SERVICES RESIDENTIAL,Adult Social Care & Health,Independent Placements,A56006,0
Royal Borough of Kingston,01/08/2022,90156230,"5,056.81",LONDON RESIDENTIAL HEALTHCARE LTD,SOCIAL SERVICES RESIDENTIAL,Adult Social Care & Health,Independent Placements,A56006,0
Royal Borough of Kingston,01/08/2022,90156231,"3,568.49",LONDON RESIDENTIAL HEALTHCARE LTD,SOCIAL SERVICES RESIDENTIAL,Adult Social Care & Health,Independent Placements,A56006,0
Royal Borough of Kingston,01/08/2022,90156232,"4,609.30",LONDON RESIDENTIAL HEALTHCARE LTD,SOCIAL SERVICES RESIDENTIAL,Adult Social Care & Health,Independent Placements,A56006,0
Royal Borough of Kingston,01/08/2022,90156236,"3,197.65",LONDON RESIDENTIAL HEALTHCARE LTD,SOCIAL SERVICES RESIDENTIAL,Adult Social Care & Health,Independent Placements,A56006,0
Royal Borough of Kingston,01/08/2022,90156237,"4,650.00",LONDON RESIDENTIAL HEALTHCARE LTD,SOCIAL SERVICES RESIDENTIAL,Adult Social Care & Health,Independent Placements,A56006,0
Royal Borough of Kingston,01/08/2022,90156239,"4,317.86",LONDON RESIDENTIAL HEALTHCARE LTD,SOCIAL SERVICES RESIDENTIAL,Adult Social Care & Health,Independent Placements,A56006,0
Royal Borough of Kingston,01/08/2022,90156241,"3,013.86",LONDON RESIDENTIAL HEALTHCARE LTD,SOCIAL SERVICES RESIDENTIAL,Adult Social Care & Health,Independent Placements,A56006,0
Royal Borough of Kingston,01/08/2022,90156244,"2,156.18",LONDON RESIDENTIAL HEALTHCARE LTD,SOCIAL SERVICES RESIDENTIAL,Adult Social Care & Health,Independent Placements,A56006,0
Royal Borough of Kingston,01/08/2022,90156248,"3,294.90",LONDON RESIDENTIAL HEALTHCARE LTD,SOCIAL SERVICES RESIDENTIAL,Adult Social Care & Health,Independent Placements,A56006,0
Royal Borough of Kingston,01/08/2022,90156254,"3,625.80",LONDON RESIDENTIAL HEALTHCARE LTD,SOCIAL SERVICES RESIDENTIAL,Adult Social Care & Health,Independent Placements,A56006,0
Royal Borough of Kingston,01/08/2022,90156257,"3,294.90",LONDON RESIDENTIAL HEALTHCARE LTD,SOCIAL SERVICES RESIDENTIAL,Adult Social Care & Health,Independent Placements,A56006,0
Royal Borough of Kingston,01/08/2022,90156268,"3,738.07",LONDON RESIDENTIAL HEALTHCARE LTD,SOCIAL SERVICES RESIDENTIAL,Adult Social Care & Health,Independent Placements,A56006,0
Royal Borough of Kingston,01/08/2022,90156274,"3,450.96",LONDON RESIDENTIAL HEALTHCARE LTD,SOCIAL SERVICES RESIDENTIAL,Adult Social Care & Health,Independent Placements,A56006,0
Royal Borough of Kingston,01/08/2022,90156277,"3,434.40",LONDON RESIDENTIAL HEALTHCARE LTD,SOCIAL SERVICES RESIDENTIAL,Adult Social Care & Health,Independent Placements,A56006,0
Royal Borough of Kingston,01/08/2022,90156281,"3,013.86",LONDON RESIDENTIAL HEALTHCARE LTD,SOCIAL SERVICES RESIDENTIAL,Adult Social Care & Health,Independent Placements,A56006,0
Royal Borough of Kingston,01/08/2022,90156282,"3,764.29",LONDON RESIDENTIAL HEALTHCARE LTD,SOCIAL SERVICES RESIDENTIAL,Adult Social Care & Health,Independent Placements,A56006,0
Royal Borough of Kingston,01/08/2022,90156284,"3,450.96",LONDON RESIDENTIAL HEALTHCARE LTD,SOCIAL SERVICES RESIDENTIAL,Adult Social Care & Health,Independent Placements,A56006,0
Royal Borough of Kingston,01/08/2022,90156290,"3,681.03",LONDON RESIDENTIAL HEALTHCARE LTD,SOCIAL SERVICES RESIDENTIAL,Adult Social Care & Health,Independent Placements,A56006,0
Royal Borough of Kingston,01/08/2022,90156299,"2,156.18",LONDON RESIDENTIAL HEALTHCARE LTD,SOCIAL SERVICES RESIDENTIAL,Adult Social Care & Health,Independent Placements,A56006,0
Royal Borough of Kingston,01/08/2022,90156306,"3,434.40",LONDON RESIDENTIAL HEALTHCARE LTD,SOCIAL SERVICES RESIDENTIAL,Adult Social Care & Health,Independent Placements,A56006,0
Royal Borough of Kingston,01/08/2022,90156308,"4,141.16",LONDON RESIDENTIAL HEALTHCARE LTD,SOCIAL SERVICES RESIDENTIAL,Adult Social Care & Health,Independent Placements,A56006,0
Royal Borough of Kingston,01/08/2022,90156329,"3,013.86",LONDON RESIDENTIAL HEALTHCARE LTD,SOCIAL SERVICES RESIDENTIAL,Adult Social Care & Health,Independent Placements,A56006,0
Royal Borough of Kingston,01/08/2022,90156424,"5,820.65",LONDON RESIDENTIAL HEALTHCARE LTD,SOCIAL SERVICES RESIDENTIAL,Adult Social Care & Health,Independent Placements,A56006,0
Royal Borough of Kingston,01/08/2022,90156427,"4,040.63",LONDON RESIDENTIAL HEALTHCARE LTD,SOCIAL SERVICES RESIDENTIAL,Adult Social Care & Health,Independent Placements,A56006,0
Royal Borough of Kingston,01/08/2022,90156429,"2,571.43",LONDON RESIDENTIAL HEALTHCARE LTD,SOCIAL SERVICES RESIDENTIAL,Adult Social Care & Health,Independent Placements,A56006,0
Royal Borough of Kingston,01/08/2022,90156430,"3,985.71",LONDON RESIDENTIAL HEALTHCARE LTD,SOCIAL SERVICES RESIDENTIAL,Adult Social Care & Health,Independent Placements,A56006,0
Royal Borough of Kingston,01/08/2022,90156431,"3,857.14",LONDON RESIDENTIAL HEALTHCARE LTD,SOCIAL SERVICES RESIDENTIAL,Adult Social Care & Health,Independent Placements,A56006,0
Royal Borough of Kingston,01/08/2022,90156432,"3,985.71",LONDON RESIDENTIAL HEALTHCARE LTD,SOCIAL SERVICES RESIDENTIAL,Adult Social Care & Health,Independent Placements,A56006,0
Royal Borough of Kingston,01/08/2022,90156433,"-2,700.00",LONDON RESIDENTIAL HEALTHCARE LTD,SOCIAL SERVICES RESIDENTIAL,Adult Social Care & Health,Independent Placements,A56006,0
Royal Borough of Kingston,01/08/2022,90156434,"3,985.71",LONDON RESIDENTIAL HEALTHCARE LTD,SOCIAL SERVICES RESIDENTIAL,Adult Social Care & Health,Independent Placements,A56006,0
Royal Borough of Kingston,01/08/2022,90156444,"3,450.96",LONDON RESIDENTIAL HEALTHCARE LTD,SOCIAL SERVICES RESIDENTIAL,Adult Social Care & Health,Independent Placements,A56006,0
Royal Borough of Kingston,01/08/2022,90156445,"3,764.29",LONDON RESIDENTIAL HEALTHCARE LTD,SOCIAL SERVICES RESIDENTIAL,Adult Social Care & Health,Independent Placements,A56006,0
Royal Borough of Kingston,01/08/2022,90156449,"4,428.57",LONDON RESIDENTIAL HEALTHCARE LTD,SOCIAL SERVICES RESIDENTIAL,Adult Social Care & Health,Independent Placements,A56006,0
Royal Borough of Kingston,01/08/2022,90156234,"3,450.96",LYNTON HALL NURSING HOME,SOCIAL SERVICES RESIDENTIAL,Adult Social Care & Health,Independent Placements,A56006,0
Royal Borough of Kingston,01/08/2022,90156238,"4,703.14",LYNTON HALL NURSING HOME,SOCIAL SERVICES RESIDENTIAL,Adult Social Care & Health,Independent Placements,A56006,0
Royal Borough of Kingston,01/08/2022,90156243,"-1,058.42",LYNTON HALL NURSING HOME,SOCIAL SERVICES RESIDENTIAL,Adult Social Care & Health,Independent Placements,A56006,0
Royal Borough of Kingston,01/08/2022,90156249,"3,985.71",LYNTON HALL NURSING HOME,SOCIAL SERVICES RESIDENTIAL,Adult Social Care & Health,Independent Placements,A56006,0
Royal Borough of Kingston,01/08/2022,90156253,"3,450.96",LYNTON HALL NURSING HOME,SOCIAL SERVICES RESIDENTIAL,Adult Social Care & Health,Independent Placements,A56006,0
Royal Borough of Kingston,01/08/2022,90156267,"4,207.14",LYNTON HALL NURSING HOME,SOCIAL SERVICES RESIDENTIAL,Adult Social Care & Health,Independent Placements,A56006,0
Royal Borough of Kingston,01/08/2022,90156280,"2,919.23",LYNTON HALL NURSING HOME,SOCIAL SERVICES RESIDENTIAL,Adult Social Care & Health,Independent Placements,A56006,0
Royal Borough of Kingston,01/08/2022,90156286,"3,013.86",LYNTON HALL NURSING HOME,SOCIAL SERVICES RESIDENTIAL,Adult Social Care & Health,Independent Placements,A56006,0
Royal Borough of Kingston,01/08/2022,90156289,"2,723.22",LYNTON HALL NURSING HOME,SOCIAL SERVICES RESIDENTIAL,Adult Social Care & Health,Independent Placements,A56006,0
Royal Borough of Kingston,01/08/2022,90156291,"3,450.96",LYNTON HALL NURSING HOME,SOCIAL SERVICES RESIDENTIAL,Adult Social Care & Health,Independent Placements,A56006,0
Royal Borough of Kingston,01/08/2022,90156438,"3,220.90",LYNTON HALL NURSING HOME,SOCIAL SERVICES RESIDENTIAL,Adult Social Care & Health,Independent Placements,A56006,0
Royal Borough of Kingston,01/08/2022,90156441,"2,723.22",LYNTON HALL NURSING HOME,SOCIAL SERVICES RESIDENTIAL,Adult Social Care & Health,Independent Placements,A56006,0
Royal Borough of Kingston,01/08/2022,90156538,"3,308.67",LYNTON HALL NURSING HOME,SOCIAL SERVICES RESIDENTIAL,Adult Social Care & Health,Independent Placements,A56006,0
Royal Borough of Kingston,01/08/2022,90156401,"3,285.34",Madeprice Ltd,SOCIAL SERVICES RESIDENTIAL,Adult Social Care & Health,Independent Placements,A56006,0
Royal Borough of Kingston,01/08/2022,90152738,"4,680.00",MAGIC LIFE LIMITED,ACCOMMODATION - OTHER,Adult Social Care & Health,Personal Budget - Third Party,A61019,0
Royal Borough of Kingston,01/08/2022,90152739,"7,254.00",MAGIC LIFE LIMITED,ACCOMMODATION - OTHER,Adult Social Care & Health,Personal Budget - Third Party,A61019,0
Royal Borough of Kingston,01/08/2022,90152740,"7,020.00",MAGIC LIFE LIMITED,ACCOMMODATION - OTHER,Adult Social Care & Health,Personal Budget - Third Party,A61019,0
Royal Borough of Kingston,01/08/2022,90152741,"7,254.00",MAGIC LIFE LIMITED,ACCOMMODATION - OTHER,Adult Social Care & Health,Personal Budget - Third Party,A61019,0
Royal Borough of Kingston,01/08/2022,90152742,"7,254.00",MAGIC LIFE LIMITED,ACCOMMODATION - OTHER,Adult Social Care & Health,Personal Budget - Third Party,A61019,0
Royal Borough of Kingston,01/08/2022,90152743,"6,552.00",MAGIC LIFE LIMITED,ACCOMMODATION - OTHER,Adult Social Care & Health,Personal Budget - Third Party,A61019,0
Royal Borough of Kingston,01/08/2022,90152744,"7,254.00",MAGIC LIFE LIMITED,ACCOMMODATION - OTHER,Adult Social Care & Health,Personal Budget - Third Party,A61019,0
Royal Borough of Kingston,01/08/2022,90152745,"7,434.17",MAGIC LIFE LIMITED,ACCOMMODATION - OTHER,Adult Social Care & Health,Personal Budget - Third Party,A61019,0
Royal Borough of Kingston,01/08/2022,90152746,"7,681.98",MAGIC LIFE LIMITED,ACCOMMODATION - OTHER,Adult Social Care & Health,Personal Budget - Third Party,A61019,0
Royal Borough of Kingston,01/08/2022,90152747,"7,434.17",MAGIC LIFE LIMITED,ACCOMMODATION - OTHER,Adult Social Care & Health,Personal Budget - Third Party,A61019,0
Royal Borough of Kingston,01/08/2022,90152748,"7,681.98",MAGIC LIFE LIMITED,ACCOMMODATION - OTHER,Adult Social Care & Health,Personal Budget - Third Party,A61019,0
Royal Borough of Kingston,01/08/2022,90158152,"10,242.67",MAGIC LIFE LIMITED,ACCOMMODATION - OTHER,Adult Social Care & Health,Personal Budget - Third Party,A61019,0
Royal Borough of Kingston,01/08/2022,90158190,"9,912.24",MAGIC LIFE LIMITED,ACCOMMODATION - OTHER,Adult Social Care & Health,Personal Budget - Third Party,A61019,0
Royal Borough of Kingston,01/08/2022,90158197,"7,681.98",MAGIC LIFE LIMITED,ACCOMMODATION - OTHER,Adult Social Care & Health,Personal Budget - Third Party,A61019,0
Royal Borough of Kingston,01/08/2022,90158198,"7,681.98",MAGIC LIFE LIMITED,ACCOMMODATION - OTHER,Adult Social Care & Health,Personal Budget - Third Party,A61019,0
Royal Borough of Kingston,01/08/2022,90156343,"3,911.09",MAGICARE LTD,SOCIAL SERVICES - OTHER,Adult Social Care & Health,Independent Placements,A56006,0
Royal Borough of Kingston,01/08/2022,90156634,"2,990.84",MEDIHANDS CLIFTON,ACCOMMODATION - OTHER,Adult Social Care & Health,Independent Placements,A56006,0
Royal Borough of Kingston,01/08/2022,90156635,"2,497.67",MEDIHANDS CLIFTON,ACCOMMODATION - OTHER,Adult Social Care & Health,Independent Placements,A56006,0
Royal Borough of Kingston,01/08/2022,90156458,"2,497.67",MEDIHANDS HOUSE,SOCIAL SERVICES - OTHER,Adult Social Care & Health,Independent Placements,A56006,0
Royal Borough of Kingston,01/08/2022,90156462,"2,497.67",MEDIHANDS HOUSE,SOCIAL SERVICES - OTHER,Adult Social Care & Health,Independent Placements,A56006,0
Royal Borough of Kingston,01/08/2022,90156625,"2,760.77",MEDIHANDS HOUSE,SOCIAL SERVICES - OTHER,Adult Social Care & Health,Independent Placements,A56006,0
Royal Borough of Kingston,01/08/2022,90156626,"2,497.67",MEDIHANDS HOUSE,SOCIAL SERVICES - OTHER,Adult Social Care & Health,Independent Placements,A56006,0
Royal Borough of Kingston,01/08/2022,90156627,"2,497.67",MEDIHANDS HOUSE,SOCIAL SERVICES - OTHER,Adult Social Care & Health,Independent Placements,A56006,0
Royal Borough of Kingston,01/08/2022,90156629,"2,497.67",MEDIHANDS HOUSE,SOCIAL SERVICES - OTHER,Adult Social Care & Health,Independent Placements,A56006,0
Royal Borough of Kingston,01/08/2022,90156630,"2,497.67",MEDIHANDS HOUSE,SOCIAL SERVICES - OTHER,Adult Social Care & Health,Independent Placements,A56006,0
Royal Borough of Kingston,01/08/2022,90156633,"2,497.67",MEDIHANDS HOUSE,SOCIAL SERVICES - OTHER,Adult Social Care & Health,Independent Placements,A56006,0
Royal Borough of Kingston,01/08/2022,90156640,"2,957.80",MEDIHANDS HOUSE,SOCIAL SERVICES - OTHER,Adult Social Care & Health,Independent Placements,A56006,0
Royal Borough of Kingston,01/08/2022,90156549,"2,497.67",MEDIHANDS LODGE,SOCIAL SERVICES RESIDENTIAL,Adult Social Care & Health,Independent Placements,A56006,0
Royal Borough of Kingston,01/08/2022,90156632,"3,140.48",MEDIHANDS LODGE,SOCIAL SERVICES RESIDENTIAL,Adult Social Care & Health,Independent Placements,A56006,0
Royal Borough of Kingston,01/08/2022,90156636,"2,875.83",MEDIHANDS LODGE,SOCIAL SERVICES RESIDENTIAL,Adult Social Care & Health,Independent Placements,A56006,0
Royal Borough of Kingston,01/08/2022,90156459,"2,497.67",MEDIHANDS VILLA,SOCIAL SERVICES - OTHER,Adult Social Care & Health,Independent Placements,A56006,0
Royal Borough of Kingston,01/08/2022,90156466,"2,497.67",MEDIHANDS VILLA,SOCIAL SERVICES - OTHER,Adult Social Care & Health,Independent Placements,A56006,0
Royal Borough of Kingston,01/08/2022,90156631,"3,321.43",MEDIHANDS VILLA,SOCIAL SERVICES - OTHER,Adult Social Care & Health,Independent Placements,A56006,0
Royal Borough of Kingston,01/08/2022,90156639,"3,216.29",MEDIHANDS VILLA,SOCIAL SERVICES - OTHER,Adult Social Care & Health,Independent Placements,A56006,0
Royal Borough of Kingston,01/08/2022,90157625,"2,913.82",MENCAP,CHARITIES & VOLUNTARY ORGNS,Adult Social Care & Health,Personal Budget - Third Party,A61019,0
Royal Borough of Kingston,01/08/2022,90157779,"7,029.21",MENCAP,CHARITIES & VOLUNTARY ORGNS,Adult Social Care & Health,Personal Budget - Third Party,A61019,0
Royal Borough of Kingston,01/08/2022,90156465,"3,566.02",MERLING CARE,SOCIAL SERVICES RESIDENTIAL,Adult Social Care & Health,Independent Placements,A56006,0
Royal Borough of Kingston,01/08/2022,90156223,"4,040.50",MMCG (2) LIMITED,SOCIAL SERVICES RESIDENTIAL,Adult Social Care & Health,Independent Placements,A56006,0
Royal Borough of Kingston,01/08/2022,90156378,"2,894.20",NIGHTINGALE HOUSE,SOCIAL SERVICES RESIDENTIAL,Adult Social Care & Health,Independent Placements,A56006,0
Royal Borough of Kingston,01/08/2022,90156385,"3,681.03",NIGHTINGALE HOUSE,SOCIAL SERVICES RESIDENTIAL,Adult Social Care & Health,Independent Placements,A56006,0
Royal Borough of Kingston,01/08/2022,90156395,"3,450.96",NIGHTINGALE HOUSE,SOCIAL SERVICES RESIDENTIAL,Adult Social Care & Health,Independent Placements,A56006,0
Royal Borough of Kingston,01/08/2022,90156468,"3,450.96",NIGHTINGALE HOUSE,SOCIAL SERVICES RESIDENTIAL,Adult Social Care & Health,Independent Placements,A56006,0
Royal Borough of Kingston,01/08/2022,90156480,"4,371.22",NIGHTINGALE HOUSE,SOCIAL SERVICES RESIDENTIAL,Adult Social Care & Health,Independent Placements,A56006,0
Royal Borough of Kingston,01/08/2022,90156609,"5,989.42",NORSACA (TRADING) LTD,SOCIAL SERVICES - OTHER,Adult Social Care & Health,Independent Placements,A56006,0
Royal Borough of Kingston,01/08/2022,90156622,"5,521.54",NSR Care Homes Ltd ,SOCIAL SERVICES RESIDENTIAL,Adult Social Care & Health,Independent Placements,A56006,0
Royal Borough of Kingston,01/08/2022,90156562,"7,131.99",OPTIMA CARE LIMITED,SOCIAL SERVICES RESIDENTIAL,Adult Social Care & Health,Independent Placements,A56006,0
Royal Borough of Kingston,01/08/2022,90155717,"1,400.00",OZUMBA TRAINING AND CONSULTANCY SERVICES LIMITED,SOCIAL SERVICES DAY CARE,Adult Social Care & Health,Personal Budget - Third Party,A61019,0
Royal Borough of Kingston,01/08/2022,90157642,"2,110.44",PALM LODGE,SOCIAL SERVICES RESIDENTIAL,Adult Social Care & Health,Personal Budget - Third Party,A61019,0
Royal Borough of Kingston,01/08/2022,90158153,"1,992.86",PALM LODGE,SOCIAL SERVICES RESIDENTIAL,Adult Social Care & Health,Personal Budget - Third Party,A61019,0
Royal Borough of Kingston,01/08/2022,90158156,"2,110.44",PALM LODGE,SOCIAL SERVICES RESIDENTIAL,Adult Social Care & Health,Personal Budget - Third Party,A61019,0
Royal Borough of Kingston,01/08/2022,90158159,"2,063.54",PALM LODGE,SOCIAL SERVICES RESIDENTIAL,Adult Social Care & Health,Personal Budget - Third Party,A61019,0
Royal Borough of Kingston,01/08/2022,90158160,"1,266.26",PALM LODGE,SOCIAL SERVICES RESIDENTIAL,Adult Social Care & Health,Personal Budget - Third Party,A61019,0
Royal Borough of Kingston,01/08/2022,90158164,"2,110.44",PALM LODGE,SOCIAL SERVICES RESIDENTIAL,Adult Social Care & Health,Personal Budget - Third Party,A61019,0
Royal Borough of Kingston,01/08/2022,90158169,"1,266.26",PALM LODGE,SOCIAL SERVICES RESIDENTIAL,Adult Social Care & Health,Personal Budget - Third Party,A61019,0
Royal Borough of Kingston,01/08/2022,90158170,"2,110.44",PALM LODGE,SOCIAL SERVICES RESIDENTIAL,Adult Social Care & Health,Personal Budget - Third Party,A61019,0
Royal Borough of Kingston,01/08/2022,90158179,"1,266.26",PALM LODGE,SOCIAL SERVICES RESIDENTIAL,Adult Social Care & Health,Personal Budget - Third Party,A61019,0
Royal Borough of Kingston,01/08/2022,90158194,"1,219.36",PALM LODGE,SOCIAL SERVICES RESIDENTIAL,Adult Social Care & Health,Personal Budget - Third Party,A61019,0
Royal Borough of Kingston,01/08/2022,70029045,"2,565.30",PFP LEISURE,LEGAL & PROFESSIONAL SERVICES,Corporate & Communities,Property Repairs & Maintenance & Alterations - Responsive,A20011,0
Royal Borough of Kingston,01/08/2022,70029045,"3,157.30",PFP LEISURE,LEGAL & PROFESSIONAL SERVICES,Corporate & Communities,Property Repairs & Maintenance & Alterations - Responsive,A20011,0
Royal Borough of Kingston,01/08/2022,70029045,"7,103.91",PFP LEISURE,LEGAL & PROFESSIONAL SERVICES,Corporate & Communities,Property Repairs & Maintenance & Alterations - Responsive,A20011,0
Royal Borough of Kingston,01/08/2022,90157968,"14,156.11",Precious Homes,SOCIAL SERVICES-HOME CARE,Adult Social Care & Health,Personal Budget - Third Party,A61019,0
Royal Borough of Kingston,01/08/2022,70029781,"2,253.70",QUARTZ PROPERTIES (LONDON) LTD,ACCOMMODATION BED & BREAKFAST,Place,Bed & Breakfast,A56000,0
Royal Borough of Kingston,01/08/2022,70029781,"1,546.90",QUARTZ PROPERTIES (LONDON) LTD,ACCOMMODATION BED & BREAKFAST,Place,Bed & Breakfast,A56000,0
Royal Borough of Kingston,01/08/2022,70029781,"1,147.00",QUARTZ PROPERTIES (LONDON) LTD,ACCOMMODATION BED & BREAKFAST,Place,Bed & Breakfast,A56000,0
Royal Borough of Kingston,01/08/2022,70029781,"1,147.00",QUARTZ PROPERTIES (LONDON) LTD,ACCOMMODATION BED & BREAKFAST,Place,Bed & Breakfast,A56000,0
Royal Borough of Kingston,01/08/2022,70029781,"1,302.00",QUARTZ PROPERTIES (LONDON) LTD,ACCOMMODATION BED & BREAKFAST,Place,Bed & Breakfast,A56000,0
Royal Borough of Kingston,01/08/2022,70029781,"1,922.00",QUARTZ PROPERTIES (LONDON) LTD,ACCOMMODATION BED & BREAKFAST,Place,Bed & Breakfast,A56000,0
Royal Borough of Kingston,01/08/2022,70029781,"1,209.00",QUARTZ PROPERTIES (LONDON) LTD,ACCOMMODATION BED & BREAKFAST,Place,Bed & Breakfast,A56000,0
Royal Borough of Kingston,01/08/2022,70029781,"1,147.00",QUARTZ PROPERTIES (LONDON) LTD,ACCOMMODATION BED & BREAKFAST,Place,Bed & Breakfast,A56000,0
Royal Borough of Kingston,01/08/2022,70029781,"1,147.00",QUARTZ PROPERTIES (LONDON) LTD,ACCOMMODATION BED & BREAKFAST,Place,Bed & Breakfast,A56000,0
Royal Borough of Kingston,01/08/2022,70029781,"1,147.00",QUARTZ PROPERTIES (LONDON) LTD,ACCOMMODATION BED & BREAKFAST,Place,Bed & Breakfast,A56000,0
Royal Borough of Kingston,01/08/2022,70029781,"1,147.00",QUARTZ PROPERTIES (LONDON) LTD,ACCOMMODATION BED & BREAKFAST,Place,Bed & Breakfast,A56000,0
Royal Borough of Kingston,01/08/2022,70029781,"1,546.90",QUARTZ PROPERTIES (LONDON) LTD,ACCOMMODATION BED & BREAKFAST,Place,Bed & Breakfast,A56000,0
Royal Borough of Kingston,01/08/2022,70029781,"1,929.75",QUARTZ PROPERTIES (LONDON) LTD,ACCOMMODATION BED & BREAKFAST,Place,Bed & Breakfast,A56000,0
Royal Borough of Kingston,01/08/2022,70029781,"1,674.00",QUARTZ PROPERTIES (LONDON) LTD,ACCOMMODATION BED & BREAKFAST,Place,Bed & Breakfast,A56000,0
Royal Borough of Kingston,01/08/2022,70029781,"1,929.75",QUARTZ PROPERTIES (LONDON) LTD,ACCOMMODATION BED & BREAKFAST,Place,Bed & Breakfast,A56000,0
Royal Borough of Kingston,01/08/2022,70029781,"1,147.00",QUARTZ PROPERTIES (LONDON) LTD,ACCOMMODATION BED & BREAKFAST,Place,Bed & Breakfast,A56000,0
Royal Borough of Kingston,01/08/2022,70029781,"1,147.00",QUARTZ PROPERTIES (LONDON) LTD,ACCOMMODATION BED & BREAKFAST,Place,Bed & Breakfast,A56000,0
Royal Borough of Kingston,01/08/2022,70029781,"1,488.00",QUARTZ PROPERTIES (LONDON) LTD,ACCOMMODATION BED & BREAKFAST,Place,Bed & Breakfast,A56000,0
Royal Borough of Kingston,01/08/2022,70029781,"1,829.00",QUARTZ PROPERTIES (LONDON) LTD,ACCOMMODATION BED & BREAKFAST,Place,Bed & Breakfast,A56000,0
Royal Borough of Kingston,01/08/2022,70029781,"1,643.00",QUARTZ PROPERTIES (LONDON) LTD,ACCOMMODATION BED & BREAKFAST,Place,Bed & Breakfast,A56000,0
Royal Borough of Kingston,01/08/2022,70029781,"1,643.00",QUARTZ PROPERTIES (LONDON) LTD,ACCOMMODATION BED & BREAKFAST,Place,Bed & Breakfast,A56000,0
Royal Borough of Kingston,01/08/2022,70029781,"1,643.00",QUARTZ PROPERTIES (LONDON) LTD,ACCOMMODATION BED & BREAKFAST,Place,Bed & Breakfast,A56000,0
Royal Borough of Kingston,01/08/2022,70029781,"1,147.00",QUARTZ PROPERTIES (LONDON) LTD,ACCOMMODATION BED & BREAKFAST,Place,Bed & Breakfast,A56000,0
Royal Borough of Kingston,01/08/2022,70029781,"1,147.00",QUARTZ PROPERTIES (LONDON) LTD,ACCOMMODATION BED & BREAKFAST,Place,Bed & Breakfast,A56000,0
Royal Borough of Kingston,01/08/2022,70029781,"1,147.00",QUARTZ PROPERTIES (LONDON) LTD,ACCOMMODATION BED & BREAKFAST,Place,Bed & Breakfast,A56000,0
Royal Borough of Kingston,01/08/2022,70029781,"1,829.00",QUARTZ PROPERTIES (LONDON) LTD,ACCOMMODATION BED & BREAKFAST,Place,Bed & Breakfast,A56000,0
Royal Borough of Kingston,01/08/2022,70029781,"2,480.00",QUARTZ PROPERTIES (LONDON) LTD,ACCOMMODATION BED & BREAKFAST,Place,Bed & Breakfast,A56000,0
Royal Borough of Kingston,01/08/2022,70029781,"1,302.00",QUARTZ PROPERTIES (LONDON) LTD,ACCOMMODATION BED & BREAKFAST,Place,Bed & Breakfast,A56000,0
Royal Borough of Kingston,01/08/2022,70029781,"1,302.00",QUARTZ PROPERTIES (LONDON) LTD,ACCOMMODATION BED & BREAKFAST,Place,Bed & Breakfast,A56000,0
Royal Borough of Kingston,01/08/2022,70029781,"1,147.00",QUARTZ PROPERTIES (LONDON) LTD,ACCOMMODATION BED & BREAKFAST,Place,Bed & Breakfast,A56000,0
Royal Borough of Kingston,01/08/2022,70029781,"2,046.00",QUARTZ PROPERTIES (LONDON) LTD,ACCOMMODATION BED & BREAKFAST,Place,Bed & Breakfast,A56000,0
Royal Borough of Kingston,01/08/2022,70029781,"1,147.00",QUARTZ PROPERTIES (LONDON) LTD,ACCOMMODATION BED & BREAKFAST,Place,Bed & Breakfast,A56000,0
Royal Borough of Kingston,01/08/2022,70029781,"2,046.00",QUARTZ PROPERTIES (LONDON) LTD,ACCOMMODATION BED & BREAKFAST,Place,Bed & Breakfast,A56000,0
Royal Borough of Kingston,01/08/2022,70029781,"1,147.00",QUARTZ PROPERTIES (LONDON) LTD,ACCOMMODATION BED & BREAKFAST,Place,Bed & Breakfast,A56000,0
Royal Borough of Kingston,01/08/2022,90156408,"10,237.88",QUEEN ELIZABETHS FOUND FOR DISABLED,CHARITIES & VOLUNTARY ORGNS,Adult Social Care & Health,Independent Placements,A56006,0
Royal Borough of Kingston,01/08/2022,90156581,"8,449.45",QUEEN ELIZABETHS FOUND FOR DISABLED,CHARITIES & VOLUNTARY ORGNS,Adult Social Care & Health,Independent Placements,A56006,0
Royal Borough of Kingston,01/08/2022,70030295,"2,997.92",R J LIFT SERVICES LTD,CONSTRUCTION INDUSTRY,Housing Revenue Account,Lift Servicing And Repairs,A20006,0
Royal Borough of Kingston,01/08/2022,90157093,551.25,Rapid Improvement Ltd,SOCIAL SERVICES - OTHER,Adult Social Care & Health,Homecare - new framework,A56127,0
Royal Borough of Kingston,01/08/2022,90157141,612.51,Rapid Improvement Ltd,SOCIAL SERVICES - OTHER,Adult Social Care & Health,Homecare - new framework,A56127,0
Royal Borough of Kingston,01/08/2022,90157148,551.25,Rapid Improvement Ltd,SOCIAL SERVICES - OTHER,Adult Social Care & Health,Homecare - new framework,A56127,0
Royal Borough of Kingston,01/08/2022,90157911,"8,994.83",REAMCARE LTD,SOCIAL SERVICES RESIDENTIAL,Adult Social Care & Health,Personal Budget - Third Party,A61019,0
Royal Borough of Kingston,01/08/2022,90157644,"2,735.40",REDACTED - PERSONAL DATA,SOCIAL SERVICES RESIDENTIAL,Adult Social Care & Health,Personal Budget - Third Party,A61019,0
Royal Borough of Kingston,01/08/2022,90157901,"2,226.42",REDACTED - PERSONAL DATA,SOCIAL SERVICES RESIDENTIAL,Adult Social Care & Health,Personal Budget - Third Party,A61019,0
Royal Borough of Kingston,01/08/2022,70029025,"1,050.00",REDACTED - PERSONAL DATA,SUNDRY SUPPLIER - HOUSING,Capital Programme,Buildings - Project Management,C14003,0
Royal Borough of Kingston,01/08/2022,90151725,"3,849.51",REDACTED - PERSONAL DATA,SOCIAL SERVICES RESIDENTIAL,Adult Social Care & Health,Independent Placements,A56006,0
Royal Borough of Kingston,01/08/2022,90151726,"3,977.83",REDACTED - PERSONAL DATA,SOCIAL SERVICES RESIDENTIAL,Adult Social Care & Health,Independent Placements,A56006,0
Royal Borough of Kingston,01/08/2022,90156350,"3,542.99",REDACTED - PERSONAL DATA,SOCIAL SERVICES RESIDENTIAL,Adult Social Care & Health,Independent Placements,A56006,0
Royal Borough of Kingston,01/08/2022,90156356,"3,542.99",REDACTED - PERSONAL DATA,SOCIAL SERVICES RESIDENTIAL,Adult Social Care & Health,Independent Placements,A56006,0
Royal Borough of Kingston,01/08/2022,90156358,"3,865.08",REDACTED - PERSONAL DATA,SOCIAL SERVICES RESIDENTIAL,Adult Social Care & Health,Independent Placements,A56006,0
Royal Borough of Kingston,01/08/2022,90156370,"3,542.99",REDACTED - PERSONAL DATA,SOCIAL SERVICES RESIDENTIAL,Adult Social Care & Health,Independent Placements,A56006,0
Royal Borough of Kingston,01/08/2022,90156392,"3,216.29",REDACTED - PERSONAL DATA,SOCIAL SERVICES RESIDENTIAL,Adult Social Care & Health,Independent Placements,A56006,0
Royal Borough of Kingston,01/08/2022,90156399,"3,216.29",REDACTED - PERSONAL DATA,SOCIAL SERVICES RESIDENTIAL,Adult Social Care & Health,Independent Placements,A56006,0
Royal Borough of Kingston,01/08/2022,90156403,"3,542.99",REDACTED - PERSONAL DATA,SOCIAL SERVICES RESIDENTIAL,Adult Social Care & Health,Independent Placements,A56006,0
Royal Borough of Kingston,01/08/2022,90156405,"3,977.83",REDACTED - PERSONAL DATA,SOCIAL SERVICES RESIDENTIAL,Adult Social Care & Health,Independent Placements,A56006,0
Royal Borough of Kingston,01/08/2022,90156483,"3,277.28",REDACTED - PERSONAL DATA,SOCIAL SERVICES RESIDENTIAL,Adult Social Care & Health,Independent Placements,A56006,0
Royal Borough of Kingston,01/08/2022,90156484,"3,542.99",REDACTED - PERSONAL DATA,SOCIAL SERVICES RESIDENTIAL,Adult Social Care & Health,Independent Placements,A56006,0
Royal Borough of Kingston,01/08/2022,90156486,"3,216.29",REDACTED - PERSONAL DATA,SOCIAL SERVICES RESIDENTIAL,Adult Social Care & Health,Independent Placements,A56006,0
Royal Borough of Kingston,01/08/2022,90156487,"3,542.99",REDACTED - PERSONAL DATA,SOCIAL SERVICES RESIDENTIAL,Adult Social Care & Health,Independent Placements,A56006,0
Royal Borough of Kingston,01/08/2022,90156491,"3,542.99",REDACTED - PERSONAL DATA,SOCIAL SERVICES RESIDENTIAL,Adult Social Care & Health,Independent Placements,A56006,0
Royal Borough of Kingston,01/08/2022,90156508,"3,865.08",REDACTED - PERSONAL DATA,SOCIAL SERVICES RESIDENTIAL,Adult Social Care & Health,Independent Placements,A56006,0
Royal Borough of Kingston,01/08/2022,90156678,"3,542.99",REDACTED - PERSONAL DATA,SOCIAL SERVICES RESIDENTIAL,Adult Social Care & Health,Other Private Contractors - Third Party,A56080,0
Royal Borough of Kingston,01/08/2022,70029024,"1,550.00",REDACTED - PERSONAL DATA,SUNDRY SUPPLIER - HOUSING,Capital Programme,Buildings - Project Management,C14003,0
Royal Borough of Kingston,01/08/2022,90157748,"3,467.97",REDACTED - PERSONAL DATA,SOCIAL SERVICES - PERSONAL BUDGETS,Adult Social Care & Health,Personal Budget - Third Party,A61019,0
Royal Borough of Kingston,01/08/2022,90157772,"4,096.61",REDACTED - PERSONAL DATA,SOCIAL SERVICES - PERSONAL BUDGETS,Adult Social Care & Health,Personal Budget - Third Party,A61019,0
Royal Borough of Kingston,01/08/2022,90157935,"2,833.80",REDACTED - PERSONAL DATA,SOCIAL SERVICES - PERSONAL BUDGETS,Adult Social Care & Health,Personal Budget - Third Party,A61019,0
Royal Borough of Kingston,01/08/2022,90157940,"2,875.87",REDACTED - PERSONAL DATA,SOCIAL SERVICES - PERSONAL BUDGETS,Adult Social Care & Health,Personal Budget - Third Party,A61019,0
Royal Borough of Kingston,01/08/2022,90157941,"1,392.87",REDACTED - PERSONAL DATA,SOCIAL SERVICES - PERSONAL BUDGETS,Adult Social Care & Health,Personal Budget - Third Party,A61019,0
Royal Borough of Kingston,01/08/2022,90157942,"2,068.23",REDACTED - PERSONAL DATA,SOCIAL SERVICES - PERSONAL BUDGETS,Adult Social Care & Health,Personal Budget - Third Party,A61019,0
Royal Borough of Kingston,01/08/2022,90157948,738.64,REDACTED - PERSONAL DATA,SOCIAL SERVICES - PERSONAL BUDGETS,Adult Social Care & Health,Personal Budget - Third Party,A61019,0
Royal Borough of Kingston,01/08/2022,90157965,"4,776.44",REDACTED - PERSONAL DATA,SOCIAL SERVICES - PERSONAL BUDGETS,Adult Social Care & Health,Personal Budget - Third Party,A61019,0
Royal Borough of Kingston,01/08/2022,90158131,647.19,REDACTED - PERSONAL DATA,SOCIAL SERVICES - PERSONAL BUDGETS,Adult Social Care & Health,Personal Budget - Third Party,A61019,0
Royal Borough of Kingston,01/08/2022,90158133,"1,960.93",REDACTED - PERSONAL DATA,SOCIAL SERVICES - PERSONAL BUDGETS,Adult Social Care & Health,Personal Budget - Third Party,A61019,0
Royal Borough of Kingston,01/08/2022,90158134,638.69,REDACTED - PERSONAL DATA,SOCIAL SERVICES - PERSONAL BUDGETS,Adult Social Care & Health,Personal Budget - Third Party,A61019,0
Royal Borough of Kingston,01/08/2022,90158138,638.69,REDACTED - PERSONAL DATA,SOCIAL SERVICES - PERSONAL BUDGETS,Adult Social Care & Health,Personal Budget - Third Party,A61019,0
Royal Borough of Kingston,01/08/2022,90158139,"1,080.35",REDACTED - PERSONAL DATA,SOCIAL SERVICES - PERSONAL BUDGETS,Adult Social Care & Health,Personal Budget - Third Party,A61019,0
Royal Borough of Kingston,01/08/2022,90156345,"3,379.31",REDACTED - PERSONAL DATA,SOCIAL SERVICES RESIDENTIAL,Adult Social Care & Health,Independent Placements,A56006,0
Royal Borough of Kingston,01/08/2022,90156414,"3,402.96",REDACTED - PERSONAL DATA,SOCIAL SERVICES RESIDENTIAL,Adult Social Care & Health,Independent Placements,A56006,0
Royal Borough of Kingston,01/08/2022,90156507,"2,898.81",REDACTED - PERSONAL DATA,SOCIAL SERVICES RESIDENTIAL,Adult Social Care & Health,Independent Placements,A56006,0
Royal Borough of Kingston,01/08/2022,90156613,"12,216.52",REDACTED - PERSONAL DATA,SOCIAL SERVICES RESIDENTIAL,Adult Social Care & Health,Independent Placements,A56006,0
Royal Borough of Kingston,01/08/2022,90156422,984.08,REDACTED - PERSONAL DATA,SOCIAL SERVICES-HOME CARE,Adult Social Care & Health,Independent Placements,A56006,0
Royal Borough of Kingston,01/08/2022,90158165,"6,359.43",REVON HEALTHCARE LTD,SOCIAL SERVICES RESIDENTIAL,Adult Social Care & Health,Personal Budget - Third Party,A61019,0
Royal Borough of Kingston,01/08/2022,90158167,"7,625.69",REVON HEALTHCARE LTD,SOCIAL SERVICES RESIDENTIAL,Adult Social Care & Health,Personal Budget - Third Party,A61019,0
Royal Borough of Kingston,01/08/2022,90158173,"6,124.94",REVON HEALTHCARE LTD,SOCIAL SERVICES RESIDENTIAL,Adult Social Care & Health,Personal Budget - Third Party,A61019,0
Royal Borough of Kingston,01/08/2022,90156687,"24,013.22",Right Support Management Limited,SOCIAL SERVICES - DIRECT PAYMENTS,Adult Social Care & Health,Other Private Contractors - Third Party,A56080,0
Royal Borough of Kingston,01/08/2022,90156246,"3,520.01",Rodwell House Limited,SOCIAL SERVICES RESIDENTIAL,Adult Social Care & Health,Independent Placements,A56006,0
Royal Borough of Kingston,01/08/2022,90156351,"3,450.96",ROSCLARE RESIDENTIAL HOME,SOCIAL SERVICES RESIDENTIAL,Adult Social Care & Health,Independent Placements,A56006,0
Royal Borough of Kingston,01/08/2022,90156497,"3,450.96",ROSCLARE RESIDENTIAL HOME,SOCIAL SERVICES RESIDENTIAL,Adult Social Care & Health,Independent Placements,A56006,0
Royal Borough of Kingston,01/08/2022,90156500,"3,764.29",ROSCLARE RESIDENTIAL HOME,SOCIAL SERVICES RESIDENTIAL,Adult Social Care & Health,Independent Placements,A56006,0
Royal Borough of Kingston,01/08/2022,90156501,"3,764.29",ROSCLARE RESIDENTIAL HOME,SOCIAL SERVICES RESIDENTIAL,Adult Social Care & Health,Independent Placements,A56006,0
Royal Borough of Kingston,01/08/2022,90156515,"3,985.71",ROSCLARE RESIDENTIAL HOME,SOCIAL SERVICES RESIDENTIAL,Adult Social Care & Health,Independent Placements,A56006,0
Royal Borough of Kingston,01/08/2022,90156548,"3,082.86",ROSCLARE RESIDENTIAL HOME,SOCIAL SERVICES RESIDENTIAL,Adult Social Care & Health,Independent Placements,A56006,0
Royal Borough of Kingston,01/08/2022,70029196,"3,454.67",ROYAL MAIL GROUP LTD,OFFICE SERVICES,Corporate & Communities,Postage & Couriers,A45015,0
Royal Borough of Kingston,01/08/2022,90156566,"9,396.32",SEEABILITY,CHARITIES & VOLUNTARY ORGNS,Adult Social Care & Health,Independent Placements,A56006,0
Royal Borough of Kingston,01/08/2022,90156577,"13,828.21",SEEABILITY,CHARITIES & VOLUNTARY ORGNS,Adult Social Care & Health,Independent Placements,A56006,0
Royal Borough of Kingston,01/08/2022,90156589,"11,075.46",SEEABILITY,CHARITIES & VOLUNTARY ORGNS,Adult Social Care & Health,Independent Placements,A56006,0
Royal Borough of Kingston,01/08/2022,90157820,"1,654.60",SEEABILITY,CHARITIES & VOLUNTARY ORGNS,Adult Social Care & Health,Personal Budget - Third Party,A61019,0
Royal Borough of Kingston,01/08/2022,90157843,"1,654.60",SEEABILITY,CHARITIES & VOLUNTARY ORGNS,Adult Social Care & Health,Personal Budget - Third Party,A61019,0
Royal Borough of Kingston,01/08/2022,90157857,"10,518.43",SEEABILITY,CHARITIES & VOLUNTARY ORGNS,Adult Social Care & Health,Personal Budget - Third Party,A61019,0
Royal Borough of Kingston,01/08/2022,90158132,"2,423.93",SIGN HEALTH,SOCIAL SERVICES - OTHER,Adult Social Care & Health,Personal Budget - Third Party,A61019,0
Royal Borough of Kingston,01/08/2022,70030614,"1,687.50",Smartspace Properties,ACCOMMODATION BED & BREAKFAST,Place,Bed & Breakfast,A56000,0
Royal Borough of Kingston,01/08/2022,70030614,"1,488.00",Smartspace Properties,ACCOMMODATION BED & BREAKFAST,Place,Bed & Breakfast,A56000,0
Royal Borough of Kingston,01/08/2022,70030614,"1,426.00",Smartspace Properties,ACCOMMODATION BED & BREAKFAST,Place,Bed & Breakfast,A56000,0
Royal Borough of Kingston,01/08/2022,70030614,"1,488.00",Smartspace Properties,ACCOMMODATION BED & BREAKFAST,Place,Bed & Breakfast,A56000,0
Royal Borough of Kingston,01/08/2022,70030614,"2,294.00",Smartspace Properties,ACCOMMODATION BED & BREAKFAST,Place,Bed & Breakfast,A56000,0
Royal Borough of Kingston,01/08/2022,70030614,"1,984.00",Smartspace Properties,ACCOMMODATION BED & BREAKFAST,Place,Bed & Breakfast,A56000,0
Royal Borough of Kingston,01/08/2022,90156287,"3,450.96",SOUTH LONDON NURSING HOMES,SOCIAL SERVICES RESIDENTIAL,Adult Social Care & Health,Independent Placements,A56006,0
Royal Borough of Kingston,01/08/2022,90156293,"3,013.86",SOUTH LONDON NURSING HOMES,SOCIAL SERVICES RESIDENTIAL,Adult Social Care & Health,Independent Placements,A56006,0
Royal Borough of Kingston,01/08/2022,90156327,"3,653.57",SOUTH LONDON NURSING HOMES,SOCIAL SERVICES RESIDENTIAL,Adult Social Care & Health,Independent Placements,A56006,0
Royal Borough of Kingston,01/08/2022,90156298,"3,985.71",SPEIRS HOUSE,SOCIAL SERVICES RESIDENTIAL,Adult Social Care & Health,Independent Placements,A56006,0
Royal Borough of Kingston,01/08/2022,90156312,"3,911.09",SPEIRS HOUSE,SOCIAL SERVICES RESIDENTIAL,Adult Social Care & Health,Independent Placements,A56006,0
Royal Borough of Kingston,01/08/2022,90156552,"5,153.66",ST ANN'S  LIMITED,SOCIAL SERVICES RESIDENTIAL,Adult Social Care & Health,Independent Placements,A56006,0
Royal Borough of Kingston,01/08/2022,90156557,"4,698.14",ST ANN'S  LIMITED,SOCIAL SERVICES RESIDENTIAL,Adult Social Care & Health,Independent Placements,A56006,0
Royal Borough of Kingston,01/08/2022,90156561,"4,698.14",ST ANN'S  LIMITED,SOCIAL SERVICES RESIDENTIAL,Adult Social Care & Health,Independent Placements,A56006,0
Royal Borough of Kingston,01/08/2022,90156565,"4,698.14",ST ANN'S  LIMITED,SOCIAL SERVICES RESIDENTIAL,Adult Social Care & Health,Independent Placements,A56006,0
Royal Borough of Kingston,01/08/2022,90156568,"5,229.61",ST ANN'S  LIMITED,SOCIAL SERVICES RESIDENTIAL,Adult Social Care & Health,Independent Placements,A56006,0
Royal Borough of Kingston,01/08/2022,90156583,"4,698.14",ST ANN'S  LIMITED,SOCIAL SERVICES RESIDENTIAL,Adult Social Care & Health,Independent Placements,A56006,0
Royal Borough of Kingston,01/08/2022,90156592,"4,698.14",ST ANN'S  LIMITED,SOCIAL SERVICES RESIDENTIAL,Adult Social Care & Health,Independent Placements,A56006,0
Royal Borough of Kingston,01/08/2022,90156593,"5,153.66",ST ANN'S  LIMITED,SOCIAL SERVICES RESIDENTIAL,Adult Social Care & Health,Independent Placements,A56006,0
Royal Borough of Kingston,01/08/2022,90156597,"4,698.14",ST ANN'S  LIMITED,SOCIAL SERVICES RESIDENTIAL,Adult Social Care & Health,Independent Placements,A56006,0
Royal Borough of Kingston,01/08/2022,90156599,"5,153.66",ST ANN'S  LIMITED,SOCIAL SERVICES RESIDENTIAL,Adult Social Care & Health,Independent Placements,A56006,0
Royal Borough of Kingston,01/08/2022,90158229,"4,698.14",ST ANN'S  LIMITED,SOCIAL SERVICES RESIDENTIAL,Adult Social Care & Health,Independent Placements,A56006,0
Royal Borough of Kingston,01/08/2022,90158230,"6,938.51",ST ANN'S  LIMITED,SOCIAL SERVICES RESIDENTIAL,Adult Social Care & Health,Independent Placements,A56006,0
Royal Borough of Kingston,01/08/2022,90156461,"5,061.41",ST AUGUSTINE'S HOME,SOCIAL SERVICES RESIDENTIAL,Adult Social Care & Health,Independent Placements,A56006,0
Royal Borough of Kingston,01/08/2022,90156608,"6,211.74",STALLCOMBE HOUSE,SOCIAL SERVICES - OTHER,Adult Social Care & Health,Independent Placements,A56006,0
Royal Borough of Kingston,01/08/2022,90157910,"8,652.81",STANMORE HOUSE,SOCIAL SERVICES RESIDENTIAL,Adult Social Care & Health,Personal Budget - Third Party,A61019,0
Royal Borough of Kingston,01/08/2022,70030303,216,Stef and Philips,ACCOMMODATION BED & BREAKFAST,Place,Bed & Breakfast,A56000,0
Royal Borough of Kingston,01/08/2022,70030303,216,Stef and Philips,ACCOMMODATION BED & BREAKFAST,Place,Bed & Breakfast,A56000,0
Royal Borough of Kingston,01/08/2022,70030303,432,Stef and Philips,ACCOMMODATION BED & BREAKFAST,Place,Bed & Breakfast,A56000,0
Royal Borough of Kingston,01/08/2022,70030304,"1,085.00",Stef and Philips,ACCOMMODATION BED & BREAKFAST,Place,Bed & Breakfast,A56000,0
Royal Borough of Kingston,01/08/2022,70030304,105,Stef and Philips,ACCOMMODATION BED & BREAKFAST,Place,Bed & Breakfast,A56000,0
Royal Borough of Kingston,01/08/2022,70030305,"1,085.00",Stef and Philips,ACCOMMODATION BED & BREAKFAST,Place,Bed & Breakfast,A56000,0
Royal Borough of Kingston,01/08/2022,70030305,"1,085.00",Stef and Philips,ACCOMMODATION BED & BREAKFAST,Place,Bed & Breakfast,A56000,0
Royal Borough of Kingston,01/08/2022,70030306,420,Stef and Philips,ACCOMMODATION BED & BREAKFAST,Place,Bed & Breakfast,A56000,0
Royal Borough of Kingston,01/08/2022,70030307,"1,085.00",Stef and Philips,ACCOMMODATION BED & BREAKFAST,Place,Bed & Breakfast,A56000,0
Royal Borough of Kingston,01/08/2022,70030308,"1,023.00",Stef and Philips,ACCOMMODATION BED & BREAKFAST,Place,Bed & Breakfast,A56000,0
Royal Borough of Kingston,01/08/2022,70030309,"1,116.00",Stef and Philips,ACCOMMODATION BED & BREAKFAST,Place,Bed & Breakfast,A56000,0
Royal Borough of Kingston,01/08/2022,70030310,840,Stef and Philips,ACCOMMODATION BED & BREAKFAST,Place,Bed & Breakfast,A56000,0
Royal Borough of Kingston,01/08/2022,70030311,"1,116.00",Stef and Philips,ACCOMMODATION BED & BREAKFAST,Place,Bed & Breakfast,A56000,0
Royal Borough of Kingston,01/08/2022,70030312,"1,085.00",Stef and Philips,ACCOMMODATION BED & BREAKFAST,Place,Bed & Breakfast,A56000,0
Royal Borough of Kingston,01/08/2022,70030312,"1,085.00",Stef and Philips,ACCOMMODATION BED & BREAKFAST,Place,Bed & Breakfast,A56000,0
Royal Borough of Kingston,01/08/2022,70030312,"1,085.00",Stef and Philips,ACCOMMODATION BED & BREAKFAST,Place,Bed & Breakfast,A56000,0
Royal Borough of Kingston,01/08/2022,70030313,"1,116.00",Stef and Philips,ACCOMMODATION BED & BREAKFAST,Place,Bed & Breakfast,A56000,0
Royal Borough of Kingston,01/08/2022,70030313,"1,116.00",Stef and Philips,ACCOMMODATION BED & BREAKFAST,Place,Bed & Breakfast,A56000,0
Royal Borough of Kingston,01/08/2022,70030313,"1,116.00",Stef and Philips,ACCOMMODATION BED & BREAKFAST,Place,Bed & Breakfast,A56000,0
Royal Borough of Kingston,01/08/2022,70030314,"1,085.00",Stef and Philips,ACCOMMODATION BED & BREAKFAST,Place,Bed & Breakfast,A56000,0
Royal Borough of Kingston,01/08/2022,70030314,"1,085.00",Stef and Philips,ACCOMMODATION BED & BREAKFAST,Place,Bed & Breakfast,A56000,0
Royal Borough of Kingston,01/08/2022,70030314,"1,085.00",Stef and Philips,ACCOMMODATION BED & BREAKFAST,Place,Bed & Breakfast,A56000,0
Royal Borough of Kingston,01/08/2022,70030315,"1,023.00",Stef and Philips,ACCOMMODATION BED & BREAKFAST,Place,Bed & Breakfast,A56000,0
Royal Borough of Kingston,01/08/2022,70030315,105,Stef and Philips,ACCOMMODATION BED & BREAKFAST,Place,Bed & Breakfast,A56000,0
Royal Borough of Kingston,01/08/2022,70030316,"2,015.00",Stef and Philips,ACCOMMODATION BED & BREAKFAST,Place,Bed & Breakfast,A56000,0
Royal Borough of Kingston,01/08/2022,70030317,"1,116.00",Stef and Philips,ACCOMMODATION BED & BREAKFAST,Place,Bed & Breakfast,A56000,0
Royal Borough of Kingston,01/08/2022,70030317,"1,116.00",Stef and Philips,ACCOMMODATION BED & BREAKFAST,Place,Bed & Breakfast,A56000,0
Royal Borough of Kingston,01/08/2022,70030318,900,Stef and Philips,ACCOMMODATION BED & BREAKFAST,Place,Bed & Breakfast,A56000,0
Royal Borough of Kingston,01/08/2022,70030318,468,Stef and Philips,ACCOMMODATION BED & BREAKFAST,Place,Bed & Breakfast,A56000,0
Royal Borough of Kingston,01/08/2022,70030318,350,Stef and Philips,ACCOMMODATION BED & BREAKFAST,Place,Bed & Breakfast,A56000,0
Royal Borough of Kingston,01/08/2022,70030319,"1,023.00",Stef and Philips,ACCOMMODATION BED & BREAKFAST,Place,Bed & Breakfast,A56000,0
Royal Borough of Kingston,01/08/2022,70030319,"1,023.00",Stef and Philips,ACCOMMODATION BED & BREAKFAST,Place,Bed & Breakfast,A56000,0
Royal Borough of Kingston,01/08/2022,70030319,"1,023.00",Stef and Philips,ACCOMMODATION BED & BREAKFAST,Place,Bed & Breakfast,A56000,0
Royal Borough of Kingston,01/08/2022,70030319,"1,023.00",Stef and Philips,ACCOMMODATION BED & BREAKFAST,Place,Bed & Breakfast,A56000,0
Royal Borough of Kingston,01/08/2022,70030319,792,Stef and Philips,ACCOMMODATION BED & BREAKFAST,Place,Bed & Breakfast,A56000,0
Royal Borough of Kingston,01/08/2022,70030319,231,Stef and Philips,ACCOMMODATION BED & BREAKFAST,Place,Bed & Breakfast,A56000,0
Royal Borough of Kingston,01/08/2022,70030320,"1,116.00",Stef and Philips,ACCOMMODATION BED & BREAKFAST,Place,Bed & Breakfast,A56000,0
Royal Borough of Kingston,01/08/2022,70030320,"1,085.00",Stef and Philips,ACCOMMODATION BED & BREAKFAST,Place,Bed & Breakfast,A56000,0
Royal Borough of Kingston,01/08/2022,70030320,"1,705.00",Stef and Philips,ACCOMMODATION BED & BREAKFAST,Place,Bed & Breakfast,A56000,0
Royal Borough of Kingston,01/08/2022,90157829,"5,393.34",SUGARMAN HEALTH & WELLBEING LTD,TEMP STAFF & CONSULTANCY,Adult Social Care & Health,Personal Budget - Third Party,A61019,0
Royal Borough of Kingston,01/08/2022,90156224,"4,601.29",SURBITON CARE HOMES LTD,SOCIAL SERVICES DAY CARE,Adult Social Care & Health,Independent Placements,A56006,0
Royal Borough of Kingston,01/08/2022,90156256,"3,013.86",SURBITON CARE HOMES LTD,SOCIAL SERVICES DAY CARE,Adult Social Care & Health,Independent Placements,A56006,0
Royal Borough of Kingston,01/08/2022,90156272,"2,185.71",SURBITON CARE HOMES LTD,SOCIAL SERVICES DAY CARE,Adult Social Care & Health,Independent Placements,A56006,0
Royal Borough of Kingston,01/08/2022,90156303,"3,013.86",SURBITON CARE HOMES LTD,SOCIAL SERVICES DAY CARE,Adult Social Care & Health,Independent Placements,A56006,0
Royal Borough of Kingston,01/08/2022,90156305,"3,450.96",SURBITON CARE HOMES LTD,SOCIAL SERVICES DAY CARE,Adult Social Care & Health,Independent Placements,A56006,0
Royal Borough of Kingston,01/08/2022,90156328,"3,653.57",SURBITON CARE HOMES LTD,SOCIAL SERVICES DAY CARE,Adult Social Care & Health,Independent Placements,A56006,0
Royal Borough of Kingston,01/08/2022,90156446,"4,069.55",SURBITON CARE HOMES LTD,SOCIAL SERVICES DAY CARE,Adult Social Care & Health,Independent Placements,A56006,0
Royal Borough of Kingston,01/08/2022,90155620,793.34,SURBITON HOMECARE MANAGEMENT LTD,SOCIAL SERVICES-HOME CARE,Adult Social Care & Health,Personal Budget - Third Party,A61019,0
Royal Borough of Kingston,01/08/2022,90155750,875.26,SURBITON HOMECARE MANAGEMENT LTD,SOCIAL SERVICES-HOME CARE,Adult Social Care & Health,Personal Budget - Third Party,A61019,0
Royal Borough of Kingston,01/08/2022,90156540,"16,647.35",SURREY AND BORDERS PARTNERSHIP NHS FOUNDATION TRUST,SOCIAL SERVICES DAY CARE,Adult Social Care & Health,Independent Placements,A56006,0
Royal Borough of Kingston,01/08/2022,70030454,"6,138.49",SWEET TREE HOME CARE SERVICES LTD,SOCIAL SERVICES-HOME CARE,Adult Social Care & Health,Personal Budget - Third Party,A61019,0
Royal Borough of Kingston,01/08/2022,70029405,"13,628.27",TELEFONICA O2 UK ,TELECOMS,Corporate & Communities,Mobile Phones,A45030,0
Royal Borough of Kingston,01/08/2022,90156600,"15,994.01",THE DAVID LEWIS CENTRE,CHARITIES & VOLUNTARY ORGNS,Adult Social Care & Health,Independent Placements,A56006,0
Royal Borough of Kingston,01/08/2022,90156546,"4,941.18",THE FIRCROFT TRUST,CHARITIES & VOLUNTARY ORGNS,Adult Social Care & Health,Independent Placements,A56006,0
Royal Borough of Kingston,01/08/2022,90156547,"4,889.85",THE FIRCROFT TRUST,CHARITIES & VOLUNTARY ORGNS,Adult Social Care & Health,Independent Placements,A56006,0
Royal Borough of Kingston,01/08/2022,90156606,"5,402.68",THE FIRCROFT TRUST,CHARITIES & VOLUNTARY ORGNS,Adult Social Care & Health,Independent Placements,A56006,0
Royal Borough of Kingston,01/08/2022,90157783,"2,741.55",THE FIRCROFT TRUST,CHARITIES & VOLUNTARY ORGNS,Adult Social Care & Health,Personal Budget - Third Party,A61019,0
Royal Borough of Kingston,01/08/2022,90157875,"2,839.51",THE FIRCROFT TRUST,CHARITIES & VOLUNTARY ORGNS,Adult Social Care & Health,Personal Budget - Third Party,A61019,0
Royal Borough of Kingston,01/08/2022,90157906,"2,388.15",THE FIRCROFT TRUST,CHARITIES & VOLUNTARY ORGNS,Adult Social Care & Health,Personal Budget - Third Party,A61019,0
Royal Borough of Kingston,01/08/2022,90157938,"2,834.60",THE FIRCROFT TRUST,CHARITIES & VOLUNTARY ORGNS,Adult Social Care & Health,Personal Budget - Third Party,A61019,0
Royal Borough of Kingston,01/08/2022,90157944,"2,888.40",THE FIRCROFT TRUST,CHARITIES & VOLUNTARY ORGNS,Adult Social Care & Health,Personal Budget - Third Party,A61019,0
Royal Borough of Kingston,01/08/2022,90157973,"1,714.03",THE FIRCROFT TRUST,CHARITIES & VOLUNTARY ORGNS,Adult Social Care & Health,Personal Budget - Third Party,A61019,0
Royal Borough of Kingston,01/08/2022,90157991,"3,193.62",THE FIRCROFT TRUST,CHARITIES & VOLUNTARY ORGNS,Adult Social Care & Health,Personal Budget - Third Party,A61019,0
Royal Borough of Kingston,01/08/2022,90158178,"1,427.73",THE FIRCROFT TRUST,CHARITIES & VOLUNTARY ORGNS,Adult Social Care & Health,Personal Budget - Third Party,A61019,0
Royal Borough of Kingston,01/08/2022,90158210,-695.06,THE FIRCROFT TRUST,CHARITIES & VOLUNTARY ORGNS,Adult Social Care & Health,Financially Assessed Contributions clients � Non VAT,A92047,0
Royal Borough of Kingston,01/08/2022,90158211,-695.06,THE FIRCROFT TRUST,CHARITIES & VOLUNTARY ORGNS,Adult Social Care & Health,Financially Assessed Contributions clients � Non VAT,A92047,0
Royal Borough of Kingston,01/08/2022,90156585,"2,651.16",THE FRANCES TAYLOR FOUNDATION,SOCIAL SERVICES RESIDENTIAL,Adult Social Care & Health,Independent Placements,A56006,0
Royal Borough of Kingston,01/08/2022,90156688,864.94,THE FRANCES TAYLOR FOUNDATION,SOCIAL SERVICES RESIDENTIAL,Adult Social Care & Health,Other Private Contractors - Third Party,A56080,0
Royal Borough of Kingston,01/08/2022,90157675,"1,400.85",THE GRANGE CENTRE,SOCIAL SERVICES RESIDENTIAL,Adult Social Care & Health,Personal Budget - Third Party,A61019,0
Royal Borough of Kingston,01/08/2022,90157682,"1,050.63",THE GRANGE CENTRE,SOCIAL SERVICES RESIDENTIAL,Adult Social Care & Health,Personal Budget - Third Party,A61019,0
Royal Borough of Kingston,01/08/2022,90157709,"1,085.00",THE GRANGE CENTRE,SOCIAL SERVICES RESIDENTIAL,Adult Social Care & Health,Personal Budget - Third Party,A61019,0
Royal Borough of Kingston,01/08/2022,90157834,"3,764.68",THE GRANGE CENTRE,SOCIAL SERVICES RESIDENTIAL,Adult Social Care & Health,Personal Budget - Third Party,A61019,0
Royal Borough of Kingston,01/08/2022,90157904,"2,716.97",THE GRANGE CENTRE,SOCIAL SERVICES RESIDENTIAL,Adult Social Care & Health,Personal Budget - Third Party,A61019,0
Royal Borough of Kingston,01/08/2022,90156553,"4,010.43",THE HOME FARM TRUST LTD,SOCIAL SERVICES RESIDENTIAL,Adult Social Care & Health,Independent Placements,A56006,0
Royal Borough of Kingston,01/08/2022,90156584,"2,923.30",THE HOME FARM TRUST LTD,SOCIAL SERVICES RESIDENTIAL,Adult Social Care & Health,Independent Placements,A56006,0
Royal Borough of Kingston,01/08/2022,90156604,"4,180.39",THE HOME FARM TRUST LTD,SOCIAL SERVICES RESIDENTIAL,Adult Social Care & Health,Independent Placements,A56006,0
Royal Borough of Kingston,01/08/2022,90156614,"5,179.88",THE HOME FARM TRUST LTD,SOCIAL SERVICES RESIDENTIAL,Adult Social Care & Health,Independent Placements,A56006,0
Royal Borough of Kingston,01/08/2022,90157793,"7,017.74",THE HOME FARM TRUST LTD,SOCIAL SERVICES RESIDENTIAL,Adult Social Care & Health,Personal Budget - Third Party,A61019,0
Royal Borough of Kingston,01/08/2022,90157818,"1,692.11",THE HOME FARM TRUST LTD,SOCIAL SERVICES RESIDENTIAL,Adult Social Care & Health,Personal Budget - Third Party,A61019,0
Royal Borough of Kingston,01/08/2022,90157819,"1,530.13",THE HOME FARM TRUST LTD,SOCIAL SERVICES RESIDENTIAL,Adult Social Care & Health,Personal Budget - Third Party,A61019,0
Royal Borough of Kingston,01/08/2022,90157884,"1,264.14",THE HOME FARM TRUST LTD,SOCIAL SERVICES RESIDENTIAL,Adult Social Care & Health,Personal Budget - Third Party,A61019,0
Royal Borough of Kingston,01/08/2022,90157885,"6,662.30",THE HOME FARM TRUST LTD,SOCIAL SERVICES RESIDENTIAL,Adult Social Care & Health,Personal Budget - Third Party,A61019,0
Royal Borough of Kingston,01/08/2022,90157891,"7,454.97",THE HOME FARM TRUST LTD,SOCIAL SERVICES RESIDENTIAL,Adult Social Care & Health,Personal Budget - Third Party,A61019,0
Royal Borough of Kingston,01/08/2022,90157899,927.17,THE HOME FARM TRUST LTD,SOCIAL SERVICES RESIDENTIAL,Adult Social Care & Health,Personal Budget - Third Party,A61019,0
Royal Borough of Kingston,01/08/2022,90157908,648.65,THE HOME FARM TRUST LTD,SOCIAL SERVICES RESIDENTIAL,Adult Social Care & Health,Personal Budget - Third Party,A61019,0
Royal Borough of Kingston,01/08/2022,90157909,"2,432.39",THE HOME FARM TRUST LTD,SOCIAL SERVICES RESIDENTIAL,Adult Social Care & Health,Personal Budget - Third Party,A61019,0
Royal Borough of Kingston,01/08/2022,90157937,"5,235.28",THE HOME FARM TRUST LTD,SOCIAL SERVICES RESIDENTIAL,Adult Social Care & Health,Personal Budget - Third Party,A61019,0
Royal Borough of Kingston,01/08/2022,90157947,"7,429.02",THE HOME FARM TRUST LTD,SOCIAL SERVICES RESIDENTIAL,Adult Social Care & Health,Personal Budget - Third Party,A61019,0
Royal Borough of Kingston,01/08/2022,90157970,674.6,THE HOME FARM TRUST LTD,SOCIAL SERVICES RESIDENTIAL,Adult Social Care & Health,Personal Budget - Third Party,A61019,0
Royal Borough of Kingston,01/08/2022,90157972,"1,665.41",THE HOME FARM TRUST LTD,SOCIAL SERVICES RESIDENTIAL,Adult Social Care & Health,Personal Budget - Third Party,A61019,0
Royal Borough of Kingston,01/08/2022,90157994,"7,062.60",THE HOME FARM TRUST LTD,SOCIAL SERVICES RESIDENTIAL,Adult Social Care & Health,Personal Budget - Third Party,A61019,0
Royal Borough of Kingston,01/08/2022,90156576,"4,555.27",THE MANOR CARE HOME (SUSSEX) LLP,SOCIAL SERVICES RESIDENTIAL,Adult Social Care & Health,Independent Placements,A56006,0
Royal Borough of Kingston,01/08/2022,90156555,"5,843.85",THE MEATH TRUST,SOCIAL SERVICES RESIDENTIAL,Adult Social Care & Health,Independent Placements,A56006,0
Royal Borough of Kingston,01/08/2022,90156563,"5,456.00",THE MEATH TRUST,SOCIAL SERVICES RESIDENTIAL,Adult Social Care & Health,Independent Placements,A56006,0
Royal Borough of Kingston,01/08/2022,90156691,"8,226.29",THE MEATH TRUST,SOCIAL SERVICES RESIDENTIAL,Adult Social Care & Health,Other Private Contractors - Third Party,A56080,0
Royal Borough of Kingston,01/08/2022,90156621,"5,521.54",The Partnership In Care Ltd,ACCOMMODATION - OTHER,Adult Social Care & Health,Independent Placements,A56006,0
Royal Borough of Kingston,01/08/2022,90156605,"11,125.28",THE PRIORY GROUP,SOCIAL SERVICES RESIDENTIAL,Adult Social Care & Health,Independent Placements,A56006,0
Royal Borough of Kingston,01/08/2022,90155027,"3,406.46",THE ROYAL STAR AND GARTER HOME,SOCIAL SERVICES RESIDENTIAL,Adult Social Care & Health,Independent Placements,A56006,0
Royal Borough of Kingston,01/08/2022,90155028,"3,520.01",THE ROYAL STAR AND GARTER HOME,SOCIAL SERVICES RESIDENTIAL,Adult Social Care & Health,Independent Placements,A56006,0
Royal Borough of Kingston,01/08/2022,90156250,"3,450.96",THE ROYAL STAR AND GARTER HOME,SOCIAL SERVICES RESIDENTIAL,Adult Social Care & Health,Independent Placements,A56006,0
Royal Borough of Kingston,01/08/2022,90156285,"3,520.01",THE ROYAL STAR AND GARTER HOME,SOCIAL SERVICES RESIDENTIAL,Adult Social Care & Health,Independent Placements,A56006,0
Royal Borough of Kingston,01/08/2022,90156309,"3,450.96",THE ROYAL STAR AND GARTER HOME,SOCIAL SERVICES RESIDENTIAL,Adult Social Care & Health,Independent Placements,A56006,0
Royal Borough of Kingston,01/08/2022,90156311,"3,520.01",THE ROYAL STAR AND GARTER HOME,SOCIAL SERVICES RESIDENTIAL,Adult Social Care & Health,Independent Placements,A56006,0
Royal Borough of Kingston,01/08/2022,90156316,"6,468.86",THE ROYAL STAR AND GARTER HOME,SOCIAL SERVICES RESIDENTIAL,Adult Social Care & Health,Independent Placements,A56006,0
Royal Borough of Kingston,01/08/2022,90156320,"1,293.77",THE ROYAL STAR AND GARTER HOME,SOCIAL SERVICES RESIDENTIAL,Adult Social Care & Health,Independent Placements,A56006,0
Royal Borough of Kingston,01/08/2022,90156321,"2,838.71",THE ROYAL STAR AND GARTER HOME,SOCIAL SERVICES RESIDENTIAL,Adult Social Care & Health,Independent Placements,A56006,0
Royal Borough of Kingston,01/08/2022,90156322,"3,450.96",THE ROYAL STAR AND GARTER HOME,SOCIAL SERVICES RESIDENTIAL,Adult Social Care & Health,Independent Placements,A56006,0
Royal Borough of Kingston,01/08/2022,90156324,"3,520.01",THE ROYAL STAR AND GARTER HOME,SOCIAL SERVICES RESIDENTIAL,Adult Social Care & Health,Independent Placements,A56006,0
Royal Borough of Kingston,01/08/2022,90156325,"3,520.01",THE ROYAL STAR AND GARTER HOME,SOCIAL SERVICES RESIDENTIAL,Adult Social Care & Health,Independent Placements,A56006,0
Royal Borough of Kingston,01/08/2022,90156426,"3,520.01",THE ROYAL STAR AND GARTER HOME,SOCIAL SERVICES RESIDENTIAL,Adult Social Care & Health,Independent Placements,A56006,0
Royal Borough of Kingston,01/08/2022,90156450,908.39,THE ROYAL STAR AND GARTER HOME,SOCIAL SERVICES RESIDENTIAL,Adult Social Care & Health,Independent Placements,A56006,0
Royal Borough of Kingston,01/08/2022,90156451,"2,611.62",THE ROYAL STAR AND GARTER HOME,SOCIAL SERVICES RESIDENTIAL,Adult Social Care & Health,Independent Placements,A56006,0
Royal Borough of Kingston,01/08/2022,90156452,"2,157.42",THE ROYAL STAR AND GARTER HOME,SOCIAL SERVICES RESIDENTIAL,Adult Social Care & Health,Independent Placements,A56006,0
Royal Borough of Kingston,01/08/2022,90156453,"3,520.01",THE ROYAL STAR AND GARTER HOME,SOCIAL SERVICES RESIDENTIAL,Adult Social Care & Health,Independent Placements,A56006,0
Royal Borough of Kingston,01/08/2022,90156454,"3,520.01",THE ROYAL STAR AND GARTER HOME,SOCIAL SERVICES RESIDENTIAL,Adult Social Care & Health,Independent Placements,A56006,0
Royal Borough of Kingston,01/08/2022,90156266,"3,450.96",THE WHITE HOUSE NURSING HOME LTD,SOCIAL SERVICES RESIDENTIAL,Adult Social Care & Health,Independent Placements,A56006,0
Royal Borough of Kingston,01/08/2022,90156276,"3,865.08",THE WHITE HOUSE NURSING HOME LTD,SOCIAL SERVICES RESIDENTIAL,Adult Social Care & Health,Independent Placements,A56006,0
Royal Borough of Kingston,01/08/2022,90156278,"3,865.08",THE WHITE HOUSE NURSING HOME LTD,SOCIAL SERVICES RESIDENTIAL,Adult Social Care & Health,Independent Placements,A56006,0
Royal Borough of Kingston,01/08/2022,90156279,"3,865.08",THE WHITE HOUSE NURSING HOME LTD,SOCIAL SERVICES RESIDENTIAL,Adult Social Care & Health,Independent Placements,A56006,0
Royal Borough of Kingston,01/08/2022,90156288,"3,450.96",THE WHITE HOUSE NURSING HOME LTD,SOCIAL SERVICES RESIDENTIAL,Adult Social Care & Health,Independent Placements,A56006,0
Royal Borough of Kingston,01/08/2022,90156295,"5,061.41",THE WHITE HOUSE NURSING HOME LTD,SOCIAL SERVICES RESIDENTIAL,Adult Social Care & Health,Independent Placements,A56006,0
Royal Borough of Kingston,01/08/2022,90156301,"3,763.84",THE WHITE HOUSE NURSING HOME LTD,SOCIAL SERVICES RESIDENTIAL,Adult Social Care & Health,Independent Placements,A56006,0
Royal Borough of Kingston,01/08/2022,90156307,"3,720.00",THE WHITE HOUSE NURSING HOME LTD,SOCIAL SERVICES RESIDENTIAL,Adult Social Care & Health,Independent Placements,A56006,0
Royal Borough of Kingston,01/08/2022,90156326,"3,865.08",THE WHITE HOUSE NURSING HOME LTD,SOCIAL SERVICES RESIDENTIAL,Adult Social Care & Health,Independent Placements,A56006,0
Royal Borough of Kingston,01/08/2022,90156624,"3,681.03",THEANA LIMITED,SOCIAL SERVICES RESIDENTIAL,Adult Social Care & Health,Independent Placements,A56006,0
Royal Borough of Kingston,01/08/2022,90156344,"11,503.21",TITLEWORTH NEURO,SOCIAL SERVICES RESIDENTIAL,Adult Social Care & Health,Independent Placements,A56006,0
Royal Borough of Kingston,01/08/2022,90156359,"5,521.54",TREEMONT CARE LTD ,SOCIAL SERVICES - OTHER,Adult Social Care & Health,Independent Placements,A56006,0
Royal Borough of Kingston,01/08/2022,90156375,"4,085.93",TREEMONT CARE LTD ,SOCIAL SERVICES - OTHER,Adult Social Care & Health,Independent Placements,A56006,0
Royal Borough of Kingston,01/08/2022,90156384,"4,141.16",TREEMONT CARE LTD ,SOCIAL SERVICES - OTHER,Adult Social Care & Health,Independent Placements,A56006,0
Royal Borough of Kingston,01/08/2022,90156388,"3,197.92",TREEMONT CARE LTD ,SOCIAL SERVICES - OTHER,Adult Social Care & Health,Independent Placements,A56006,0
Royal Borough of Kingston,01/08/2022,90156470,"3,450.96",TREEMONT CARE LTD ,SOCIAL SERVICES - OTHER,Adult Social Care & Health,Independent Placements,A56006,0
Royal Borough of Kingston,01/08/2022,90156510,"3,450.96",TREEMONT CARE LTD ,SOCIAL SERVICES - OTHER,Adult Social Care & Health,Independent Placements,A56006,0
Royal Borough of Kingston,01/08/2022,90156511,"3,911.09",TREEMONT CARE LTD ,SOCIAL SERVICES - OTHER,Adult Social Care & Health,Independent Placements,A56006,0
Royal Borough of Kingston,01/08/2022,90156512,"4,650.00",TREEMONT CARE LTD ,SOCIAL SERVICES - OTHER,Adult Social Care & Health,Independent Placements,A56006,0
Royal Borough of Kingston,01/08/2022,90157636,"1,195.71",TREEMONT CARE LTD ,SOCIAL SERVICES - OTHER,Adult Social Care & Health,Personal Budget - Third Party,A61019,0
Royal Borough of Kingston,01/08/2022,70028983,"1,928.00",UK POWER NETWORKS LIMITED,UTILITIES,Corporate & Communities,Street Lighting - Other,A56084,0
Royal Borough of Kingston,01/08/2022,70030695,"2,108.00",UKHousinggroupLTD,ACCOMMODATION BED & BREAKFAST,Place,Bed & Breakfast,A56000,0
Royal Borough of Kingston,01/08/2022,70030695,"1,288.00",UKHousinggroupLTD,ACCOMMODATION BED & BREAKFAST,Place,Bed & Breakfast,A56000,0
Royal Borough of Kingston,01/08/2022,70030695,"1,104.00",UKHousinggroupLTD,ACCOMMODATION BED & BREAKFAST,Place,Bed & Breakfast,A56000,0
Royal Borough of Kingston,01/08/2022,70030695,760,UKHousinggroupLTD,ACCOMMODATION BED & BREAKFAST,Place,Bed & Breakfast,A56000,0
Royal Borough of Kingston,01/08/2022,70029643,"1,535.00",VM COURIERS,DELIVERY AND COURIER SERVICES,Corporate & Communities,Postage & Couriers,A45015,0
Royal Borough of Kingston,01/08/2022,90156573,"10,125.13",VOYAGE LTD,SOCIAL SERVICES RESIDENTIAL,Adult Social Care & Health,Independent Placements,A56006,0
Royal Borough of Kingston,01/08/2022,90157830,"7,786.40",VOYAGE LTD,SOCIAL SERVICES RESIDENTIAL,Adult Social Care & Health,Personal Budget - Third Party,A61019,0
Royal Borough of Kingston,01/08/2022,90157845,"7,786.40",VOYAGE LTD,SOCIAL SERVICES RESIDENTIAL,Adult Social Care & Health,Personal Budget - Third Party,A61019,0
Royal Borough of Kingston,01/08/2022,90157856,893.77,VOYAGE LTD,SOCIAL SERVICES RESIDENTIAL,Adult Social Care & Health,Personal Budget - Third Party,A61019,0
Royal Borough of Kingston,01/08/2022,90157876,"2,091.66",VOYAGE LTD,SOCIAL SERVICES RESIDENTIAL,Adult Social Care & Health,Personal Budget - Third Party,A61019,0
Royal Borough of Kingston,01/08/2022,90157945,"3,901.79",VOYAGE LTD,SOCIAL SERVICES RESIDENTIAL,Adult Social Care & Health,Personal Budget - Third Party,A61019,0
Royal Borough of Kingston,01/08/2022,90157981,"8,561.58",VOYAGE LTD,SOCIAL SERVICES RESIDENTIAL,Adult Social Care & Health,Personal Budget - Third Party,A61019,0
Royal Borough of Kingston,01/08/2022,90157988,"1,040.01",VOYAGE LTD,SOCIAL SERVICES RESIDENTIAL,Adult Social Care & Health,Personal Budget - Third Party,A61019,0
Royal Borough of Kingston,01/08/2022,90155085,"2,453.06",WANDLE HEALTHCARE SERVICES,SOCIAL SERVICES-HOME CARE,Adult Social Care & Health,Homecare - new framework,A56127,0
Royal Borough of Kingston,01/08/2022,90155096,857.51,WANDLE HEALTHCARE SERVICES,SOCIAL SERVICES-HOME CARE,Adult Social Care & Health,Homecare - new framework,A56127,0
Royal Borough of Kingston,01/08/2022,90155134,"2,861.90",WANDLE HEALTHCARE SERVICES,SOCIAL SERVICES-HOME CARE,Adult Social Care & Health,Homecare - new framework,A56127,0
Royal Borough of Kingston,01/08/2022,90155334,840,WANDLE HEALTHCARE SERVICES,SOCIAL SERVICES-HOME CARE,Adult Social Care & Health,Homecare - new framework,A56127,0
Royal Borough of Kingston,01/08/2022,90155439,516.25,WANDLE HEALTHCARE SERVICES,SOCIAL SERVICES-HOME CARE,Adult Social Care & Health,Homecare - new framework,A56127,0
Royal Borough of Kingston,01/08/2022,90155494,551.25,WANDLE HEALTHCARE SERVICES,SOCIAL SERVICES-HOME CARE,Adult Social Care & Health,Homecare - new framework,A56127,0
Royal Borough of Kingston,01/08/2022,90155507,"2,861.90",WANDLE HEALTHCARE SERVICES,SOCIAL SERVICES-HOME CARE,Adult Social Care & Health,Homecare - new framework,A56127,0
Royal Borough of Kingston,01/08/2022,90155546,963.78,WANDLE HEALTHCARE SERVICES,SOCIAL SERVICES-HOME CARE,Adult Social Care & Health,Homecare - new framework,A56127,0
Royal Borough of Kingston,01/08/2022,90155641,670.95,WANDLE HEALTHCARE SERVICES,SOCIAL SERVICES-HOME CARE,Adult Social Care & Health,Personal Budget - Third Party,A61019,0
Royal Borough of Kingston,01/08/2022,90156544,"8,252.64",WELMEDE HOUSING ASSOCIATION LTD,ACCOMMODATION - OTHER,Adult Social Care & Health,Independent Placements,A56006,0
Royal Borough of Kingston,01/08/2022,90156545,"6,766.41",WELMEDE HOUSING ASSOCIATION LTD,ACCOMMODATION - OTHER,Adult Social Care & Health,Independent Placements,A56006,0
Royal Borough of Kingston,01/08/2022,90157769,"6,549.37",WELMEDE HOUSING ASSOCIATION LTD,ACCOMMODATION - OTHER,Adult Social Care & Health,Personal Budget - Third Party,A61019,0
Royal Borough of Kingston,01/08/2022,90157770,"5,574.38",WELMEDE HOUSING ASSOCIATION LTD,ACCOMMODATION - OTHER,Adult Social Care & Health,Personal Budget - Third Party,A61019,0
Royal Borough of Kingston,01/08/2022,90157776,"4,996.58",WELMEDE HOUSING ASSOCIATION LTD,ACCOMMODATION - OTHER,Adult Social Care & Health,Personal Budget - Third Party,A61019,0
Royal Borough of Kingston,01/08/2022,90157785,"5,574.38",WELMEDE HOUSING ASSOCIATION LTD,ACCOMMODATION - OTHER,Adult Social Care & Health,Personal Budget - Third Party,A61019,0
Royal Borough of Kingston,01/08/2022,90157790,"4,996.58",WELMEDE HOUSING ASSOCIATION LTD,ACCOMMODATION - OTHER,Adult Social Care & Health,Personal Budget - Third Party,A61019,0
Royal Borough of Kingston,01/08/2022,90157791,"2,026.03",WELMEDE HOUSING ASSOCIATION LTD,ACCOMMODATION - OTHER,Adult Social Care & Health,Personal Budget - Third Party,A61019,0
Royal Borough of Kingston,01/08/2022,90157792,"5,600.64",WELMEDE HOUSING ASSOCIATION LTD,ACCOMMODATION - OTHER,Adult Social Care & Health,Personal Budget - Third Party,A61019,0
Royal Borough of Kingston,01/08/2022,90157815,"4,456.29",WELMEDE HOUSING ASSOCIATION LTD,ACCOMMODATION - OTHER,Adult Social Care & Health,Personal Budget - Third Party,A61019,0
Royal Borough of Kingston,01/08/2022,90157824,"5,896.73",WELMEDE HOUSING ASSOCIATION LTD,ACCOMMODATION - OTHER,Adult Social Care & Health,Personal Budget - Third Party,A61019,0
Royal Borough of Kingston,01/08/2022,90157825,"5,600.64",WELMEDE HOUSING ASSOCIATION LTD,ACCOMMODATION - OTHER,Adult Social Care & Health,Personal Budget - Third Party,A61019,0
Royal Borough of Kingston,01/08/2022,90157831,"2,972.63",WELMEDE HOUSING ASSOCIATION LTD,ACCOMMODATION - OTHER,Adult Social Care & Health,Personal Budget - Third Party,A61019,0
Royal Borough of Kingston,01/08/2022,90157851,"1,947.60",WELMEDE HOUSING ASSOCIATION LTD,ACCOMMODATION - OTHER,Adult Social Care & Health,Personal Budget - Third Party,A61019,0
Royal Borough of Kingston,01/08/2022,90157859,"3,187.32",WELMEDE HOUSING ASSOCIATION LTD,ACCOMMODATION - OTHER,Adult Social Care & Health,Personal Budget - Third Party,A61019,0
Royal Borough of Kingston,01/08/2022,90157860,"3,952.28",WELMEDE HOUSING ASSOCIATION LTD,ACCOMMODATION - OTHER,Adult Social Care & Health,Personal Budget - Third Party,A61019,0
Royal Borough of Kingston,01/08/2022,90157861,"3,824.79",WELMEDE HOUSING ASSOCIATION LTD,ACCOMMODATION - OTHER,Adult Social Care & Health,Personal Budget - Third Party,A61019,0
Royal Borough of Kingston,01/08/2022,90157862,"3,952.28",WELMEDE HOUSING ASSOCIATION LTD,ACCOMMODATION - OTHER,Adult Social Care & Health,Personal Budget - Third Party,A61019,0
Royal Borough of Kingston,01/08/2022,90157863,"3,824.79",WELMEDE HOUSING ASSOCIATION LTD,ACCOMMODATION - OTHER,Adult Social Care & Health,Personal Budget - Third Party,A61019,0
Royal Borough of Kingston,01/08/2022,90157864,"3,952.28",WELMEDE HOUSING ASSOCIATION LTD,ACCOMMODATION - OTHER,Adult Social Care & Health,Personal Budget - Third Party,A61019,0
Royal Borough of Kingston,01/08/2022,90157865,"3,952.28",WELMEDE HOUSING ASSOCIATION LTD,ACCOMMODATION - OTHER,Adult Social Care & Health,Personal Budget - Third Party,A61019,0
Royal Borough of Kingston,01/08/2022,90157866,"3,569.80",WELMEDE HOUSING ASSOCIATION LTD,ACCOMMODATION - OTHER,Adult Social Care & Health,Personal Budget - Third Party,A61019,0
Royal Borough of Kingston,01/08/2022,90157867,"3,952.28",WELMEDE HOUSING ASSOCIATION LTD,ACCOMMODATION - OTHER,Adult Social Care & Health,Personal Budget - Third Party,A61019,0
Royal Borough of Kingston,01/08/2022,90157868,"4,050.43",WELMEDE HOUSING ASSOCIATION LTD,ACCOMMODATION - OTHER,Adult Social Care & Health,Personal Budget - Third Party,A61019,0
Royal Borough of Kingston,01/08/2022,90157869,"4,185.44",WELMEDE HOUSING ASSOCIATION LTD,ACCOMMODATION - OTHER,Adult Social Care & Health,Personal Budget - Third Party,A61019,0
Royal Borough of Kingston,01/08/2022,90157870,"4,050.43",WELMEDE HOUSING ASSOCIATION LTD,ACCOMMODATION - OTHER,Adult Social Care & Health,Personal Budget - Third Party,A61019,0
Royal Borough of Kingston,01/08/2022,90157871,"4,185.44",WELMEDE HOUSING ASSOCIATION LTD,ACCOMMODATION - OTHER,Adult Social Care & Health,Personal Budget - Third Party,A61019,0
Royal Borough of Kingston,01/08/2022,90157872,"2,438.73",WELMEDE HOUSING ASSOCIATION LTD,ACCOMMODATION - OTHER,Adult Social Care & Health,Personal Budget - Third Party,A61019,0
Royal Borough of Kingston,01/08/2022,90157873,"4,185.44",WELMEDE HOUSING ASSOCIATION LTD,ACCOMMODATION - OTHER,Adult Social Care & Health,Personal Budget - Third Party,A61019,0
Royal Borough of Kingston,01/08/2022,90157874,"14,266.55",WELMEDE HOUSING ASSOCIATION LTD,ACCOMMODATION - OTHER,Adult Social Care & Health,Personal Budget - Third Party,A61019,0
Royal Borough of Kingston,01/08/2022,90157881,"4,996.58",WELMEDE HOUSING ASSOCIATION LTD,ACCOMMODATION - OTHER,Adult Social Care & Health,Personal Budget - Third Party,A61019,0
Royal Borough of Kingston,01/08/2022,90157882,"4,456.29",WELMEDE HOUSING ASSOCIATION LTD,ACCOMMODATION - OTHER,Adult Social Care & Health,Personal Budget - Third Party,A61019,0
Royal Borough of Kingston,01/08/2022,90157905,"6,255.14",WELMEDE HOUSING ASSOCIATION LTD,ACCOMMODATION - OTHER,Adult Social Care & Health,Personal Budget - Third Party,A61019,0
Royal Borough of Kingston,01/08/2022,90157907,"2,062.30",WELMEDE HOUSING ASSOCIATION LTD,ACCOMMODATION - OTHER,Adult Social Care & Health,Personal Budget - Third Party,A61019,0
Royal Borough of Kingston,01/08/2022,90157934,"5,600.64",WELMEDE HOUSING ASSOCIATION LTD,ACCOMMODATION - OTHER,Adult Social Care & Health,Personal Budget - Third Party,A61019,0
Royal Borough of Kingston,01/08/2022,90157966,"4,456.29",WELMEDE HOUSING ASSOCIATION LTD,ACCOMMODATION - OTHER,Adult Social Care & Health,Personal Budget - Third Party,A61019,0
Royal Borough of Kingston,01/08/2022,90157969,"5,574.38",WELMEDE HOUSING ASSOCIATION LTD,ACCOMMODATION - OTHER,Adult Social Care & Health,Personal Budget - Third Party,A61019,0
Royal Borough of Kingston,01/08/2022,90157975,"4,456.29",WELMEDE HOUSING ASSOCIATION LTD,ACCOMMODATION - OTHER,Adult Social Care & Health,Personal Budget - Third Party,A61019,0
Royal Borough of Kingston,01/08/2022,90157993,"1,707.13",WELMEDE HOUSING ASSOCIATION LTD,ACCOMMODATION - OTHER,Adult Social Care & Health,Personal Budget - Third Party,A61019,0
Royal Borough of Kingston,01/08/2022,90157997,"4,456.29",WELMEDE HOUSING ASSOCIATION LTD,ACCOMMODATION - OTHER,Adult Social Care & Health,Personal Budget - Third Party,A61019,0
Royal Borough of Kingston,01/08/2022,90158209,-695.06,WELMEDE HOUSING ASSOCIATION LTD,ACCOMMODATION - OTHER,Adult Social Care & Health,Financially Assessed Contributions clients � Non VAT,A92047,0
Royal Borough of Kingston,01/08/2022,90156225,"2,346.66",WILLOW GRANGE CARE LTD,SOCIAL SERVICES RESIDENTIAL,Adult Social Care & Health,Independent Placements,A56006,0
Royal Borough of Kingston,01/08/2022,90156226,"4,371.22",WILLOW GRANGE CARE LTD,SOCIAL SERVICES RESIDENTIAL,Adult Social Care & Health,Independent Placements,A56006,0
Royal Borough of Kingston,01/08/2022,90156227,"3,911.09",WILLOW GRANGE CARE LTD,SOCIAL SERVICES RESIDENTIAL,Adult Social Care & Health,Independent Placements,A56006,0
Royal Borough of Kingston,01/08/2022,90156233,"2,400.00",WILLOW GRANGE CARE LTD,SOCIAL SERVICES RESIDENTIAL,Adult Social Care & Health,Independent Placements,A56006,0
Royal Borough of Kingston,01/08/2022,90156245,"3,681.03",WILLOW GRANGE CARE LTD,SOCIAL SERVICES RESIDENTIAL,Adult Social Care & Health,Independent Placements,A56006,0
Royal Borough of Kingston,01/08/2022,90156283,"2,245.42",WILLOW GRANGE CARE LTD,SOCIAL SERVICES RESIDENTIAL,Adult Social Care & Health,Independent Placements,A56006,0
Royal Borough of Kingston,01/08/2022,90156300,"3,013.86",WILLOW GRANGE CARE LTD,SOCIAL SERVICES RESIDENTIAL,Adult Social Care & Health,Independent Placements,A56006,0
Royal Borough of Kingston,01/08/2022,90156302,"3,681.03",WILLOW GRANGE CARE LTD,SOCIAL SERVICES RESIDENTIAL,Adult Social Care & Health,Independent Placements,A56006,0
Royal Borough of Kingston,01/08/2022,90156304,"3,285.34",WILLOW GRANGE CARE LTD,SOCIAL SERVICES RESIDENTIAL,Adult Social Care & Health,Independent Placements,A56006,0
Royal Borough of Kingston,01/08/2022,90156310,"3,450.96",WILLOW GRANGE CARE LTD,SOCIAL SERVICES RESIDENTIAL,Adult Social Care & Health,Independent Placements,A56006,0
Royal Borough of Kingston,01/08/2022,90156336,"3,911.09",WILLOW GRANGE CARE LTD,SOCIAL SERVICES RESIDENTIAL,Adult Social Care & Health,Independent Placements,A56006,0
Royal Borough of Kingston,01/08/2022,90156339,"3,911.09",WILLOW GRANGE CARE LTD,SOCIAL SERVICES RESIDENTIAL,Adult Social Care & Health,Independent Placements,A56006,0
Royal Borough of Kingston,01/08/2022,90156340,"4,141.16",WILLOW GRANGE CARE LTD,SOCIAL SERVICES RESIDENTIAL,Adult Social Care & Health,Independent Placements,A56006,0
Royal Borough of Kingston,01/08/2022,90156409,"1,165.76",WILLOW GRANGE CARE LTD,SOCIAL SERVICES RESIDENTIAL,Adult Social Care & Health,Independent Placements,A56006,0
Royal Borough of Kingston,01/08/2022,90156410,"3,285.34",WILLOW GRANGE CARE LTD,SOCIAL SERVICES RESIDENTIAL,Adult Social Care & Health,Independent Placements,A56006,0
Royal Borough of Kingston,01/08/2022,90156411,"3,179.36",WILLOW GRANGE CARE LTD,SOCIAL SERVICES RESIDENTIAL,Adult Social Care & Health,Independent Placements,A56006,0
Royal Borough of Kingston,01/08/2022,90156412,"3,285.34",WILLOW GRANGE CARE LTD,SOCIAL SERVICES RESIDENTIAL,Adult Social Care & Health,Independent Placements,A56006,0
Royal Borough of Kingston,01/08/2022,90156413,"3,285.34",WILLOW GRANGE CARE LTD,SOCIAL SERVICES RESIDENTIAL,Adult Social Care & Health,Independent Placements,A56006,0
Royal Borough of Kingston,01/08/2022,90156443,"3,013.86",WILLOW GRANGE CARE LTD,SOCIAL SERVICES RESIDENTIAL,Adult Social Care & Health,Independent Placements,A56006,0
Royal Borough of Kingston,01/08/2022,90156455,"3,855.87",WILLOW GRANGE CARE LTD,SOCIAL SERVICES RESIDENTIAL,Adult Social Care & Health,Independent Placements,A56006,0
Royal Borough of Kingston,01/08/2022,90156522,"2,571.43",WILLOW GRANGE CARE LTD,SOCIAL SERVICES RESIDENTIAL,Adult Social Care & Health,Independent Placements,A56006,0
Royal Borough of Kingston,01/08/2022,90156539,"4,121.32",WILLOW GRANGE CARE LTD,SOCIAL SERVICES RESIDENTIAL,Adult Social Care & Health,Independent Placements,A56006,0
Royal Borough of Kingston,01/08/2022,90156541,"4,124.24",WILLOW GRANGE CARE LTD,SOCIAL SERVICES RESIDENTIAL,Adult Social Care & Health,Independent Placements,A56006,0
Royal Borough of Kingston,01/08/2022,90156662,"-1,165.76",WILLOW GRANGE CARE LTD,SOCIAL SERVICES RESIDENTIAL,Adult Social Care & Health,Other Private Contractors - Third Party,A56080,0
Royal Borough of Kingston,01/08/2022,90156663,"-3,285.34",WILLOW GRANGE CARE LTD,SOCIAL SERVICES RESIDENTIAL,Adult Social Care & Health,Other Private Contractors - Third Party,A56080,0
Royal Borough of Kingston,01/08/2022,90156664,"-3,179.36",WILLOW GRANGE CARE LTD,SOCIAL SERVICES RESIDENTIAL,Adult Social Care & Health,Other Private Contractors - Third Party,A56080,0
Royal Borough of Kingston,01/08/2022,90156665,"-3,285.34",WILLOW GRANGE CARE LTD,SOCIAL SERVICES RESIDENTIAL,Adult Social Care & Health,Other Private Contractors - Third Party,A56080,0
Royal Borough of Kingston,01/08/2022,90156292,"3,635.02",Willow Lodge Nursing Home Ltd,SOCIAL SERVICES RESIDENTIAL,Adult Social Care & Health,Independent Placements,A56006,0
Royal Borough of Kingston,01/08/2022,90155639,784.72,WINSOR CARE SERVICES LTD,SOCIAL SERVICES RESIDENTIAL,Adult Social Care & Health,Personal Budget - Third Party,A61019,0
Royal Borough of Kingston,01/08/2022,90155659,603.63,WINSOR CARE SERVICES LTD,SOCIAL SERVICES RESIDENTIAL,Adult Social Care & Health,Personal Budget - Third Party,A61019,0
Royal Borough of Kingston,01/08/2022,90155661,603.63,WINSOR CARE SERVICES LTD,SOCIAL SERVICES RESIDENTIAL,Adult Social Care & Health,Personal Budget - Third Party,A61019,0
Royal Borough of Kingston,01/08/2022,90155668,603.63,WINSOR CARE SERVICES LTD,SOCIAL SERVICES RESIDENTIAL,Adult Social Care & Health,Personal Budget - Third Party,A61019,0
Royal Borough of Kingston,01/08/2022,90155671,543.26,WINSOR CARE SERVICES LTD,SOCIAL SERVICES RESIDENTIAL,Adult Social Care & Health,Personal Budget - Third Party,A61019,0
Royal Borough of Kingston,01/08/2022,90155681,603.63,WINSOR CARE SERVICES LTD,SOCIAL SERVICES RESIDENTIAL,Adult Social Care & Health,Personal Budget - Third Party,A61019,0
Royal Borough of Kingston,01/08/2022,90155682,551.89,WINSOR CARE SERVICES LTD,SOCIAL SERVICES RESIDENTIAL,Adult Social Care & Health,Personal Budget - Third Party,A61019,0
Royal Borough of Kingston,01/08/2022,90155694,663.99,WINSOR CARE SERVICES LTD,SOCIAL SERVICES RESIDENTIAL,Adult Social Care & Health,Personal Budget - Third Party,A61019,0
Royal Borough of Kingston,01/08/2022,90155699,603.63,WINSOR CARE SERVICES LTD,SOCIAL SERVICES RESIDENTIAL,Adult Social Care & Health,Personal Budget - Third Party,A61019,0
Royal Borough of Kingston,01/08/2022,90155714,543.26,WINSOR CARE SERVICES LTD,SOCIAL SERVICES RESIDENTIAL,Adult Social Care & Health,Personal Budget - Third Party,A61019,0
Royal Borough of Kingston,01/08/2022,70030573,"1,577.90",Wise Move Estate Agents LTD,ACCOMMODATION BED & BREAKFAST,Place,Bed & Breakfast,A56000,0
Royal Borough of Kingston,01/08/2022,70030574,"2,597.18",Wise Move Estate Agents LTD,ACCOMMODATION BED & BREAKFAST,Place,Bed & Breakfast,A56000,0
Royal Borough of Kingston,01/08/2022,70030575,"2,022.75",Wise Move Estate Agents LTD,ACCOMMODATION BED & BREAKFAST,Place,Bed & Breakfast,A56000,0
Royal Borough of Kingston,01/08/2022,70030576,"2,022.75",Wise Move Estate Agents LTD,ACCOMMODATION BED & BREAKFAST,Place,Bed & Breakfast,A56000,0
Royal Borough of Kingston,01/08/2022,70030577,"2,346.70",Wise Move Estate Agents LTD,ACCOMMODATION BED & BREAKFAST,Place,Bed & Breakfast,A56000,0
Royal Borough of Kingston,01/08/2022,70030578,"1,922.00",Wise Move Estate Agents LTD,ACCOMMODATION BED & BREAKFAST,Place,Bed & Breakfast,A56000,0
Royal Borough of Kingston,01/08/2022,70030579,"2,022.75",Wise Move Estate Agents LTD,ACCOMMODATION BED & BREAKFAST,Place,Bed & Breakfast,A56000,0
Royal Borough of Kingston,01/08/2022,70030580,"1,922.00",Wise Move Estate Agents LTD,ACCOMMODATION BED & BREAKFAST,Place,Bed & Breakfast,A56000,0
Royal Borough of Kingston,01/08/2022,70030581,"2,263.00",Wise Move Estate Agents LTD,ACCOMMODATION BED & BREAKFAST,Place,Bed & Breakfast,A56000,0
Royal Borough of Kingston,01/08/2022,70030582,"1,922.00",Wise Move Estate Agents LTD,ACCOMMODATION BED & BREAKFAST,Place,Bed & Breakfast,A56000,0
Royal Borough of Kingston,01/08/2022,70030583,"2,022.75",Wise Move Estate Agents LTD,ACCOMMODATION BED & BREAKFAST,Place,Bed & Breakfast,A56000,0
Royal Borough of Kingston,01/08/2022,70030584,"2,261.14",Wise Move Estate Agents LTD,ACCOMMODATION BED & BREAKFAST,Place,Bed & Breakfast,A56000,0
Royal Borough of Kingston,01/08/2022,70030585,"1,767.00",Wise Move Estate Agents LTD,ACCOMMODATION BED & BREAKFAST,Place,Bed & Breakfast,A56000,0
Royal Borough of Kingston,01/08/2022,70028971,"40,250.00",WORKING WELL TRUST,CHARITIES & VOLUNTARY ORGNS,Adult Social Care & Health,Other Private Contractors - Third Party,A56080,0
Royal Borough of Kingston,01/08/2022,90158007,538.03,ZEDCARZ LTD,TAXI AND COACH HIRE,Adult Social Care & Health,Personal Budget - Third Party,A61019,0
Royal Borough of Kingston,01/08/2022,90158019,638.73,ZEDCARZ LTD,TAXI AND COACH HIRE,Adult Social Care & Health,Personal Budget - Third Party,A61019,0
Royal Borough of Kingston,01/08/2022,90158020,895.46,ZEDCARZ LTD,TAXI AND COACH HIRE,Adult Social Care & Health,Personal Budget - Third Party,A61019,0
Royal Borough of Kingston,02/08/2022,70030106,701.58,CHESSINGTON SPORTS CENTRE,OPERATIONAL EQUIPMENT/MATERIAL,Adult Social Care & Health,Hire of Rooms,A22010,0
Royal Borough of Kingston,02/08/2022,70029311,"2,270.63",INDEPENDENT LIVING LTD,SOCIAL SERVICES - OTHER,Capital Programme,Grants Given For Capital Purposes,C20004,0
Royal Borough of Kingston,02/08/2022,70029310,"10,165.00",King Adaptations Bulidings Services Ltd,SUNDRY SUPPLIER - FINANCE,Capital Programme,Grants Given For Capital Purposes,C20004,0
Royal Borough of Kingston,02/08/2022,70029164,509,REDACTED - PERSONAL DATA,SOCIAL SERVICES - OTHER,Adult Social Care & Health,Other Private Contractors - Third Party,A56080,0
Royal Borough of Kingston,03/08/2022,70030544,"17,000.00",ADVANCED TREE SERVICES LIMITED,CONSTRUCTION INDUSTRY,Corporate & Communities,Maintenance of trees,A28003,0
Royal Borough of Kingston,03/08/2022,70030545,"11,435.00",ADVANCED TREE SERVICES LIMITED,CONSTRUCTION INDUSTRY,Corporate & Communities,Other Private Contractors - Third Party,A56080,0
Royal Borough of Kingston,03/08/2022,70029266,"183,222.93",MATRIX SCM LTD,LEGAL & PROFESSIONAL SERVICES,Corporate & Communities,Agency Staff - Other,A10505,0
Royal Borough of Kingston,03/08/2022,70029152,"9,179.10",METIS CONSULTANTS LTD,TEMP STAFF & CONSULTANCY,Capital Programme,Infrastructure Assets - Initial Design,C12002,0
Royal Borough of Kingston,03/08/2022,70029463,"48,166.67",REFUGEE ACTION KINGSTON,GRANTS & EX GRATIA PAYMENTS,Adult Social Care & Health,Payments to Voluntary Organisations,A54005,0
Royal Borough of Kingston,04/08/2022,70029260,774,ADVANCED TREE SERVICES LIMITED,CONSTRUCTION INDUSTRY,Corporate & Communities,Maintenance of trees,A28003,0
Royal Borough of Kingston,04/08/2022,70029260,34,ADVANCED TREE SERVICES LIMITED,CONSTRUCTION INDUSTRY,Housing Revenue Account,Tree Works,A56042,0
Royal Borough of Kingston,04/08/2022,70029260,43,ADVANCED TREE SERVICES LIMITED,CONSTRUCTION INDUSTRY,Housing Revenue Account,Tree Works,A56042,0
Royal Borough of Kingston,04/08/2022,70029260,147,ADVANCED TREE SERVICES LIMITED,CONSTRUCTION INDUSTRY,Housing Revenue Account,Tree Works,A56042,0
Royal Borough of Kingston,04/08/2022,90152924,"158,026.51",ALEXANDRA SCHOOL,CENTRAL & LOCAL GOVERNMENT,Schools,Miscellaneous Expenses,A49000,0
Royal Borough of Kingston,04/08/2022,90152945,"1,513.25",ALEXANDRA SCHOOL,CENTRAL & LOCAL GOVERNMENT,Schools,Miscellaneous Expenses,A49000,0
Royal Borough of Kingston,04/08/2022,90152925,"143,612.71",BURLINGTON INFANT AND NURSERY SCHOOL,SCHOOL FUNDS,Schools,Miscellaneous Expenses,A49000,0
Royal Borough of Kingston,04/08/2022,90152946,"2,356.25",BURLINGTON INFANT AND NURSERY SCHOOL,SCHOOL FUNDS,Schools,Miscellaneous Expenses,A49000,0
Royal Borough of Kingston,04/08/2022,90152926,"176,936.56",BURLINGTON JUNIOR SCHOOL,SCHOOL FUNDS,Schools,Miscellaneous Expenses,A49000,0
Royal Borough of Kingston,04/08/2022,90152947,"6,053.75",BURLINGTON JUNIOR SCHOOL,SCHOOL FUNDS,Schools,Miscellaneous Expenses,A49000,0
Royal Borough of Kingston,04/08/2022,90152928,"158,749.86",CHRIST CHURCH  C. OF E.  PRIMARY SCHOOL (NEW MALDEN),SCHOOL FUNDS,Schools,Miscellaneous Expenses,A49000,0
Royal Borough of Kingston,04/08/2022,90152927,"173,569.93",CHRIST CHURCH C.OF E. PRIMARY SCHOOL - (SURBITON),ACADEMIC INSTNS - OTHER,Schools,Miscellaneous Expenses,A49000,0
Royal Borough of Kingston,04/08/2022,90152948,"1,232.50",CHRIST CHURCH C.OF E. PRIMARY SCHOOL - (SURBITON),ACADEMIC INSTNS - OTHER,Schools,Miscellaneous Expenses,A49000,0
Royal Borough of Kingston,04/08/2022,90152929,"107,636.54",COOMBE HILL INFANTS SCHOOL,ACADEMIC INSTNS - OTHER,Schools,Miscellaneous Expenses,A49000,0
Royal Borough of Kingston,04/08/2022,90152949,"1,015.00",COOMBE HILL INFANTS SCHOOL,ACADEMIC INSTNS - OTHER,Schools,Miscellaneous Expenses,A49000,0
Royal Borough of Kingston,04/08/2022,90152930,"155,365.37",COOMBE HILL JUNIOR SCHOOL,ACADEMIC INSTNS - OTHER,Schools,Miscellaneous Expenses,A49000,0
Royal Borough of Kingston,04/08/2022,90152950,"3,049.50",COOMBE HILL JUNIOR SCHOOL,ACADEMIC INSTNS - OTHER,Schools,Miscellaneous Expenses,A49000,0
Royal Borough of Kingston,04/08/2022,90152931,"149,458.59",CORPUS CHRISTI CATHOLIC PRIMARY SCHOOL ,ACADEMIC INSTNS - OTHER,Schools,Miscellaneous Expenses,A49000,0
Royal Borough of Kingston,04/08/2022,90152951,942.5,CORPUS CHRISTI CATHOLIC PRIMARY SCHOOL ,ACADEMIC INSTNS - OTHER,Schools,Miscellaneous Expenses,A49000,0
Royal Borough of Kingston,04/08/2022,90152942,"5,291.52",ELLINGHAM PRIMARY SCHOOL,ACADEMIC INSTNS - OTHER,Schools,Miscellaneous Expenses,A49000,0
Royal Borough of Kingston,04/08/2022,90152952,"5,383.25",ELLINGHAM PRIMARY SCHOOL,ACADEMIC INSTNS - OTHER,Schools,Miscellaneous Expenses,A49000,0
Royal Borough of Kingston,04/08/2022,70029295,"2,166.77",EPSOM & EWELL BOROUGH COUNCIL,CENTRAL & LOCAL GOVERNMENT,Place,Rates & Council Tax,A23005,0
Royal Borough of Kingston,04/08/2022,90152932,"220,043.01",GRAND AVENUE PRIMARY AND NURSERY SCHOOL,CENTRAL & LOCAL GOVERNMENT,Schools,Miscellaneous Expenses,A49000,0
Royal Borough of Kingston,04/08/2022,90152953,"3,687.25",GRAND AVENUE PRIMARY AND NURSERY SCHOOL,CENTRAL & LOCAL GOVERNMENT,Schools,Miscellaneous Expenses,A49000,0
Royal Borough of Kingston,04/08/2022,70029660,"1,500.00",Interface Enterprises Ltd,SUNDRY SUPPLIER - FINANCE,Corporate & Communities,Training - Professional Qualification,A15024,0
Royal Borough of Kingston,04/08/2022,90152954,"4,486.25",KING ATHELSTAN PRIMARY SCHOOL ,SCHOOL FUNDS,Schools,Miscellaneous Expenses,A49000,0
Royal Borough of Kingston,04/08/2022,90152955,"9,674.50",KINGS OAK PRIMARY SCHOOL,CENTRAL & LOCAL GOVERNMENT,Schools,Miscellaneous Expenses,A49000,0
Royal Borough of Kingston,04/08/2022,90152933,"138,497.70",LIME TREE PRIMARY,ACADEMIC INSTNS - OTHER,Schools,Miscellaneous Expenses,A49000,0
Royal Borough of Kingston,04/08/2022,90152956,"4,039.50",LIME TREE PRIMARY,ACADEMIC INSTNS - OTHER,Schools,Miscellaneous Expenses,A49000,0
Royal Borough of Kingston,04/08/2022,90152957,"3,045.00",LOVELACE PRIMARY SCHOOL,ACADEMIC INSTNS - OTHER,Schools,Miscellaneous Expenses,A49000,0
Royal Borough of Kingston,04/08/2022,90152934,"151,550.25",MALDEN MANOR PRIMARY & NURSERY SCHOOL,SCHOOL FUNDS,Schools,Miscellaneous Expenses,A49000,0
Royal Borough of Kingston,04/08/2022,90152958,"3,226.25",MALDEN MANOR PRIMARY & NURSERY SCHOOL,SCHOOL FUNDS,Schools,Miscellaneous Expenses,A49000,0
Royal Borough of Kingston,04/08/2022,90152959,"2,392.50",MALDEN OAKS PRU,ACADEMIC INSTNS - OTHER,Schools,Miscellaneous Expenses,A49000,0
Royal Borough of Kingston,04/08/2022,90152935,"81,767.06",MALDEN PAROCHIAL COFE PRIMARY,ACADEMIC INSTNS - OTHER,Schools,Miscellaneous Expenses,A49000,0
Royal Borough of Kingston,04/08/2022,90152960,500,MALDEN PAROCHIAL COFE PRIMARY,ACADEMIC INSTNS - OTHER,Schools,Miscellaneous Expenses,A49000,0
Royal Borough of Kingston,04/08/2022,90152961,986.25,MAPLE INFANTS SCHOOL - MAIN ACCOUNT,SCHOOL FUNDS,Schools,Miscellaneous Expenses,A49000,0
Royal Borough of Kingston,04/08/2022,70029247,"5,781.33",MATRIX SCM LTD,LEGAL & PROFESSIONAL SERVICES,SLWP,Waste Management Strategy,A44090,0
Royal Borough of Kingston,04/08/2022,90152936,"149,909.44",OUR LADY IMMACULATE CATHOLIC PRIMARY SCHOOL ,ACADEMIC INSTNS - OTHER,Schools,Miscellaneous Expenses,A49000,0
Royal Borough of Kingston,04/08/2022,90152962,"1,087.50",OUR LADY IMMACULATE CATHOLIC PRIMARY SCHOOL ,ACADEMIC INSTNS - OTHER,Schools,Miscellaneous Expenses,A49000,0
Royal Borough of Kingston,04/08/2022,70029284,"6,442.03",OXYGEN FINANCE LIMITED,OFFICE SERVICES,Corporate & Communities,Professional Fees,A44066,0
Royal Borough of Kingston,04/08/2022,70029193,"1,600.00",REDACTED - PERSONAL DATA,GRANTS & EX GRATIA PAYMENTS,Adult Social Care & Health,Miscellaneous Expenses,A49000,0
Royal Borough of Kingston,04/08/2022,90152937,"130,316.43",ST ANDREWS & ST MARKS C OF E JUNIOR SCHOOL,SCHOOL FUNDS,Schools,Miscellaneous Expenses,A49000,0
Royal Borough of Kingston,04/08/2022,90152963,"3,008.75",ST ANDREWS & ST MARKS C OF E JUNIOR SCHOOL,SCHOOL FUNDS,Schools,Miscellaneous Expenses,A49000,0
Royal Borough of Kingston,04/08/2022,90152938,"83,077.70",ST JOHN'S COFE PRIMARY SCHOOL ,ACADEMIC INSTNS - OTHER,Schools,Miscellaneous Expenses,A49000,0
Royal Borough of Kingston,04/08/2022,90152964,"1,812.50",ST JOHN'S COFE PRIMARY SCHOOL ,ACADEMIC INSTNS - OTHER,Schools,Miscellaneous Expenses,A49000,0
Royal Borough of Kingston,04/08/2022,90152965,"2,102.50",ST JOSEPH'S RC PRIMARY SCHOOL ,ACADEMIC INSTNS - OTHER,Schools,Miscellaneous Expenses,A49000,0
Royal Borough of Kingston,04/08/2022,90152939,"101,704.23",ST LUKES C OF E PRIMARY,SCHOOL FUNDS,Schools,Miscellaneous Expenses,A49000,0
Royal Borough of Kingston,04/08/2022,90152940,"73,888.08",ST MARY'S COFE PRIMARY SCHOOL,ACADEMIC INSTNS - OTHER,Schools,Miscellaneous Expenses,A49000,0
Royal Borough of Kingston,04/08/2022,90152967,833.75,ST MARY'S COFE PRIMARY SCHOOL,ACADEMIC INSTNS - OTHER,Schools,Miscellaneous Expenses,A49000,0
Royal Borough of Kingston,04/08/2022,90152941,"144,626.52",ST MATTHEW'S CE PRIMARY SCHOOL,SCHOOL FUNDS,Schools,Miscellaneous Expenses,A49000,0
Royal Borough of Kingston,04/08/2022,90152968,"1,341.25",ST MATTHEW'S CE PRIMARY SCHOOL,SCHOOL FUNDS,Schools,Miscellaneous Expenses,A49000,0
Royal Borough of Kingston,04/08/2022,90152943,"13,708.45",ST PAUL'S COFE PRIMARY SCHOOL (CHESSINGTON),ACADEMIC INSTNS - OTHER,Schools,Miscellaneous Expenses,A49000,0
Royal Borough of Kingston,04/08/2022,90152969,688.75,ST PAUL'S COFE PRIMARY SCHOOL (CHESSINGTON),ACADEMIC INSTNS - OTHER,Schools,Miscellaneous Expenses,A49000,0
Royal Borough of Kingston,04/08/2022,90152944,"3,343.64",ST PAUL'S COFE PRIMARY SCHOOL (KINGSTON HILL),SCHOOL FUNDS,Schools,Miscellaneous Expenses,A49000,0
Royal Borough of Kingston,04/08/2022,90152970,688.75,ST PAUL'S COFE PRIMARY SCHOOL (KINGSTON HILL),SCHOOL FUNDS,Schools,Miscellaneous Expenses,A49000,0
Royal Borough of Kingston,04/08/2022,90152971,"5,458.75",TOLWORTH INFANTS & NURSERY SCHOOL & TOLWORTH JUNIOR SCH,ACADEMIC INSTNS - OTHER,Schools,Miscellaneous Expenses,A49000,0
Royal Borough of Kingston,05/08/2022,70029286,"5,542,658.33",ACHIEVING FOR CHILDREN LIMITED,LEGAL & PROFESSIONAL SERVICES,Childrens Services,Fixed Childrens Services Contract Strategic,A51019,0
Royal Borough of Kingston,05/08/2022,70029336,650,F H & G LIMITED,LEGAL & PROFESSIONAL SERVICES,Housing Revenue Account,Professional Fees,A44066,0
Royal Borough of Kingston,05/08/2022,70029337,"1,000.00",F H & G LIMITED,LEGAL & PROFESSIONAL SERVICES,Housing Revenue Account,Professional Fees,A44066,0
Royal Borough of Kingston,05/08/2022,70029287,"7,100.00",REDACTED - PERSONAL DATA,SUNDRY SUPPLIER - HOUSING,Capital Programme,Buildings - Project Management,C14003,0
Royal Borough of Kingston,05/08/2022,70029277,"7,100.00",REDACTED - PERSONAL DATA,SUNDRY SUPPLIER - HOUSING,Capital Programme,Buildings - Project Management,C14003,0
Royal Borough of Kingston,08/08/2022,70029298,"2,200.00",7TH MALDEN (ST JAMES) SCOUT GROUP,ACCOMMODATION - OTHER,Corporate & Communities,Payments to Voluntary Organisations,A54005,0
Royal Borough of Kingston,08/08/2022,70029387,600,ADVANCED TREE SERVICES LIMITED,CONSTRUCTION INDUSTRY,Corporate & Communities,Maintenance of trees,A28003,0
Royal Borough of Kingston,08/08/2022,90156737,796.26,ALPENBEST LTD,SOCIAL SERVICES DAY CARE,Adult Social Care & Health,Homecare - new framework,A56127,0
Royal Borough of Kingston,08/08/2022,90156764,560,ALPENBEST LTD,SOCIAL SERVICES DAY CARE,Adult Social Care & Health,Homecare - new framework,A56127,0
Royal Borough of Kingston,08/08/2022,90156787,"1,470.01",ALPENBEST LTD,SOCIAL SERVICES DAY CARE,Adult Social Care & Health,Homecare - new framework,A56127,0
Royal Borough of Kingston,08/08/2022,90156808,612.5,ALPENBEST LTD,SOCIAL SERVICES DAY CARE,Adult Social Care & Health,Homecare - new framework,A56127,0
Royal Borough of Kingston,08/08/2022,90156851,551.25,ALPENBEST LTD,SOCIAL SERVICES DAY CARE,Adult Social Care & Health,Homecare - new framework,A56127,0
Royal Borough of Kingston,08/08/2022,90156886,735.01,ALPENBEST LTD,SOCIAL SERVICES DAY CARE,Adult Social Care & Health,Homecare - new framework,A56127,0
Royal Borough of Kingston,08/08/2022,90156911,551.25,ALPENBEST LTD,SOCIAL SERVICES DAY CARE,Adult Social Care & Health,Homecare - new framework,A56127,0
Royal Borough of Kingston,08/08/2022,90156928,551.25,ALPENBEST LTD,SOCIAL SERVICES DAY CARE,Adult Social Care & Health,Homecare - new framework,A56127,0
Royal Borough of Kingston,08/08/2022,90156959,551.25,ALPENBEST LTD,SOCIAL SERVICES DAY CARE,Adult Social Care & Health,Homecare - new framework,A56127,0
Royal Borough of Kingston,08/08/2022,90156969,577.5,ALPENBEST LTD,SOCIAL SERVICES DAY CARE,Adult Social Care & Health,Homecare - new framework,A56127,0
Royal Borough of Kingston,08/08/2022,90157007,612.5,ALPENBEST LTD,SOCIAL SERVICES DAY CARE,Adult Social Care & Health,Homecare - new framework,A56127,0
Royal Borough of Kingston,08/08/2022,90157008,551.25,ALPENBEST LTD,SOCIAL SERVICES DAY CARE,Adult Social Care & Health,Homecare - new framework,A56127,0
Royal Borough of Kingston,08/08/2022,90157014,551.25,ALPENBEST LTD,SOCIAL SERVICES DAY CARE,Adult Social Care & Health,Homecare - new framework,A56127,0
Royal Borough of Kingston,08/08/2022,90157015,551.25,ALPENBEST LTD,SOCIAL SERVICES DAY CARE,Adult Social Care & Health,Homecare - new framework,A56127,0
Royal Borough of Kingston,08/08/2022,90157052,700.01,ALPENBEST LTD,SOCIAL SERVICES DAY CARE,Adult Social Care & Health,Homecare - new framework,A56127,0
Royal Borough of Kingston,08/08/2022,90157089,551.25,ALPENBEST LTD,SOCIAL SERVICES DAY CARE,Adult Social Care & Health,Homecare - new framework,A56127,0
Royal Borough of Kingston,08/08/2022,90157137,551.25,ALPENBEST LTD,SOCIAL SERVICES DAY CARE,Adult Social Care & Health,Homecare - new framework,A56127,0
Royal Borough of Kingston,08/08/2022,90157140,735.01,ALPENBEST LTD,SOCIAL SERVICES DAY CARE,Adult Social Care & Health,Homecare - new framework,A56127,0
Royal Borough of Kingston,08/08/2022,90157181,525,ALPENBEST LTD,SOCIAL SERVICES DAY CARE,Adult Social Care & Health,Homecare - new framework,A56127,0
Royal Borough of Kingston,08/08/2022,90157183,603.75,ALPENBEST LTD,SOCIAL SERVICES DAY CARE,Adult Social Care & Health,Homecare - new framework,A56127,0
Royal Borough of Kingston,08/08/2022,90157192,673.75,ALPENBEST LTD,SOCIAL SERVICES DAY CARE,Adult Social Care & Health,Homecare - new framework,A56127,0
Royal Borough of Kingston,08/08/2022,90157199,726.26,ALPENBEST LTD,SOCIAL SERVICES DAY CARE,Adult Social Care & Health,Homecare - new framework,A56127,0
Royal Borough of Kingston,08/08/2022,90157216,612.5,ALPENBEST LTD,SOCIAL SERVICES DAY CARE,Adult Social Care & Health,Homecare - new framework,A56127,0
Royal Borough of Kingston,08/08/2022,90158089,612.5,ALPENBEST LTD,SOCIAL SERVICES DAY CARE,Adult Social Care & Health,Personal Budget - Third Party,A61019,0
Royal Borough of Kingston,08/08/2022,90158077,603.63,BLUE ARROW CARE LTD,SOCIAL SERVICES-HOME CARE,Adult Social Care & Health,Personal Budget - Third Party,A61019,0
Royal Borough of Kingston,08/08/2022,90158080,543.26,BLUE ARROW CARE LTD,SOCIAL SERVICES-HOME CARE,Adult Social Care & Health,Personal Budget - Third Party,A61019,0
Royal Borough of Kingston,08/08/2022,90158091,543.26,BLUE ARROW CARE LTD,SOCIAL SERVICES-HOME CARE,Adult Social Care & Health,Personal Budget - Third Party,A61019,0
Royal Borough of Kingston,08/08/2022,90158105,543.26,BLUE ARROW CARE LTD,SOCIAL SERVICES-HOME CARE,Adult Social Care & Health,Personal Budget - Third Party,A61019,0
Royal Borough of Kingston,08/08/2022,70029289,581.63,BONSOR PENNINGTONS LTD,PLS LANDLORDS,Place,Compensation (In Lieu Of Works),A20039,0
Royal Borough of Kingston,08/08/2022,90156878,735.01,CARLCARE LTD,SOCIAL SERVICES-HOME CARE,Adult Social Care & Health,Homecare - new framework,A56127,0
Royal Borough of Kingston,08/08/2022,90157188,595.01,CARLCARE LTD,SOCIAL SERVICES-HOME CARE,Adult Social Care & Health,Homecare - new framework,A56127,0
Royal Borough of Kingston,08/08/2022,70029293,"6,000.00",CASTLE RESIDENTIAL PROPERTIES LTD,PLS LANDLORDS,Place,Housing Incentives,A62025,0
Royal Borough of Kingston,08/08/2022,70029296,"1,049.98",CASTLE RESIDENTIAL PROPERTIES LTD,PLS LANDLORDS,Place,PSL Payments To Landlords,A22031,0
Royal Borough of Kingston,08/08/2022,70029297,"2,149.00",CASTLE RESIDENTIAL PROPERTIES LTD,PLS LANDLORDS,Place,PSL Payments To Landlords,A22031,0
Royal Borough of Kingston,08/08/2022,90158025,590.69,DAY AND NITE SERVICES (KINGSTON),SOCIAL SERVICES-HOME CARE,Adult Social Care & Health,Personal Budget - Third Party,A61019,0
Royal Borough of Kingston,08/08/2022,90158029,543.26,DAY AND NITE SERVICES (KINGSTON),SOCIAL SERVICES-HOME CARE,Adult Social Care & Health,Personal Budget - Third Party,A61019,0
Royal Borough of Kingston,08/08/2022,90158101,543.26,DAY AND NITE SERVICES (KINGSTON),SOCIAL SERVICES-HOME CARE,Adult Social Care & Health,Personal Budget - Third Party,A61019,0
Royal Borough of Kingston,08/08/2022,90158123,663.99,DAY AND NITE SERVICES (KINGSTON),SOCIAL SERVICES-HOME CARE,Adult Social Care & Health,Personal Budget - Third Party,A61019,0
Royal Borough of Kingston,08/08/2022,90158127,603.63,DAY AND NITE SERVICES (KINGSTON),SOCIAL SERVICES-HOME CARE,Adult Social Care & Health,Personal Budget - Third Party,A61019,0
Royal Borough of Kingston,08/08/2022,90156905,"1,635.37",Global Homecare,SOCIAL SERVICES-HOME CARE,Adult Social Care & Health,Homecare - new framework,A56127,0
Royal Borough of Kingston,08/08/2022,90157029,"2,044.22",Global Homecare,SOCIAL SERVICES-HOME CARE,Adult Social Care & Health,Homecare - new framework,A56127,0
Royal Borough of Kingston,08/08/2022,90157142,"2,861.90",Global Homecare,SOCIAL SERVICES-HOME CARE,Adult Social Care & Health,Homecare - new framework,A56127,0
Royal Borough of Kingston,08/08/2022,90157297,"2,861.90",Global Homecare,SOCIAL SERVICES-HOME CARE,Adult Social Care & Health,Homecare - new framework,A56127,0
Royal Borough of Kingston,08/08/2022,90157018,963.78,HELMAR CARE AND COMMUNITY SERVICES LTD,SOCIAL SERVICES DAY CARE,Adult Social Care & Health,Homecare - new framework,A56127,0
Royal Borough of Kingston,08/08/2022,90157144,"2,861.90",HELMAR CARE AND COMMUNITY SERVICES LTD,SOCIAL SERVICES DAY CARE,Adult Social Care & Health,Homecare - new framework,A56127,0
Royal Borough of Kingston,08/08/2022,90157266,630,HELMAR CARE AND COMMUNITY SERVICES LTD,SOCIAL SERVICES DAY CARE,Adult Social Care & Health,Homecare - new framework,A56127,0
Royal Borough of Kingston,08/08/2022,90157267,550.73,HELMAR CARE AND COMMUNITY SERVICES LTD,SOCIAL SERVICES DAY CARE,Adult Social Care & Health,Homecare - new framework,A56127,0
Royal Borough of Kingston,08/08/2022,90157308,"1,635.37",HELMAR CARE AND COMMUNITY SERVICES LTD,SOCIAL SERVICES DAY CARE,Adult Social Care & Health,Homecare - new framework,A56127,0
Royal Borough of Kingston,08/08/2022,90156738,"2,861.90",INSPIRE MANAGEMENT GROUP LTD,SOCIAL SERVICES DAY CARE,Adult Social Care & Health,Homecare - new framework,A56127,0
Royal Borough of Kingston,08/08/2022,90157153,612.5,INSPIRE MANAGEMENT GROUP LTD,SOCIAL SERVICES DAY CARE,Adult Social Care & Health,Homecare - new framework,A56127,0
Royal Borough of Kingston,08/08/2022,90157169,551.25,INSPIRE MANAGEMENT GROUP LTD,SOCIAL SERVICES DAY CARE,Adult Social Care & Health,Homecare - new framework,A56127,0
Royal Borough of Kingston,08/08/2022,90157197,787.51,INSPIRE MANAGEMENT GROUP LTD,SOCIAL SERVICES DAY CARE,Adult Social Care & Health,Homecare - new framework,A56127,0
Royal Borough of Kingston,08/08/2022,90157207,551.25,INSPIRE MANAGEMENT GROUP LTD,SOCIAL SERVICES DAY CARE,Adult Social Care & Health,Homecare - new framework,A56127,0
Royal Borough of Kingston,08/08/2022,90157224,507.5,INSPIRE MANAGEMENT GROUP LTD,SOCIAL SERVICES DAY CARE,Adult Social Care & Health,Homecare - new framework,A56127,0
Royal Borough of Kingston,08/08/2022,70029294,870.3,J.P Stephens and Son London Limited,PLS LANDLORDS,Place,PSL Payments To Landlords,A22031,0
Royal Borough of Kingston,08/08/2022,70029299,"2,550.00",New Malden Residents Association,SUNDRY SUPPLIER - FINANCE,Corporate & Communities,Payments to Voluntary Organisations,A54005,0
Royal Borough of Kingston,08/08/2022,90158113,"1,400.00",OZUMBA TRAINING AND CONSULTANCY SERVICES LIMITED,SOCIAL SERVICES DAY CARE,Adult Social Care & Health,Personal Budget - Third Party,A61019,0
Royal Borough of Kingston,08/08/2022,70029394,"2,000.00",REDACTED - PERSONAL DATA,PLS LANDLORDS,Place,Housing Incentives,A62025,0
Royal Borough of Kingston,08/08/2022,70029510,"6,324.50",REDACTED - PERSONAL DATA,SUNDRY SUPPLIER - HOUSING,Capital Programme,Buildings - Project Management,C14003,0
Royal Borough of Kingston,08/08/2022,70029316,"4,051.08",REDACTED - PERSONAL DATA,SUNDRY SUPPLIER - HOUSING,Capital Programme,Buildings - Project Management,C14003,0
Royal Borough of Kingston,08/08/2022,70029292,"2,669.24",REDACTED - PERSONAL DATA,PLS LANDLORDS,Place,PSL Payments To Landlords,A22031,0
Royal Borough of Kingston,08/08/2022,70029304,"1,252.50",REDACTED - PERSONAL DATA,SUNDRY SUPPLIER - HOUSING,Housing Revenue Account,Inducements To Move,A46040,0
Royal Borough of Kingston,08/08/2022,90152314,517.44,REDACTED - PERSONAL DATA,SOCIAL SERVICES - PERSONAL BUDGETS,Adult Social Care & Health,Personal Budget - Direct Payment,A61016,0
Royal Borough of Kingston,08/08/2022,90152315,"3,600.00",REDACTED - PERSONAL DATA,SOCIAL SERVICES - DIRECT PAYMENTS,Adult Social Care & Health,Personal Budget - Direct Payment,A61016,0
Royal Borough of Kingston,08/08/2022,90152317,"2,280.00",REDACTED - PERSONAL DATA,SOCIAL SERVICES - DIRECT PAYMENTS,Adult Social Care & Health,Personal Budget - Direct Payment,A61016,0
Royal Borough of Kingston,08/08/2022,90152319,519.84,REDACTED - PERSONAL DATA,SOCIAL SERVICES - DIRECT PAYMENTS,Adult Social Care & Health,Personal Budget - Direct Payment,A61016,0
Royal Borough of Kingston,08/08/2022,90152320,"1,807.64",REDACTED - PERSONAL DATA,SOCIAL SERVICES - PERSONAL BUDGETS,Adult Social Care & Health,Personal Budget - Direct Payment,A61016,0
Royal Borough of Kingston,08/08/2022,90152321,"3,000.00",REDACTED - PERSONAL DATA,SOCIAL SERVICES - PERSONAL BUDGETS,Adult Social Care & Health,Personal Budget - Direct Payment,A61016,0
Royal Borough of Kingston,08/08/2022,90152322,"3,780.00",REDACTED - PERSONAL DATA,SOCIAL SERVICES - DIRECT PAYMENTS,Adult Social Care & Health,Personal Budget - Direct Payment,A61016,0
Royal Borough of Kingston,08/08/2022,90152323,900,REDACTED - PERSONAL DATA,SOCIAL SERVICES - DIRECT PAYMENTS,Adult Social Care & Health,Personal Budget - Direct Payment,A61016,0
Royal Borough of Kingston,08/08/2022,90152325,"1,564.00",REDACTED - PERSONAL DATA,SOCIAL SERVICES - DIRECT PAYMENTS,Adult Social Care & Health,Personal Budget - Direct Payment,A61016,0
Royal Borough of Kingston,08/08/2022,90152326,"1,260.00",REDACTED - PERSONAL DATA,SOCIAL SERVICES - DIRECT PAYMENTS,Adult Social Care & Health,Personal Budget - Direct Payment,A61016,0
Royal Borough of Kingston,08/08/2022,90152327,"2,230.36",REDACTED - PERSONAL DATA,SOCIAL SERVICES - DIRECT PAYMENTS,Adult Social Care & Health,Personal Budget - Direct Payment,A61016,0
Royal Borough of Kingston,08/08/2022,90152328,717.96,REDACTED - PERSONAL DATA,SOCIAL SERVICES - PERSONAL BUDGETS,Adult Social Care & Health,Personal Budget - Direct Payment,A61016,0
Royal Borough of Kingston,08/08/2022,90152329,"2,600.00",REDACTED - PERSONAL DATA,SOCIAL SERVICES - DIRECT PAYMENTS,Adult Social Care & Health,Personal Budget - Direct Payment,A61016,0
Royal Borough of Kingston,08/08/2022,90152330,714,REDACTED - PERSONAL DATA,SOCIAL SERVICES - DIRECT PAYMENTS,Adult Social Care & Health,Personal Budget - Direct Payment,A61016,0
Royal Borough of Kingston,08/08/2022,90152331,714,REDACTED - PERSONAL DATA,SOCIAL SERVICES - DIRECT PAYMENTS,Adult Social Care & Health,Personal Budget - Direct Payment,A61016,0
Royal Borough of Kingston,08/08/2022,90152332,862.52,REDACTED - PERSONAL DATA,SOCIAL SERVICES - DIRECT PAYMENTS,Adult Social Care & Health,Personal Budget - Direct Payment,A61016,0
Royal Borough of Kingston,08/08/2022,90152333,"1,202.16",REDACTED - PERSONAL DATA,SOCIAL SERVICES - DIRECT PAYMENTS,Adult Social Care & Health,Personal Budget - Direct Payment,A61016,0
Royal Borough of Kingston,08/08/2022,90152334,"4,620.00",REDACTED - PERSONAL DATA,SOCIAL SERVICES - DIRECT PAYMENTS,Adult Social Care & Health,Personal Budget - Direct Payment,A61016,0
Royal Borough of Kingston,08/08/2022,90152335,"1,470.00",REDACTED - PERSONAL DATA,SOCIAL SERVICES - DIRECT PAYMENTS,Adult Social Care & Health,Personal Budget - Direct Payment,A61016,0
Royal Borough of Kingston,08/08/2022,90152336,"2,620.00",REDACTED - PERSONAL DATA,SOCIAL SERVICES - DIRECT PAYMENTS,Adult Social Care & Health,Personal Budget - Direct Payment,A61016,0
Royal Borough of Kingston,08/08/2022,90152337,966,REDACTED - PERSONAL DATA,SOCIAL SERVICES - PERSONAL BUDGETS,Adult Social Care & Health,Personal Budget - Direct Payment,A61016,0
Royal Borough of Kingston,08/08/2022,90152340,"3,255.00",REDACTED - PERSONAL DATA,SOCIAL SERVICES - DIRECT PAYMENTS,Adult Social Care & Health,Personal Budget - Direct Payment,A61016,0
Royal Borough of Kingston,08/08/2022,90152341,"-3,209.48",REDACTED - PERSONAL DATA,SOCIAL SERVICES - DIRECT PAYMENTS,Adult Social Care & Health,Personal Budget - Direct Payment,A61016,0
Royal Borough of Kingston,08/08/2022,90152342,"3,255.00",REDACTED - PERSONAL DATA,SOCIAL SERVICES - DIRECT PAYMENTS,Adult Social Care & Health,Personal Budget - Direct Payment,A61016,0
Royal Borough of Kingston,08/08/2022,90152343,"-3,209.48",REDACTED - PERSONAL DATA,SOCIAL SERVICES - DIRECT PAYMENTS,Adult Social Care & Health,Personal Budget - Direct Payment,A61016,0
Royal Borough of Kingston,08/08/2022,90152344,"3,255.00",REDACTED - PERSONAL DATA,SOCIAL SERVICES - DIRECT PAYMENTS,Adult Social Care & Health,Personal Budget - Direct Payment,A61016,0
Royal Borough of Kingston,08/08/2022,90152345,"-3,209.48",REDACTED - PERSONAL DATA,SOCIAL SERVICES - DIRECT PAYMENTS,Adult Social Care & Health,Personal Budget - Direct Payment,A61016,0
Royal Borough of Kingston,08/08/2022,90152346,"3,255.00",REDACTED - PERSONAL DATA,SOCIAL SERVICES - DIRECT PAYMENTS,Adult Social Care & Health,Personal Budget - Direct Payment,A61016,0
Royal Borough of Kingston,08/08/2022,90152347,"-3,209.48",REDACTED - PERSONAL DATA,SOCIAL SERVICES - DIRECT PAYMENTS,Adult Social Care & Health,Personal Budget - Direct Payment,A61016,0
Royal Borough of Kingston,08/08/2022,90152348,"3,255.00",REDACTED - PERSONAL DATA,SOCIAL SERVICES - DIRECT PAYMENTS,Adult Social Care & Health,Personal Budget - Direct Payment,A61016,0
Royal Borough of Kingston,08/08/2022,90152349,816,REDACTED - PERSONAL DATA,SOCIAL SERVICES - PERSONAL BUDGETS,Adult Social Care & Health,Personal Budget - Direct Payment,A61016,0
Royal Borough of Kingston,08/08/2022,90152350,"2,600.00",REDACTED - PERSONAL DATA,SOCIAL SERVICES - DIRECT PAYMENTS,Adult Social Care & Health,Personal Budget - Direct Payment,A61016,0
Royal Borough of Kingston,08/08/2022,90152351,560,REDACTED - PERSONAL DATA,SOCIAL SERVICES - PERSONAL BUDGETS,Adult Social Care & Health,Personal Budget - Direct Payment,A61016,0
Royal Borough of Kingston,08/08/2022,90152352,510,REDACTED - PERSONAL DATA,SOCIAL SERVICES - PERSONAL BUDGETS,Adult Social Care & Health,Personal Budget - Direct Payment,A61016,0
Royal Borough of Kingston,08/08/2022,90152353,"-1,062.00",REDACTED - PERSONAL DATA,SOCIAL SERVICES - PERSONAL BUDGETS,Adult Social Care & Health,Personal Budget - Direct Payment,A61016,0
Royal Borough of Kingston,08/08/2022,90152354,560,REDACTED - PERSONAL DATA,SOCIAL SERVICES - PERSONAL BUDGETS,Adult Social Care & Health,Personal Budget - Direct Payment,A61016,0
Royal Borough of Kingston,08/08/2022,90152355,510,REDACTED - PERSONAL DATA,SOCIAL SERVICES - PERSONAL BUDGETS,Adult Social Care & Health,Personal Budget - Direct Payment,A61016,0
Royal Borough of Kingston,08/08/2022,90152356,"2,242.52",REDACTED - PERSONAL DATA,SOCIAL SERVICES - DIRECT PAYMENTS,Adult Social Care & Health,Personal Budget - Direct Payment,A61016,0
Royal Borough of Kingston,08/08/2022,90152357,"2,142.00",REDACTED - PERSONAL DATA,SOCIAL SERVICES - DIRECT PAYMENTS,Adult Social Care & Health,Personal Budget - Direct Payment,A61016,0
Royal Borough of Kingston,08/08/2022,90152358,"1,046.76",REDACTED - PERSONAL DATA,SOCIAL SERVICES - PERSONAL BUDGETS,Adult Social Care & Health,Personal Budget - Direct Payment,A61016,0
Royal Borough of Kingston,08/08/2022,90152359,"3,000.00",REDACTED - PERSONAL DATA,SOCIAL SERVICES - PERSONAL BUDGETS,Adult Social Care & Health,Personal Budget - Direct Payment,A61016,0
Royal Borough of Kingston,08/08/2022,90152360,"2,240.00",REDACTED - PERSONAL DATA,SOCIAL SERVICES - DIRECT PAYMENTS,Adult Social Care & Health,Personal Budget - Direct Payment,A61016,0
Royal Borough of Kingston,08/08/2022,90152361,"1,690.52",REDACTED - PERSONAL DATA,SOCIAL SERVICES - DIRECT PAYMENTS,Adult Social Care & Health,Personal Budget - Direct Payment,A61016,0
Royal Borough of Kingston,08/08/2022,90152362,"3,000.00",REDACTED - PERSONAL DATA,SOCIAL SERVICES - DIRECT PAYMENTS,Adult Social Care & Health,Personal Budget - Direct Payment,A61016,0
Royal Borough of Kingston,08/08/2022,90152363,"3,100.00",REDACTED - PERSONAL DATA,SOCIAL SERVICES - PERSONAL BUDGETS,Adult Social Care & Health,Personal Budget - Direct Payment,A61016,0
Royal Borough of Kingston,08/08/2022,90152364,952,REDACTED - PERSONAL DATA,SOCIAL SERVICES - DIRECT PAYMENTS,Adult Social Care & Health,Personal Budget - Direct Payment,A61016,0
Royal Borough of Kingston,08/08/2022,90152365,"1,155.00",REDACTED - PERSONAL DATA,SOCIAL SERVICES - PERSONAL BUDGETS,Adult Social Care & Health,Personal Budget - Direct Payment,A61016,0
Royal Borough of Kingston,08/08/2022,90152368,"1,518.00",REDACTED - PERSONAL DATA,SOCIAL SERVICES - DIRECT PAYMENTS,Adult Social Care & Health,Personal Budget - Direct Payment,A61016,0
Royal Borough of Kingston,08/08/2022,90152369,"1,564.00",REDACTED - PERSONAL DATA,SOCIAL SERVICES - DIRECT PAYMENTS,Adult Social Care & Health,Personal Budget - Direct Payment,A61016,0
Royal Borough of Kingston,08/08/2022,90152371,"1,666.00",REDACTED - PERSONAL DATA,SOCIAL SERVICES - DIRECT PAYMENTS,Adult Social Care & Health,Personal Budget - Direct Payment,A61016,0
Royal Borough of Kingston,08/08/2022,90152372,"2,620.00",REDACTED - PERSONAL DATA,SOCIAL SERVICES - DIRECT PAYMENTS,Adult Social Care & Health,Personal Budget - Direct Payment,A61016,0
Royal Borough of Kingston,08/08/2022,90152373,966,REDACTED - PERSONAL DATA,SOCIAL SERVICES - DIRECT PAYMENTS,Adult Social Care & Health,Personal Budget - Direct Payment,A61016,0
Royal Borough of Kingston,08/08/2022,90152374,784,REDACTED - PERSONAL DATA,SOCIAL SERVICES - DIRECT PAYMENTS,Adult Social Care & Health,Personal Budget - Direct Payment,A61016,0
Royal Borough of Kingston,08/08/2022,90152375,"1,664.52",REDACTED - PERSONAL DATA,SOCIAL SERVICES - DIRECT PAYMENTS,Adult Social Care & Health,Personal Budget - Direct Payment,A61016,0
Royal Borough of Kingston,08/08/2022,90152376,"2,600.00",REDACTED - PERSONAL DATA,SOCIAL SERVICES - DIRECT PAYMENTS,Adult Social Care & Health,Personal Budget - Direct Payment,A61016,0
Royal Borough of Kingston,08/08/2022,90152377,714,REDACTED - PERSONAL DATA,SOCIAL SERVICES - DIRECT PAYMENTS,Adult Social Care & Health,Personal Budget - Direct Payment,A61016,0
Royal Borough of Kingston,08/08/2022,90152378,"2,100.00",REDACTED - PERSONAL DATA,SOCIAL SERVICES - PERSONAL BUDGETS,Adult Social Care & Health,Personal Budget - Direct Payment,A61016,0
Royal Borough of Kingston,08/08/2022,90152380,"1,260.00",REDACTED - PERSONAL DATA,SOCIAL SERVICES - PERSONAL BUDGETS,Adult Social Care & Health,Personal Budget - Direct Payment,A61016,0
Royal Borough of Kingston,08/08/2022,90152382,"1,104.00",REDACTED - PERSONAL DATA,SOCIAL SERVICES - PERSONAL BUDGETS,Adult Social Care & Health,Personal Budget - Direct Payment,A61016,0
Royal Borough of Kingston,08/08/2022,90152383,"4,752.00",REDACTED - PERSONAL DATA,SOCIAL SERVICES - DIRECT PAYMENTS,Adult Social Care & Health,Personal Budget - Direct Payment,A61016,0
Royal Borough of Kingston,08/08/2022,90152384,"2,601.24",REDACTED - PERSONAL DATA,SOCIAL SERVICES - DIRECT PAYMENTS,Adult Social Care & Health,Personal Budget - Direct Payment,A61016,0
Royal Borough of Kingston,08/08/2022,90152385,"1,050.20",REDACTED - PERSONAL DATA,SOCIAL SERVICES - DIRECT PAYMENTS,Adult Social Care & Health,Personal Budget - Direct Payment,A61016,0
Royal Borough of Kingston,08/08/2022,90152387,902.16,REDACTED - PERSONAL DATA,SOCIAL SERVICES - DIRECT PAYMENTS,Adult Social Care & Health,Personal Budget - Direct Payment,A61016,0
Royal Borough of Kingston,08/08/2022,90152388,788.08,REDACTED - PERSONAL DATA,SOCIAL SERVICES - PERSONAL BUDGETS,Adult Social Care & Health,Personal Budget - Direct Payment,A61016,0
Royal Borough of Kingston,08/08/2022,90152406,"1,253.64",REDACTED - PERSONAL DATA,SOCIAL SERVICES - PERSONAL BUDGETS,Adult Social Care & Health,Personal Budget - Direct Payment,A61016,0
Royal Borough of Kingston,08/08/2022,90152414,771.43,REDACTED - PERSONAL DATA,SOCIAL SERVICES - DIRECT PAYMENTS,Adult Social Care & Health,Personal Budget - Direct Payment,A61016,0
Royal Borough of Kingston,08/08/2022,90152415,-841.5,REDACTED - PERSONAL DATA,SOCIAL SERVICES - DIRECT PAYMENTS,Adult Social Care & Health,Personal Budget - Direct Payment,A61016,0
Royal Borough of Kingston,08/08/2022,90152416,864,REDACTED - PERSONAL DATA,SOCIAL SERVICES - DIRECT PAYMENTS,Adult Social Care & Health,Personal Budget - Direct Payment,A61016,0
Royal Borough of Kingston,08/08/2022,90152417,-942.48,REDACTED - PERSONAL DATA,SOCIAL SERVICES - DIRECT PAYMENTS,Adult Social Care & Health,Personal Budget - Direct Payment,A61016,0
Royal Borough of Kingston,08/08/2022,90152419,-942.48,REDACTED - PERSONAL DATA,SOCIAL SERVICES - DIRECT PAYMENTS,Adult Social Care & Health,Personal Budget - Direct Payment,A61016,0
Royal Borough of Kingston,08/08/2022,90152420,977.52,REDACTED - PERSONAL DATA,SOCIAL SERVICES - DIRECT PAYMENTS,Adult Social Care & Health,Personal Budget - Direct Payment,A61016,0
Royal Borough of Kingston,08/08/2022,90152421,"3,354.20",REDACTED - PERSONAL DATA,SOCIAL SERVICES - PERSONAL BUDGETS,Adult Social Care & Health,Personal Budget - Direct Payment,A61016,0
Royal Borough of Kingston,08/08/2022,90152423,"1,354.16",REDACTED - PERSONAL DATA,SOCIAL SERVICES - PERSONAL BUDGETS,Adult Social Care & Health,Personal Budget - Direct Payment,A61016,0
Royal Borough of Kingston,08/08/2022,90152424,"1,930.16",REDACTED - PERSONAL DATA,SOCIAL SERVICES - PERSONAL BUDGETS,Adult Social Care & Health,Personal Budget - Direct Payment,A61016,0
Royal Borough of Kingston,08/08/2022,90152426,"1,620.00",REDACTED - PERSONAL DATA,SOCIAL SERVICES - PERSONAL BUDGETS,Adult Social Care & Health,Personal Budget - Direct Payment,A61016,0
Royal Borough of Kingston,08/08/2022,90152427,720,REDACTED - PERSONAL DATA,SOCIAL SERVICES - DIRECT PAYMENTS,Adult Social Care & Health,Personal Budget - Direct Payment,A61016,0
Royal Borough of Kingston,08/08/2022,90152428,552,REDACTED - PERSONAL DATA,SOCIAL SERVICES - PERSONAL BUDGETS,Adult Social Care & Health,Personal Budget - Direct Payment,A61016,0
Royal Borough of Kingston,08/08/2022,90152429,981.04,REDACTED - PERSONAL DATA,SOCIAL SERVICES - DIRECT PAYMENTS,Adult Social Care & Health,Personal Budget - Direct Payment,A61016,0
Royal Borough of Kingston,08/08/2022,90152432,687.56,REDACTED - PERSONAL DATA,SOCIAL SERVICES - DIRECT PAYMENTS,Adult Social Care & Health,Personal Budget - Direct Payment,A61016,0
Royal Borough of Kingston,08/08/2022,90152433,960,REDACTED - PERSONAL DATA,SOCIAL SERVICES - DIRECT PAYMENTS,Adult Social Care & Health,Personal Budget - Direct Payment,A61016,0
Royal Borough of Kingston,08/08/2022,90152434,"1,156.00",REDACTED - PERSONAL DATA,SOCIAL SERVICES - PERSONAL BUDGETS,Adult Social Care & Health,Personal Budget - Direct Payment,A61016,0
Royal Borough of Kingston,08/08/2022,90152436,805.52,REDACTED - PERSONAL DATA,SOCIAL SERVICES - PERSONAL BUDGETS,Adult Social Care & Health,Personal Budget - Direct Payment,A61016,0
Royal Borough of Kingston,08/08/2022,90152438,"3,194.80",REDACTED - PERSONAL DATA,SOCIAL SERVICES - DIRECT PAYMENTS,Adult Social Care & Health,Personal Budget - Direct Payment,A61016,0
Royal Borough of Kingston,08/08/2022,90152439,"4,070.72",REDACTED - PERSONAL DATA,SOCIAL SERVICES - PERSONAL BUDGETS,Adult Social Care & Health,Personal Budget - Direct Payment,A61016,0
Royal Borough of Kingston,08/08/2022,90152440,942.48,REDACTED - PERSONAL DATA,SOCIAL SERVICES - PERSONAL BUDGETS,Adult Social Care & Health,Personal Budget - Direct Payment,A61016,0
Royal Borough of Kingston,08/08/2022,90152442,"1,611.48",REDACTED - PERSONAL DATA,SOCIAL SERVICES - PERSONAL BUDGETS,Adult Social Care & Health,Personal Budget - Direct Payment,A61016,0
Royal Borough of Kingston,08/08/2022,90152443,"4,240.00",REDACTED - PERSONAL DATA,SOCIAL SERVICES - PERSONAL BUDGETS,Adult Social Care & Health,Personal Budget - Direct Payment,A61016,0
Royal Borough of Kingston,08/08/2022,90152444,840,REDACTED - PERSONAL DATA,SOCIAL SERVICES - PERSONAL BUDGETS,Adult Social Care & Health,Personal Budget - Direct Payment,A61016,0
Royal Borough of Kingston,08/08/2022,90152445,"1,136.84",REDACTED - PERSONAL DATA,SOCIAL SERVICES - PERSONAL BUDGETS,Adult Social Care & Health,Personal Budget - Direct Payment,A61016,0
Royal Borough of Kingston,08/08/2022,90152448,"1,278.24",REDACTED - PERSONAL DATA,SOCIAL SERVICES - PERSONAL BUDGETS,Adult Social Care & Health,Personal Budget - Direct Payment,A61016,0
Royal Borough of Kingston,08/08/2022,90152449,"1,107.68",REDACTED - PERSONAL DATA,SOCIAL SERVICES - PERSONAL BUDGETS,Adult Social Care & Health,Personal Budget - Direct Payment,A61016,0
Royal Borough of Kingston,08/08/2022,90152452,578.88,REDACTED - PERSONAL DATA,SOCIAL SERVICES - PERSONAL BUDGETS,Adult Social Care & Health,Personal Budget - Direct Payment,A61016,0
Royal Borough of Kingston,08/08/2022,90152453,840,REDACTED - PERSONAL DATA,SOCIAL SERVICES - DIRECT PAYMENTS,Adult Social Care & Health,Personal Budget - Direct Payment,A61016,0
Royal Borough of Kingston,08/08/2022,90152454,790.48,REDACTED - PERSONAL DATA,SOCIAL SERVICES - DIRECT PAYMENTS,Adult Social Care & Health,Personal Budget - Direct Payment,A61016,0
Royal Borough of Kingston,08/08/2022,90152457,"7,168.00",REDACTED - PERSONAL DATA,SOCIAL SERVICES - DIRECT PAYMENTS,Adult Social Care & Health,Personal Budget - Direct Payment,A61016,0
Royal Borough of Kingston,08/08/2022,90152458,705,REDACTED - PERSONAL DATA,SOCIAL SERVICES - DIRECT PAYMENTS,Adult Social Care & Health,Personal Budget - Direct Payment,A61016,0
Royal Borough of Kingston,08/08/2022,90152459,"1,459.48",REDACTED - PERSONAL DATA,SOCIAL SERVICES - DIRECT PAYMENTS,Adult Social Care & Health,Personal Budget - Direct Payment,A61016,0
Royal Borough of Kingston,08/08/2022,90152460,517.44,REDACTED - PERSONAL DATA,SOCIAL SERVICES - DIRECT PAYMENTS,Adult Social Care & Health,Personal Budget - Direct Payment,A61016,0
Royal Borough of Kingston,08/08/2022,90152464,"1,174.04",REDACTED - PERSONAL DATA,SOCIAL SERVICES - PERSONAL BUDGETS,Adult Social Care & Health,Personal Budget - Direct Payment,A61016,0
Royal Borough of Kingston,08/08/2022,90152465,"1,260.00",REDACTED - PERSONAL DATA,SOCIAL SERVICES - DIRECT PAYMENTS,Adult Social Care & Health,Personal Budget - Direct Payment,A61016,0
Royal Borough of Kingston,08/08/2022,90152466,"4,669.80",REDACTED - PERSONAL DATA,SOCIAL SERVICES - PERSONAL BUDGETS,Adult Social Care & Health,Personal Budget - Direct Payment,A61016,0
